OrganisationName,OrganisationCode,EffectiveDate,DirectorateService,SupplierName,PaymentDate,TransactionNumber,NetAmount,IrrecoverableVAT,PurposeofSpend,CouncilProcurementCategoryName
Leeds City Council,http://opendatacommunities.org/id/metropolitan-district-council/leeds,18/08/2016,Environment & Housing,St Judes Furniture Store,11/03/2016,2015160001,"18,000.00",0,Homelessness Grant,Supplies & Services
Leeds City Council,http://opendatacommunities.org/id/metropolitan-district-council/leeds,18/08/2016,Environment & Housing,St Judes Furniture Store,18/11/2015,2015160002,"18,000.00",0,Homelessness Grant,Supplies & Services
Leeds City Council,http://opendatacommunities.org/id/metropolitan-district-council/leeds,18/08/2016,Environment & Housing,St Judes Furniture Store,04/08/2015,2015160003,"18,000.00",0,Homelessness Grant,Supplies & Services
Leeds City Council,http://opendatacommunities.org/id/metropolitan-district-council/leeds,18/08/2016,Environment & Housing,St Judes Furniture Store,25/05/2015,2015160004,"18,000.00",0,Homelessness Grant,Supplies & Services
Leeds City Council,http://opendatacommunities.org/id/metropolitan-district-council/leeds,18/08/2016,Environment & Housing,Meanwood Valley Urban Farm Ltd,13/07/2015,2015160005,"49,600.00",0,Support Grant,Supplies & Services
Leeds City Council,http://opendatacommunities.org/id/metropolitan-district-council/leeds,18/08/2016,Environment & Housing,Leeds & Moortown Furniture Store,11/03/2016,2015160006,"1,995.00",0,Homelessness Grant,Supplies & Services
Leeds City Council,http://opendatacommunities.org/id/metropolitan-district-council/leeds,18/08/2016,Environment & Housing,Leeds & Moortown Furniture Store,24/11/2015,2015160007,"18,000.00",0,Homelessness Grant,Supplies & Services
Leeds City Council,http://opendatacommunities.org/id/metropolitan-district-council/leeds,18/08/2016,Environment & Housing,Leeds & Moortown Furniture Store,18/11/2015,2015160008,"1,995.00",0,Homelessness Grant,Supplies & Services
Leeds City Council,http://opendatacommunities.org/id/metropolitan-district-council/leeds,18/08/2016,Environment & Housing,Leeds & Moortown Furniture Store,25/05/2015,2015160009,"19,995.00",0,Homelessness Grant,Supplies & Services
Leeds City Council,http://opendatacommunities.org/id/metropolitan-district-council/leeds,18/08/2016,Environment & Housing,Leeds & Moortown Furniture Store,04/08/2015,2015160010,"19,995.00",0,Homelessness Grant,Supplies & Services
Leeds City Council,http://opendatacommunities.org/id/metropolitan-district-council/leeds,18/08/2016,Environment & Housing,Groundwork Leeds,23/10/2015,2015160011,"13,600.00",0,Support Grant,Supplies & Services
Leeds City Council,http://opendatacommunities.org/id/metropolitan-district-council/leeds,18/08/2016,Environment & Housing,Groundwork Leeds,15/01/2016,2015160012,"13,600.00",0,Support Grant,Supplies & Services
Leeds City Council,http://opendatacommunities.org/id/metropolitan-district-council/leeds,18/08/2016,Environment & Housing,Groundwork Leeds,13/01/2016,2015160013,"9,839.75",0,Support Grant,Supplies & Services
Leeds City Council,http://opendatacommunities.org/id/metropolitan-district-council/leeds,18/08/2016,Environment & Housing,Groundwork Leeds,29/04/2015,2015160014,"11,799.80",0,Support Grant,Supplies & Services
Leeds City Council,http://opendatacommunities.org/id/metropolitan-district-council/leeds,18/08/2016,Environment & Housing,Groundwork Leeds,11/06/2015,2015160015,"13,600.00",0,Support Grant,Supplies & Services
Leeds City Council,http://opendatacommunities.org/id/metropolitan-district-council/leeds,18/08/2016,Environment & Housing,Groundwork Leeds,16/06/2015,2015160016,"9,839.75",0,Support Grant,Supplies & Services
Leeds City Council,http://opendatacommunities.org/id/metropolitan-district-council/leeds,18/08/2016,Environment & Housing,Groundwork Leeds,30/09/2015,2015160017,"9,839.75",0,Support Grant,Supplies & Services
Leeds City Council,http://opendatacommunities.org/id/metropolitan-district-council/leeds,18/08/2016,Environment & Housing,Gotts Park Golf Club Community Interest,15/02/2016,2015160018,"20,000.00",0,Support Grant,Supplies & Services
Leeds City Council,http://opendatacommunities.org/id/metropolitan-district-council/leeds,18/08/2016,Environment & Housing,Barnardos,16/10/2015,2015160019,"3,750.00",0,Homelessness Grant,Supplies & Services
Leeds City Council,http://opendatacommunities.org/id/metropolitan-district-council/leeds,18/08/2016,Environment & Housing,Barnardos,16/10/2015,2015160020,"3,750.00",0,Homelessness Grant,Supplies & Services
Leeds City Council,http://opendatacommunities.org/id/metropolitan-district-council/leeds,18/08/2016,Environment & Housing,Barnardos,15/02/2016,2015160021,"3,750.00",0,Homelessness Grant,Supplies & Services
Leeds City Council,http://opendatacommunities.org/id/metropolitan-district-council/leeds,18/08/2016,Environment & Housing,The Conservation Volunteers,20/11/2015,2015160022,"4,116.00",0,Support Grant,Supplies & Services
Leeds City Council,http://opendatacommunities.org/id/metropolitan-district-council/leeds,18/08/2016,Environment & Housing,The Conservation Volunteers,20/11/2015,2015160023,"4,100.00",0,Support Grant,Supplies & Services
Leeds City Council,http://opendatacommunities.org/id/metropolitan-district-council/leeds,18/08/2016,Environment & Housing,The Conservation Volunteers,09/07/2015,2015160024,"4,100.00",0,Support Grant,Supplies & Services
Leeds City Council,http://opendatacommunities.org/id/metropolitan-district-council/leeds,18/08/2016,Environment & Housing,The Conservation Volunteers,09/07/2015,2015160025,"4,116.00",0,Support Grant,Supplies & Services
Leeds City Council,http://opendatacommunities.org/id/metropolitan-district-council/leeds,18/08/2016,Environment & Housing,Rspb,20/11/2015,2015160026,"2,688.00",0,Support Grant,Supplies & Services
Leeds City Council,http://opendatacommunities.org/id/metropolitan-district-council/leeds,18/08/2016,Environment & Housing,Rspb,09/07/2015,2015160027,"2,688.00",0,Support Grant,Supplies & Services
Leeds City Council,http://opendatacommunities.org/id/metropolitan-district-council/leeds,18/08/2016,Environment & Housing,Middleton Park Equestrian Centre,13/04/2015,2015160028,"56,000.00",0,Supplier Grant,Supplies & Services
Leeds City Council,http://opendatacommunities.org/id/metropolitan-district-council/leeds,18/08/2016,Environment & Housing,Middleton Park Equestrian Centre,09/03/2016,2015160029,"56,000.00",0,Supplier Grant,Supplies & Services
Leeds City Council,http://opendatacommunities.org/id/metropolitan-district-council/leeds,18/08/2016,Environment & Housing,Rothwell Allotment Association,03/03/2016,2015160030,315,0,Support Grant,Supplies & Services
Leeds City Council,http://opendatacommunities.org/id/metropolitan-district-council/leeds,18/08/2016,Environment & Housing,Groundwork Leeds,04/11/2015,2015160031,"2,000.00",0,Support Grant,Supplies & Services
Leeds City Council,http://opendatacommunities.org/id/metropolitan-district-council/leeds,18/08/2016,Environment & Housing,Groundwork Leeds,22/12/2015,2015160032,"10,400.00",0,Support Grant,Supplies & Services
Leeds City Council,http://opendatacommunities.org/id/metropolitan-district-council/leeds,18/08/2016,Environment & Housing,Groundwork Leeds,18/03/2016,2015160033,"15,600.00",0,Support Grant,Supplies & Services
Leeds City Council,http://opendatacommunities.org/id/metropolitan-district-council/leeds,18/08/2016,Environment & Housing,Groundwork Leeds,30/09/2015,2015160034,"2,000.00",0,Support Grant,Supplies & Services
Leeds City Council,http://opendatacommunities.org/id/metropolitan-district-council/leeds,18/08/2016,Environment & Housing,Care & Repair Leeds,02/11/2015,2015160035,"5,000.00",0,Support Grant,Supplies & Services
Leeds City Council,http://opendatacommunities.org/id/metropolitan-district-council/leeds,18/08/2016,Environment & Housing,Care & Repair Leeds,05/02/2016,2015160036,"5,000.00",0,Support Grant,Supplies & Services
Leeds City Council,http://opendatacommunities.org/id/metropolitan-district-council/leeds,18/08/2016,Environment & Housing,Care & Repair Leeds,06/08/2015,2015160037,"5,000.00",0,Support Grant,Supplies & Services
Leeds City Council,http://opendatacommunities.org/id/metropolitan-district-council/leeds,18/08/2016,Environment & Housing,Groundwork Leeds,03/07/2015,2015160038,"10,000.00",0,Support Grant,Supplies & Services
Leeds City Council,http://opendatacommunities.org/id/metropolitan-district-council/leeds,18/08/2016,Environment & Housing,Groundwork Leeds,31/03/2016,2015160039,"27,250.00",0,Project support capital grant,Supplies & Services
Leeds City Council,http://opendatacommunities.org/id/metropolitan-district-council/leeds,18/08/2016,Environment & Housing,Groundwork Leeds,26/02/2016,2015160040,"1,814.44",0,Project support capital grant,Supplies & Services
Leeds City Council,http://opendatacommunities.org/id/metropolitan-district-council/leeds,18/08/2016,Environment & Housing,Groundwork Leeds,24/02/2016,2015160041,"10,000.00",0,Project support capital grant,Supplies & Services
Leeds City Council,http://opendatacommunities.org/id/metropolitan-district-council/leeds,18/08/2016,Environment & Housing,Groundwork Leeds,24/02/2016,2015160042,"1,000.00",0,Project support capital grant,Supplies & Services
Leeds City Council,http://opendatacommunities.org/id/metropolitan-district-council/leeds,18/08/2016,Environment & Housing,Groundwork Leeds,10/12/2015,2015160043,"2,750.00",0,Project support capital grant,Supplies & Services
Leeds City Council,http://opendatacommunities.org/id/metropolitan-district-council/leeds,18/08/2016,Environment & Housing,Groundwork Leeds,11/08/2015,2015160044,"11,000.00",0,Project support capital grant,Supplies & Services
Leeds City Council,http://opendatacommunities.org/id/metropolitan-district-council/leeds,18/08/2016,Environment & Housing,Horsforth Community Sports Association,29/07/2015,2015160045,"19,170.68",0,S106 Green Space grant,Supplies & Services
Leeds City Council,http://opendatacommunities.org/id/metropolitan-district-council/leeds,18/08/2016,Environment & Housing,Horsforth Community Sports Association,27/08/2015,2015160046,"6,087.36",0,S106 Green Space grant,Supplies & Services
Leeds City Council,http://opendatacommunities.org/id/metropolitan-district-council/leeds,18/08/2016,Environment & Housing,Horsforth Community Sports Association,22/02/2016,2015160047,"36,873.47",0,S106 Green Space grant,Supplies & Services
Leeds City Council,http://opendatacommunities.org/id/metropolitan-district-council/leeds,18/08/2016,Environment & Housing,Horsforth Community Sports Association,17/03/2016,2015160048,"21,731.50",0,S106 Green Space grant,Supplies & Services
Leeds City Council,http://opendatacommunities.org/id/metropolitan-district-council/leeds,18/08/2016,Environment & Housing,Winthorpe Residents Association,04/08/2015,2015160049,300,0,Housing Grant,Supplies & Services
Leeds City Council,http://opendatacommunities.org/id/metropolitan-district-council/leeds,18/08/2016,Environment & Housing,Westerton Close Elderly Community Group,16/12/2015,2015160050,500,0,Housing Grant,Supplies & Services
Leeds City Council,http://opendatacommunities.org/id/metropolitan-district-council/leeds,18/08/2016,Environment & Housing,Westerton Close Elderly Community Group,05/08/2015,2015160051,100,0,Housing Grant,Supplies & Services
Leeds City Council,http://opendatacommunities.org/id/metropolitan-district-council/leeds,18/08/2016,Environment & Housing,Westerton Close Elderly Community Group,20/08/2015,2015160052,500,0,Housing Grant,Supplies & Services
Leeds City Council,http://opendatacommunities.org/id/metropolitan-district-council/leeds,18/08/2016,Environment & Housing,Tpas Limited,24/09/2015,2015160053,3330,0,Housing Grant,Supplies & Services
Leeds City Council,http://opendatacommunities.org/id/metropolitan-district-council/leeds,18/08/2016,Environment & Housing,Tingley Tara (Tenants And Residents),20/08/2015,2015160054,759,0,Housing Grant,Supplies & Services
Leeds City Council,http://opendatacommunities.org/id/metropolitan-district-council/leeds,18/08/2016,Environment & Housing,Tingley Tara (Tenants And Residents),05/08/2015,2015160055,400,0,Housing Grant,Supplies & Services
Leeds City Council,http://opendatacommunities.org/id/metropolitan-district-council/leeds,18/08/2016,Environment & Housing,Thorpe Primary School Pta,16/12/2015,2015160056,400,0,Housing Grant,Supplies & Services
Leeds City Council,http://opendatacommunities.org/id/metropolitan-district-council/leeds,18/08/2016,Environment & Housing,Thorpe Management Committee,21/09/2015,2015160057,100,0,Housing Grant,Supplies & Services
Leeds City Council,http://opendatacommunities.org/id/metropolitan-district-council/leeds,18/08/2016,Environment & Housing,Thorpe Community Centre,30/11/2015,2015160058,500,0,Housing Grant,Supplies & Services
Leeds City Council,http://opendatacommunities.org/id/metropolitan-district-council/leeds,18/08/2016,Environment & Housing,Theaker Lane Tenants Group,23/02/2016,2015160059,300,0,Housing Grant,Supplies & Services
Leeds City Council,http://opendatacommunities.org/id/metropolitan-district-council/leeds,18/08/2016,Environment & Housing,The Sandringham Tenants And Residents,22/05/2015,2015160060,100,0,Housing Grant,Supplies & Services
Leeds City Council,http://opendatacommunities.org/id/metropolitan-district-council/leeds,18/08/2016,Environment & Housing,The Leeds Groundwork Trust,14/12/2015,2015160061,10000,0,Housing Grant,Supplies & Services
Leeds City Council,http://opendatacommunities.org/id/metropolitan-district-council/leeds,18/08/2016,Environment & Housing,The Ciaran Bingham Trust Foundation Trus,20/11/2015,2015160062,2000,0,Housing Grant,Supplies & Services
Leeds City Council,http://opendatacommunities.org/id/metropolitan-district-council/leeds,18/08/2016,Environment & Housing,The Cardigan Centre,31/07/2015,2015160063,140,0,Housing Grant,Supplies & Services
Leeds City Council,http://opendatacommunities.org/id/metropolitan-district-council/leeds,18/08/2016,Environment & Housing,Swinnow Community Centre,10/07/2015,2015160064,1000.83,0,Housing Grant,Supplies & Services
Leeds City Council,http://opendatacommunities.org/id/metropolitan-district-council/leeds,18/08/2016,Environment & Housing,Swillington Pre School Play Group,17/06/2015,2015160065,1000,0,Housing Grant,Supplies & Services
Leeds City Council,http://opendatacommunities.org/id/metropolitan-district-council/leeds,18/08/2016,Environment & Housing,Swillington & District Community Centre,19/10/2015,2015160066,500,0,Housing Grant,Supplies & Services
Leeds City Council,http://opendatacommunities.org/id/metropolitan-district-council/leeds,18/08/2016,Environment & Housing,Street Work Soccer Academy Ltd,13/07/2015,2015160067,9896,0,Housing Grant,Supplies & Services
Leeds City Council,http://opendatacommunities.org/id/metropolitan-district-council/leeds,18/08/2016,Environment & Housing,Street Work Soccer Academy Ltd,06/05/2015,2015160068,23800,0,Housing Grant,Supplies & Services
Leeds City Council,http://opendatacommunities.org/id/metropolitan-district-council/leeds,18/08/2016,Environment & Housing,Stoney Rock Court Sheltered Housing,19/10/2015,2015160069,100,0,Housing Grant,Supplies & Services
Leeds City Council,http://opendatacommunities.org/id/metropolitan-district-council/leeds,18/08/2016,Environment & Housing,Stoney Rock Court Sheltered Housing,25/08/2015,2015160070,740,0,Housing Grant,Supplies & Services
Leeds City Council,http://opendatacommunities.org/id/metropolitan-district-council/leeds,18/08/2016,Environment & Housing,St Augustines Court Residents,19/10/2015,2015160071,100,0,Housing Grant,Supplies & Services
Leeds City Council,http://opendatacommunities.org/id/metropolitan-district-council/leeds,18/08/2016,Environment & Housing,St Augustines Court Residents,10/02/2016,2015160072,500,0,Housing Grant,Supplies & Services
Leeds City Council,http://opendatacommunities.org/id/metropolitan-district-council/leeds,18/08/2016,Environment & Housing,St Augustines Court Residents,13/11/2015,2015160073,159.99,0,Housing Grant,Supplies & Services
Leeds City Council,http://opendatacommunities.org/id/metropolitan-district-council/leeds,18/08/2016,Environment & Housing,St Augustines Court Residents,21/08/2015,2015160074,250,0,Housing Grant,Supplies & Services
Leeds City Council,http://opendatacommunities.org/id/metropolitan-district-council/leeds,18/08/2016,Environment & Housing,South Seacroft Friends & Neighbours,07/05/2015,2015160075,10000,0,Housing Grant,Supplies & Services
Leeds City Council,http://opendatacommunities.org/id/metropolitan-district-council/leeds,18/08/2016,Environment & Housing,Siegen Close Residents Association,05/08/2015,2015160076,100,0,Housing Grant,Supplies & Services
Leeds City Council,http://opendatacommunities.org/id/metropolitan-district-council/leeds,18/08/2016,Environment & Housing,Seagulls Re-Use Ltd,21/08/2015,2015160077,3696,0,Housing Grant,Supplies & Services
Leeds City Council,http://opendatacommunities.org/id/metropolitan-district-council/leeds,18/08/2016,Environment & Housing,Seacroft Parochial Church Council,28/05/2015,2015160078,6010,0,Housing Grant,Supplies & Services
Leeds City Council,http://opendatacommunities.org/id/metropolitan-district-council/leeds,18/08/2016,Environment & Housing,Seacroft Parochial Church Council,07/05/2015,2015160079,6010,0,Housing Grant,Supplies & Services
Leeds City Council,http://opendatacommunities.org/id/metropolitan-district-council/leeds,18/08/2016,Environment & Housing,4 Children Direct Ltd,06/10/2015,2015160080,1755,0,Housing Grant,Supplies & Services
Leeds City Council,http://opendatacommunities.org/id/metropolitan-district-council/leeds,18/08/2016,Environment & Housing,Seacroft Green Residents Association,06/11/2015,2015160081,200,0,Housing Grant,Supplies & Services
Leeds City Council,http://opendatacommunities.org/id/metropolitan-district-council/leeds,18/08/2016,Environment & Housing,Seacroft Green Residents Association,06/05/2015,2015160082,850,0,Housing Grant,Supplies & Services
Leeds City Council,http://opendatacommunities.org/id/metropolitan-district-council/leeds,18/08/2016,Environment & Housing,Seacroft Gala,07/05/2015,2015160083,1890,0,Housing Grant,Supplies & Services
Leeds City Council,http://opendatacommunities.org/id/metropolitan-district-council/leeds,18/08/2016,Environment & Housing,Scholes Social Club,11/02/2016,2015160084,100,0,Housing Grant,Supplies & Services
Leeds City Council,http://opendatacommunities.org/id/metropolitan-district-council/leeds,18/08/2016,Environment & Housing,Saxton Gardens Residents Association,19/10/2015,2015160085,600,0,Housing Grant,Supplies & Services
Leeds City Council,http://opendatacommunities.org/id/metropolitan-district-council/leeds,18/08/2016,Environment & Housing,Saxton Gardens Residents Association,21/08/2015,2015160086,1108,0,Housing Grant,Supplies & Services
Leeds City Council,http://opendatacommunities.org/id/metropolitan-district-council/leeds,18/08/2016,Environment & Housing,Royds Court Social Fund,30/10/2015,2015160087,1231.25,0,Housing Grant,Supplies & Services
Leeds City Council,http://opendatacommunities.org/id/metropolitan-district-council/leeds,18/08/2016,Environment & Housing,Rothwell Tenants & Residents Association,23/10/2015,2015160088,450,0,Housing Grant,Supplies & Services
Leeds City Council,http://opendatacommunities.org/id/metropolitan-district-council/leeds,18/08/2016,Environment & Housing,Rothwell Christmas Hospitality Fund,16/12/2015,2015160089,1000,0,Housing Grant,Supplies & Services
Leeds City Council,http://opendatacommunities.org/id/metropolitan-district-council/leeds,18/08/2016,Environment & Housing,Robin Hood Residents Association,15/10/2015,2015160090,200,0,Housing Grant,Supplies & Services
Leeds City Council,http://opendatacommunities.org/id/metropolitan-district-council/leeds,18/08/2016,Environment & Housing,Robin Hood In Bloom,19/10/2015,2015160091,500,0,Housing Grant,Supplies & Services
Leeds City Council,http://opendatacommunities.org/id/metropolitan-district-council/leeds,18/08/2016,Environment & Housing,Robin Hood In Bloom,07/08/2015,2015160092,520,0,Housing Grant,Supplies & Services
Leeds City Council,http://opendatacommunities.org/id/metropolitan-district-council/leeds,18/08/2016,Environment & Housing,Queenswood Tenants & Residents Assoc,22/01/2016,2015160093,900,0,Housing Grant,Supplies & Services
Leeds City Council,http://opendatacommunities.org/id/metropolitan-district-council/leeds,18/08/2016,Environment & Housing,Queensview Residents Association,07/05/2015,2015160094,128.4,0,Housing Grant,Supplies & Services
Leeds City Council,http://opendatacommunities.org/id/metropolitan-district-council/leeds,18/08/2016,Environment & Housing,Pool Sheltered Housing Social Club,10/07/2015,2015160095,888.81,0,Housing Grant,Supplies & Services
Leeds City Council,http://opendatacommunities.org/id/metropolitan-district-council/leeds,18/08/2016,Environment & Housing,Pontefract Lane Community Association,12/06/2015,2015160096,350,0,Housing Grant,Supplies & Services
Leeds City Council,http://opendatacommunities.org/id/metropolitan-district-council/leeds,18/08/2016,Environment & Housing,Pembroke Community Group,19/10/2015,2015160097,100,0,Housing Grant,Supplies & Services
Leeds City Council,http://opendatacommunities.org/id/metropolitan-district-council/leeds,18/08/2016,Environment & Housing,Opal Luncheon Club,16/02/2016,2015160098,10000,0,Housing Grant,Supplies & Services
Leeds City Council,http://opendatacommunities.org/id/metropolitan-district-council/leeds,18/08/2016,Environment & Housing,Older Peoples Action In The Locality,28/07/2015,2015160099,10000,0,Housing Grant,Supplies & Services
Leeds City Council,http://opendatacommunities.org/id/metropolitan-district-council/leeds,18/08/2016,Environment & Housing,Nursery Garth Community Group,13/08/2015,2015160100,300,0,Housing Grant,Supplies & Services
Leeds City Council,http://opendatacommunities.org/id/metropolitan-district-council/leeds,18/08/2016,Environment & Housing,Nursery Garth Community Group,23/06/2015,2015160101,100,0,Housing Grant,Supplies & Services
Leeds City Council,http://opendatacommunities.org/id/metropolitan-district-council/leeds,18/08/2016,Environment & Housing,Northfield Community Centre,07/08/2015,2015160102,500,0,Housing Grant,Supplies & Services
Leeds City Council,http://opendatacommunities.org/id/metropolitan-district-council/leeds,18/08/2016,Environment & Housing,Northfield Community Centre,25/08/2015,2015160103,500,0,Housing Grant,Supplies & Services
Leeds City Council,http://opendatacommunities.org/id/metropolitan-district-council/leeds,18/08/2016,Environment & Housing,Northcall,05/02/2016,2015160104,10060,0,Housing Grant,Supplies & Services
Leeds City Council,http://opendatacommunities.org/id/metropolitan-district-council/leeds,18/08/2016,Environment & Housing,Northcall,23/02/2016,2015160105,23,0,Housing Grant,Supplies & Services
Leeds City Council,http://opendatacommunities.org/id/metropolitan-district-council/leeds,18/08/2016,Environment & Housing,Nigerian Community Leeds- Ncl,12/06/2015,2015160106,2000,0,Housing Grant,Supplies & Services
Leeds City Council,http://opendatacommunities.org/id/metropolitan-district-council/leeds,18/08/2016,Environment & Housing,New Wortley Residents Association,23/03/2016,2015160107,2568,0,Housing Grant,Supplies & Services
Leeds City Council,http://opendatacommunities.org/id/metropolitan-district-council/leeds,18/08/2016,Environment & Housing,New Wortley Community Association,30/04/2015,2015160108,2500,0,Housing Grant,Supplies & Services
Leeds City Council,http://opendatacommunities.org/id/metropolitan-district-council/leeds,18/08/2016,Environment & Housing,Morley Community Church,05/08/2015,2015160109,4800,0,Housing Grant,Supplies & Services
Leeds City Council,http://opendatacommunities.org/id/metropolitan-district-council/leeds,18/08/2016,Environment & Housing,Moortown Community Group,24/03/2016,2015160110,686,0,Housing Grant,Supplies & Services
Leeds City Council,http://opendatacommunities.org/id/metropolitan-district-council/leeds,18/08/2016,Environment & Housing,Moor Allerton Elderly Care,03/03/2016,2015160111,1285.05,0,Housing Grant,Supplies & Services
Leeds City Council,http://opendatacommunities.org/id/metropolitan-district-council/leeds,18/08/2016,Environment & Housing,Moor Allerton Elderly Care,12/11/2015,2015160112,650,0,Housing Grant,Supplies & Services
Leeds City Council,http://opendatacommunities.org/id/metropolitan-district-council/leeds,18/08/2016,Environment & Housing,Meanwood Junior Playscheme,04/03/2016,2015160113,900,0,Housing Grant,Supplies & Services
Leeds City Council,http://opendatacommunities.org/id/metropolitan-district-council/leeds,18/08/2016,Environment & Housing,Marsden Court Residents Association,24/03/2016,2015160114,100,0,Housing Grant,Supplies & Services
Leeds City Council,http://opendatacommunities.org/id/metropolitan-district-council/leeds,18/08/2016,Environment & Housing,Ls14 Trust,27/10/2015,2015160115,9740,0,Housing Grant,Supplies & Services
Leeds City Council,http://opendatacommunities.org/id/metropolitan-district-council/leeds,18/08/2016,Environment & Housing,Locality,30/09/2015,2015160116,532.8,0,Housing Grant,Supplies & Services
Leeds City Council,http://opendatacommunities.org/id/metropolitan-district-council/leeds,18/08/2016,Environment & Housing,Little London Arts,29/05/2015,2015160117,1500,0,Housing Grant,Supplies & Services
Leeds City Council,http://opendatacommunities.org/id/metropolitan-district-council/leeds,18/08/2016,Environment & Housing,Lewisham Court Residents Association,19/10/2015,2015160118,240,0,Housing Grant,Supplies & Services
Leeds City Council,http://opendatacommunities.org/id/metropolitan-district-council/leeds,18/08/2016,Environment & Housing,Leeds Inner City Football Training,28/05/2015,2015160119,468.75,0,Housing Grant,Supplies & Services
Leeds City Council,http://opendatacommunities.org/id/metropolitan-district-council/leeds,18/08/2016,Environment & Housing,Leeds Inner City Football Training,28/05/2015,2015160120,375,0,Housing Grant,Supplies & Services
Leeds City Council,http://opendatacommunities.org/id/metropolitan-district-council/leeds,18/08/2016,Environment & Housing,Leeds Inner City Football Training,23/07/2015,2015160121,750,0,Housing Grant,Supplies & Services
Leeds City Council,http://opendatacommunities.org/id/metropolitan-district-council/leeds,18/08/2016,Environment & Housing,Leeds Corinthians Junior Fund,14/12/2015,2015160122,3000,0,Housing Grant,Supplies & Services
Leeds City Council,http://opendatacommunities.org/id/metropolitan-district-council/leeds,18/08/2016,Environment & Housing,Leeds Black Elders Association,07/03/2016,2015160123,2500,0,Housing Grant,Supplies & Services
Leeds City Council,http://opendatacommunities.org/id/metropolitan-district-council/leeds,18/08/2016,Environment & Housing,John O'Gaunts Tenants & Residents,21/08/2015,2015160124,300,0,Housing Grant,Supplies & Services
Leeds City Council,http://opendatacommunities.org/id/metropolitan-district-council/leeds,18/08/2016,Environment & Housing,John O'Gaunts Tenants & Residents,06/08/2015,2015160125,400,0,Housing Grant,Supplies & Services
Leeds City Council,http://opendatacommunities.org/id/metropolitan-district-council/leeds,18/08/2016,Environment & Housing,John O'Gaunts Community Centre,22/04/2015,2015160126,500,0,Housing Grant,Supplies & Services
Leeds City Council,http://opendatacommunities.org/id/metropolitan-district-council/leeds,18/08/2016,Environment & Housing,John O'Gaunt Luncheon Club,31/07/2015,2015160127,500,0,Housing Grant,Supplies & Services
Leeds City Council,http://opendatacommunities.org/id/metropolitan-district-council/leeds,18/08/2016,Environment & Housing,Hyde Park Source,24/07/2015,2015160128,666.54,0,Housing Grant,Supplies & Services
Leeds City Council,http://opendatacommunities.org/id/metropolitan-district-council/leeds,18/08/2016,Environment & Housing,Hyde Park Source,02/06/2015,2015160129,2780,0,Housing Grant,Supplies & Services
Leeds City Council,http://opendatacommunities.org/id/metropolitan-district-council/leeds,18/08/2016,Environment & Housing,Hyde Park Source,10/07/2015,2015160130,188,0,Housing Grant,Supplies & Services
Leeds City Council,http://opendatacommunities.org/id/metropolitan-district-council/leeds,18/08/2016,Environment & Housing,Hunslet Tenants And Residents,30/10/2015,2015160131,450,0,Housing Grant,Supplies & Services
Leeds City Council,http://opendatacommunities.org/id/metropolitan-district-council/leeds,18/08/2016,Environment & Housing,Holborn Towers Residents Association,30/10/2015,2015160132,100,0,Housing Grant,Supplies & Services
Leeds City Council,http://opendatacommunities.org/id/metropolitan-district-council/leeds,18/08/2016,Environment & Housing,Health For All (Leeds) Ltd,21/01/2016,2015160133,8000,0,Housing Grant,Supplies & Services
Leeds City Council,http://opendatacommunities.org/id/metropolitan-district-council/leeds,18/08/2016,Environment & Housing,Hawthorn Rd & St Andrews Residents Group,05/02/2016,2015160134,100,0,Housing Grant,Supplies & Services
Leeds City Council,http://opendatacommunities.org/id/metropolitan-district-council/leeds,18/08/2016,Environment & Housing,Hallfield Residents Association,10/02/2016,2015160135,250,0,Housing Grant,Supplies & Services
Leeds City Council,http://opendatacommunities.org/id/metropolitan-district-council/leeds,18/08/2016,Environment & Housing,Groundwork Leeds,10/03/2016,2015160136,3350,0,Housing Grant,Supplies & Services
Leeds City Council,http://opendatacommunities.org/id/metropolitan-district-council/leeds,18/08/2016,Environment & Housing,Groundwork Leeds,14/12/2015,2015160137,2250,0,Housing Grant,Supplies & Services
Leeds City Council,http://opendatacommunities.org/id/metropolitan-district-council/leeds,18/08/2016,Environment & Housing,Groundwork Leeds,19/10/2015,2015160138,10000,0,Housing Grant,Supplies & Services
Leeds City Council,http://opendatacommunities.org/id/metropolitan-district-council/leeds,18/08/2016,Environment & Housing,Groundwork Leeds,19/08/2015,2015160139,8000,0,Housing Grant,Supplies & Services
Leeds City Council,http://opendatacommunities.org/id/metropolitan-district-council/leeds,18/08/2016,Environment & Housing,Glenthorpe & Walford Community Group,15/05/2015,2015160140,100,0,Housing Grant,Supplies & Services
Leeds City Council,http://opendatacommunities.org/id/metropolitan-district-council/leeds,18/08/2016,Environment & Housing,Gipton Together,27/04/2015,2015160141,15001,0,Housing Grant,Supplies & Services
Leeds City Council,http://opendatacommunities.org/id/metropolitan-district-council/leeds,18/08/2016,Environment & Housing,Gipton Supported Independent Living Ltd,22/07/2015,2015160142,18000,0,Housing Grant,Supplies & Services
Leeds City Council,http://opendatacommunities.org/id/metropolitan-district-council/leeds,18/08/2016,Environment & Housing,Gilbert & Sandford Road,23/12/2015,2015160143,200,0,Housing Grant,Supplies & Services
Leeds City Council,http://opendatacommunities.org/id/metropolitan-district-council/leeds,18/08/2016,Environment & Housing,Getaway Girls,17/07/2015,2015160144,2550,0,Housing Grant,Supplies & Services
Leeds City Council,http://opendatacommunities.org/id/metropolitan-district-council/leeds,18/08/2016,Environment & Housing,Gargrave Group Tenants Association,18/12/2015,2015160145,300,0,Housing Grant,Supplies & Services
Leeds City Council,http://opendatacommunities.org/id/metropolitan-district-council/leeds,18/08/2016,Environment & Housing,Garforth Net,02/10/2015,2015160146,1000,0,Housing Grant,Supplies & Services
Leeds City Council,http://opendatacommunities.org/id/metropolitan-district-council/leeds,18/08/2016,Environment & Housing,Friends Of Thorpe (P.T.A),15/06/2015,2015160147,1742,0,Housing Grant,Supplies & Services
Leeds City Council,http://opendatacommunities.org/id/metropolitan-district-council/leeds,18/08/2016,Environment & Housing,Friends Of Holbeck Social Group,03/11/2015,2015160148,11000,0,Housing Grant,Supplies & Services
Leeds City Council,http://opendatacommunities.org/id/metropolitan-district-council/leeds,18/08/2016,Environment & Housing,Fairfield Enterprise And Community Cic,11/03/2016,2015160149,480,0,Housing Grant,Supplies & Services
Leeds City Council,http://opendatacommunities.org/id/metropolitan-district-council/leeds,18/08/2016,Environment & Housing,Eastleigh Senior Citizens Group,17/12/2015,2015160150,280,0,Housing Grant,Supplies & Services
Leeds City Council,http://opendatacommunities.org/id/metropolitan-district-council/leeds,18/08/2016,Environment & Housing,East North East Area Support Team,29/10/2015,2015160151,1000,0,Housing Grant,Supplies & Services
Leeds City Council,http://opendatacommunities.org/id/metropolitan-district-council/leeds,18/08/2016,Environment & Housing,East Ardsley Community Association,28/09/2015,2015160152,300,0,Housing Grant,Supplies & Services
Leeds City Council,http://opendatacommunities.org/id/metropolitan-district-council/leeds,18/08/2016,Environment & Housing,Denshaw & Newlands Residents Association,09/10/2015,2015160153,450,0,Housing Grant,Supplies & Services
Leeds City Council,http://opendatacommunities.org/id/metropolitan-district-council/leeds,18/08/2016,Environment & Housing,Denbigh Social Club,20/11/2015,2015160154,130,0,Housing Grant,Supplies & Services
Leeds City Council,http://opendatacommunities.org/id/metropolitan-district-council/leeds,18/08/2016,Environment & Housing,Denbigh Social Club,30/10/2015,2015160155,100,0,Housing Grant,Supplies & Services
Leeds City Council,http://opendatacommunities.org/id/metropolitan-district-council/leeds,18/08/2016,Environment & Housing,Denbigh Social Club,12/06/2015,2015160156,200,0,Housing Grant,Supplies & Services
Leeds City Council,http://opendatacommunities.org/id/metropolitan-district-council/leeds,18/08/2016,Environment & Housing,Cross Green Community Group,19/10/2015,2015160157,100,0,Housing Grant,Supplies & Services
Leeds City Council,http://opendatacommunities.org/id/metropolitan-district-council/leeds,18/08/2016,Environment & Housing,Cross Green Community Group,13/07/2015,2015160158,1040,0,Housing Grant,Supplies & Services
Leeds City Council,http://opendatacommunities.org/id/metropolitan-district-council/leeds,18/08/2016,Environment & Housing,Cottingley In Bloom,22/01/2016,2015160159,2187.6,0,Housing Grant,Supplies & Services
Leeds City Council,http://opendatacommunities.org/id/metropolitan-district-council/leeds,18/08/2016,Environment & Housing,Community Unity,17/07/2015,2015160160,3500,0,Housing Grant,Supplies & Services
Leeds City Council,http://opendatacommunities.org/id/metropolitan-district-council/leeds,18/08/2016,Environment & Housing,Churwell Community Association,23/11/2015,2015160161,400,0,Housing Grant,Supplies & Services
Leeds City Council,http://opendatacommunities.org/id/metropolitan-district-council/leeds,18/08/2016,Environment & Housing,Chapeltown Development Trust,15/01/2016,2015160162,20000,0,Housing Grant,Supplies & Services
Leeds City Council,http://opendatacommunities.org/id/metropolitan-district-council/leeds,18/08/2016,Environment & Housing,Chapeltown Community Netball,22/03/2016,2015160163,999.98,0,Housing Grant,Supplies & Services
Leeds City Council,http://opendatacommunities.org/id/metropolitan-district-council/leeds,18/08/2016,Environment & Housing,Chapeltown Community Cmc Play Scheme,04/03/2016,2015160164,920,0,Housing Grant,Supplies & Services
Leeds City Council,http://opendatacommunities.org/id/metropolitan-district-council/leeds,18/08/2016,Environment & Housing,Chapeltown Arts Festival Ltd,02/07/2015,2015160165,1000,0,Housing Grant,Supplies & Services
Leeds City Council,http://opendatacommunities.org/id/metropolitan-district-council/leeds,18/08/2016,Environment & Housing,Cfydc (Chance),02/07/2015,2015160166,2100,0,Housing Grant,Supplies & Services
Leeds City Council,http://opendatacommunities.org/id/metropolitan-district-council/leeds,18/08/2016,Environment & Housing,Catch Community Action To Change,20/11/2015,2015160167,15873,0,Housing Grant,Supplies & Services
Leeds City Council,http://opendatacommunities.org/id/metropolitan-district-council/leeds,18/08/2016,Environment & Housing,Catch Community Action To Change,22/07/2015,2015160168,1920,0,Housing Grant,Supplies & Services
Leeds City Council,http://opendatacommunities.org/id/metropolitan-district-council/leeds,18/08/2016,Environment & Housing,Carlton Village Residents Association,26/11/2015,2015160169,100,0,Housing Grant,Supplies & Services
Leeds City Council,http://opendatacommunities.org/id/metropolitan-district-council/leeds,18/08/2016,Environment & Housing,Carlton In Bloom,20/10/2015,2015160170,600,0,Housing Grant,Supplies & Services
Leeds City Council,http://opendatacommunities.org/id/metropolitan-district-council/leeds,18/08/2016,Environment & Housing,Carlton In Bloom,02/09/2015,2015160171,600,0,Housing Grant,Supplies & Services
Leeds City Council,http://opendatacommunities.org/id/metropolitan-district-council/leeds,18/08/2016,Environment & Housing,Cardinal Court Tenants Association,30/10/2015,2015160172,100,0,Housing Grant,Supplies & Services
Leeds City Council,http://opendatacommunities.org/id/metropolitan-district-council/leeds,18/08/2016,Environment & Housing,Cardinal Court Tenants Association,07/12/2015,2015160173,230,0,Housing Grant,Supplies & Services
Leeds City Council,http://opendatacommunities.org/id/metropolitan-district-council/leeds,18/08/2016,Environment & Housing,Cardinal Community Enterprise Project,30/10/2015,2015160174,300,0,Housing Grant,Supplies & Services
Leeds City Council,http://opendatacommunities.org/id/metropolitan-district-council/leeds,18/08/2016,Environment & Housing,Button Hill Residents Association,25/06/2015,2015160175,800,0,Housing Grant,Supplies & Services
Leeds City Council,http://opendatacommunities.org/id/metropolitan-district-council/leeds,18/08/2016,Environment & Housing,Burnsall Court Tenants Group,30/10/2015,2015160176,300,0,Housing Grant,Supplies & Services
Leeds City Council,http://opendatacommunities.org/id/metropolitan-district-council/leeds,18/08/2016,Environment & Housing,Burnsall Court Tenants Group,14/03/2016,2015160177,100,0,Housing Grant,Supplies & Services
Leeds City Council,http://opendatacommunities.org/id/metropolitan-district-council/leeds,18/08/2016,Environment & Housing,Burnsall Court Tenants Group,07/08/2015,2015160178,100,0,Housing Grant,Supplies & Services
Leeds City Council,http://opendatacommunities.org/id/metropolitan-district-council/leeds,18/08/2016,Environment & Housing,Burley Top Community Network,25/08/2015,2015160179,300,0,Housing Grant,Supplies & Services
Leeds City Council,http://opendatacommunities.org/id/metropolitan-district-council/leeds,18/08/2016,Environment & Housing,Brookleigh Social Committee,03/07/2015,2015160180,1389.86,0,Housing Grant,Supplies & Services
Leeds City Council,http://opendatacommunities.org/id/metropolitan-district-council/leeds,18/08/2016,Environment & Housing,Broadfields,18/09/2015,2015160181,843.08,0,Housing Grant,Supplies & Services
Leeds City Council,http://opendatacommunities.org/id/metropolitan-district-council/leeds,18/08/2016,Environment & Housing,Boston Spa Village Hall,01/09/2015,2015160182,40,0,Housing Grant,Supplies & Services
Leeds City Council,http://opendatacommunities.org/id/metropolitan-district-council/leeds,18/08/2016,Environment & Housing,Billing View Community Group,05/02/2016,2015160183,100,0,Housing Grant,Supplies & Services
Leeds City Council,http://opendatacommunities.org/id/metropolitan-district-council/leeds,18/08/2016,Environment & Housing,Better Leeds Communities,01/02/2016,2015160184,5500,0,Housing Grant,Supplies & Services
Leeds City Council,http://opendatacommunities.org/id/metropolitan-district-council/leeds,18/08/2016,Environment & Housing,Barncroft Residents Association,26/11/2015,2015160185,200,0,Housing Grant,Supplies & Services
Leeds City Council,http://opendatacommunities.org/id/metropolitan-district-council/leeds,18/08/2016,Environment & Housing,Barncroft Residents Association,10/08/2015,2015160186,200,0,Housing Grant,Supplies & Services
Leeds City Council,http://opendatacommunities.org/id/metropolitan-district-council/leeds,18/08/2016,Environment & Housing,Barncroft Residents Association,18/09/2015,2015160187,200,0,Housing Grant,Supplies & Services
Leeds City Council,http://opendatacommunities.org/id/metropolitan-district-council/leeds,18/08/2016,Environment & Housing,Barca - Leeds,01/10/2015,2015160188,696.53,0,Housing Grant,Supplies & Services
Leeds City Council,http://opendatacommunities.org/id/metropolitan-district-council/leeds,18/08/2016,Environment & Housing,Barca - Leeds,25/08/2015,2015160189,2078,0,Housing Grant,Supplies & Services
Leeds City Council,http://opendatacommunities.org/id/metropolitan-district-council/leeds,18/08/2016,Environment & Housing,Atlanta Street Activity Group,25/08/2015,2015160190,100,0,Housing Grant,Supplies & Services
Leeds City Council,http://opendatacommunities.org/id/metropolitan-district-council/leeds,18/08/2016,Environment & Housing,Atlanta Street Activity Group,30/04/2015,2015160191,949,0,Housing Grant,Supplies & Services
Leeds City Council,http://opendatacommunities.org/id/metropolitan-district-council/leeds,18/08/2016,Environment & Housing,Ashlea Court Tenants Association,23/02/2016,2015160192,165,0,Housing Grant,Supplies & Services
Leeds City Council,http://opendatacommunities.org/id/metropolitan-district-council/leeds,18/08/2016,Environment & Housing,Ashlea Court Tenants Association,14/03/2016,2015160193,165,0,Housing Grant,Supplies & Services
Leeds City Council,http://opendatacommunities.org/id/metropolitan-district-council/leeds,18/08/2016,Environment & Housing,Ashlea Court Tenants Association,14/03/2016,2015160194,384,0,Housing Grant,Supplies & Services
Leeds City Council,http://opendatacommunities.org/id/metropolitan-district-council/leeds,18/08/2016,Environment & Housing,Armley Junk-Tion,25/09/2015,2015160195,200,0,Housing Grant,Supplies & Services
Leeds City Council,http://opendatacommunities.org/id/metropolitan-district-council/leeds,18/08/2016,Environment & Housing,Armley Helping Hands,06/11/2015,2015160196,813,0,Housing Grant,Supplies & Services
Leeds City Council,http://opendatacommunities.org/id/metropolitan-district-council/leeds,18/08/2016,Environment & Housing,Ardsley Bowling Club,24/12/2015,2015160197,750,0,Housing Grant,Supplies & Services
Leeds City Council,http://opendatacommunities.org/id/metropolitan-district-council/leeds,18/08/2016,Environment & Housing,Adel Crag Community Association,30/10/2015,2015160198,100,0,Housing Grant,Supplies & Services
Leeds City Council,http://opendatacommunities.org/id/metropolitan-district-council/leeds,18/08/2016,Environment & Housing,Leeds City Credit Union,10/06/2015,2015160199,90000,0,Housing Grant,Supplies & Services
Leeds City Council,http://opendatacommunities.org/id/metropolitan-district-council/leeds,18/08/2016,Environment & Housing,Clayton Residents Association,26/10/2015,2015160200,200,0,Housing Grant,Supplies & Services
Leeds City Council,http://opendatacommunities.org/id/metropolitan-district-council/leeds,18/08/2016,Environment & Housing,GIPSIL,31/03/2016,2015160201,18000,0,Housing Grant,Supplies & Services
Leeds City Council,http://opendatacommunities.org/id/metropolitan-district-council/leeds,18/08/2016,Environment & Housing,Pontefract Lane Community Association,05/02/2016,2015160202,300,0,Housing Grant,Supplies & Services
Leeds City Council,http://opendatacommunities.org/id/metropolitan-district-council/leeds,18/08/2016,Environment & Housing,St Peters School Scouts,07/01/2016,2015160203,2000,0,Housing Grant,Supplies & Services
Leeds City Council,http://opendatacommunities.org/id/metropolitan-district-council/leeds,18/08/2016,Environment & Housing,RABS Project,25/08/2015,2015160204,3783,0,Housing Grant,Supplies & Services
Leeds City Council,http://opendatacommunities.org/id/metropolitan-district-council/leeds,18/08/2016,Environment & Housing,Safe Haven in Paradise,07/01/2016,2015160205,1000,0,Housing Grant,Supplies & Services
Leeds City Council,http://opendatacommunities.org/id/metropolitan-district-council/leeds,18/08/2016,Children's Services,West Yorkshire Playhouse,29/01/2016,2015160206,4775,0,Creative Employment Grant,Supplies & Services
Leeds City Council,http://opendatacommunities.org/id/metropolitan-district-council/leeds,18/08/2016,Children's Services,West Yorkshire Playhouse,11/12/2015,2015160207,9550,0,Creative Employment Grant,Supplies & Services
Leeds City Council,http://opendatacommunities.org/id/metropolitan-district-council/leeds,18/08/2016,Children's Services,West Yorkshire Playhouse,09/10/2015,2015160208,7050,0,Creative Employment Grant,Supplies & Services
Leeds City Council,http://opendatacommunities.org/id/metropolitan-district-council/leeds,18/08/2016,Children's Services,West Yorkshire Playhouse,30/09/2015,2015160209,6500,0,Creative Employment Grant,Supplies & Services
Leeds City Council,http://opendatacommunities.org/id/metropolitan-district-council/leeds,18/08/2016,Children's Services,Leeds Grand Theatre & Opera,24/03/2016,2015160210,4775,0,Creative Employment Grant,Supplies & Services
Leeds City Council,http://opendatacommunities.org/id/metropolitan-district-council/leeds,18/08/2016,Children's Services,Leeds Grand Theatre & Opera,09/10/2015,2015160211,4775,0,Creative Employment Grant,Supplies & Services
Leeds City Council,http://opendatacommunities.org/id/metropolitan-district-council/leeds,18/08/2016,Children's Services,Leeds Grand Theatre & Opera,16/06/2015,2015160212,2000,0,Creative Employment Grant,Supplies & Services
Leeds City Council,http://opendatacommunities.org/id/metropolitan-district-council/leeds,18/08/2016,Children's Services,East Street Arts,24/03/2016,2015160213,4775,0,Creative Employment Grant,Supplies & Services
Leeds City Council,http://opendatacommunities.org/id/metropolitan-district-council/leeds,18/08/2016,Children's Services,Vidia Sagar Cultural Group,25/01/2016,2015160214,131.2,0,Supplementary School Grant,Supplies & Services
Leeds City Council,http://opendatacommunities.org/id/metropolitan-district-council/leeds,18/08/2016,Children's Services,Persian Association,25/01/2016,2015160215,221.65,0,Supplementary School Grant,Supplies & Services
Leeds City Council,http://opendatacommunities.org/id/metropolitan-district-council/leeds,18/08/2016,Children's Services,Leeds Swahili Cultural Community,25/01/2016,2015160216,2520,0,Supplementary School Grant,Supplies & Services
Leeds City Council,http://opendatacommunities.org/id/metropolitan-district-council/leeds,18/08/2016,Children's Services,Leeds Refugee Forum,25/01/2016,2015160217,1800,0,Supplementary School Grant,Supplies & Services
Leeds City Council,http://opendatacommunities.org/id/metropolitan-district-council/leeds,18/08/2016,Children's Services,Leeds Foster Carers Assocation,08/06/2015,2015160218,300,0,Children's Services Grant,Supplies & Services
Leeds City Council,http://opendatacommunities.org/id/metropolitan-district-council/leeds,18/08/2016,Children's Services,Leeds Foster Carers Assocation,06/05/2015,2015160219,3000,0,Children's Services Grant,Supplies & Services
Leeds City Council,http://opendatacommunities.org/id/metropolitan-district-council/leeds,18/08/2016,Children's Services,Hamara Supplementary School,25/01/2016,2015160220,2610,0,Supplementary School Grant,Supplies & Services
Leeds City Council,http://opendatacommunities.org/id/metropolitan-district-council/leeds,18/08/2016,Children's Services,4 Children Direct Ltd,11/05/2015,2015160221,27985,0,Children's Services Grant,Supplies & Services
Leeds City Council,http://opendatacommunities.org/id/metropolitan-district-council/leeds,18/08/2016,Children's Services,4 Children Direct Ltd,05/08/2015,2015160222,27985,0,Children's Services Grant,Supplies & Services
Leeds City Council,http://opendatacommunities.org/id/metropolitan-district-council/leeds,18/08/2016,Children's Services,4 Children Direct Ltd,15/10/2015,2015160223,27985,0,Children's Services Grant,Supplies & Services
Leeds City Council,http://opendatacommunities.org/id/metropolitan-district-council/leeds,18/08/2016,Children's Services,4 Children Direct Ltd,04/02/2016,2015160224,27985,0,Children's Services Grant,Supplies & Services
Leeds City Council,http://opendatacommunities.org/id/metropolitan-district-council/leeds,18/08/2016,Children's Services,Voluntary Action-Leeds,15/01/2016,2015160225,21375,0,Children's Services Grant,Supplies & Services
Leeds City Council,http://opendatacommunities.org/id/metropolitan-district-council/leeds,18/08/2016,Children's Services,Together For Peace,02/12/2015,2015160226,2385,0,Children's Services Grant,Supplies & Services
Leeds City Council,http://opendatacommunities.org/id/metropolitan-district-council/leeds,18/08/2016,Children's Services,Together For Peace,28/09/2015,2015160227,1000,0,Children's Services Grant,Supplies & Services
Leeds City Council,http://opendatacommunities.org/id/metropolitan-district-council/leeds,18/08/2016,Children's Services,The Works Skatepark Charity,10/12/2015,2015160228,2640,0,Children's Services Grant,Supplies & Services
Leeds City Council,http://opendatacommunities.org/id/metropolitan-district-council/leeds,18/08/2016,Children's Services,TCS Services (The Children's Society),24/09/2015,2015160229,23712,0,Children's Services Grant,Supplies & Services
Leeds City Council,http://opendatacommunities.org/id/metropolitan-district-council/leeds,18/08/2016,Children's Services,TCS Services (The Children's Society),08/05/2015,2015160230,23712,0,Children's Services Grant,Supplies & Services
Leeds City Council,http://opendatacommunities.org/id/metropolitan-district-council/leeds,18/08/2016,Children's Services,Swarcliffe Community Playscheme,06/07/2015,2015160231,3000,0,Children's Services Grant,Supplies & Services
Leeds City Council,http://opendatacommunities.org/id/metropolitan-district-council/leeds,18/08/2016,Children's Services,Phoenix Dance Theatre,08/05/2015,2015160232,5416,0,Children's Services Grant,Supplies & Services
Leeds City Council,http://opendatacommunities.org/id/metropolitan-district-council/leeds,18/08/2016,Children's Services,People Matters (Leeds) Ltd,08/05/2015,2015160233,10498,0,Children's Services Grant,Supplies & Services
Leeds City Council,http://opendatacommunities.org/id/metropolitan-district-council/leeds,18/08/2016,Children's Services,Morley Community Church,07/07/2015,2015160234,979.79,0,Children's Services Grant,Supplies & Services
Leeds City Council,http://opendatacommunities.org/id/metropolitan-district-council/leeds,18/08/2016,Children's Services,Meanwood Valley Urban Farm Ltd,12/08/2015,2015160235,3000,0,Children's Services Grant,Supplies & Services
Leeds City Council,http://opendatacommunities.org/id/metropolitan-district-council/leeds,18/08/2016,Children's Services,Meanwood Junior Playscheme,13/07/2015,2015160236,3000,0,Children's Services Grant,Supplies & Services
Leeds City Council,http://opendatacommunities.org/id/metropolitan-district-council/leeds,18/08/2016,Children's Services,Meanwood Community Centre No 2 Account,16/07/2015,2015160237,3000,0,Children's Services Grant,Supplies & Services
Leeds City Council,http://opendatacommunities.org/id/metropolitan-district-council/leeds,18/08/2016,Children's Services,Ls14 Trust,12/08/2015,2015160238,1600,0,Children's Services Grant,Supplies & Services
Leeds City Council,http://opendatacommunities.org/id/metropolitan-district-council/leeds,18/08/2016,Children's Services,Leeds Weekend Care Association,08/05/2015,2015160239,9004,0,Children's Services Grant,Supplies & Services
Leeds City Council,http://opendatacommunities.org/id/metropolitan-district-council/leeds,18/08/2016,Children's Services,Leeds Play Network,08/05/2015,2015160240,12653,0,Children's Services Grant,Supplies & Services
Leeds City Council,http://opendatacommunities.org/id/metropolitan-district-council/leeds,18/08/2016,Children's Services,Leeds Play Network,07/07/2015,2015160241,2900,0,Children's Services Grant,Supplies & Services
Leeds City Council,http://opendatacommunities.org/id/metropolitan-district-council/leeds,18/08/2016,Children's Services,Leeds Mencap Ltd,30/10/2015,2015160242,21177,0,Children's Services Grant,Supplies & Services
Leeds City Council,http://opendatacommunities.org/id/metropolitan-district-council/leeds,18/08/2016,Children's Services,Leeds Mencap Ltd,13/05/2015,2015160243,21777,0,Children's Services Grant,Supplies & Services
Leeds City Council,http://opendatacommunities.org/id/metropolitan-district-council/leeds,18/08/2016,Children's Services,Friends Of Middleton Park,13/08/2015,2015160244,2000,0,Children's Services Grant,Supplies & Services
Leeds City Council,http://opendatacommunities.org/id/metropolitan-district-council/leeds,18/08/2016,Children's Services,Community Unity,10/09/2015,2015160245,1600,0,Children's Services Grant,Supplies & Services
Leeds City Council,http://opendatacommunities.org/id/metropolitan-district-council/leeds,18/08/2016,Children's Services,Christ Church Armley Community Projects,24/09/2015,2015160246,3000,0,Children's Services Grant,Supplies & Services
Leeds City Council,http://opendatacommunities.org/id/metropolitan-district-council/leeds,18/08/2016,Children's Services,Chapeltown Community Cmc Play Scheme,07/07/2015,2015160247,3000,0,Children's Services Grant,Supplies & Services
Leeds City Council,http://opendatacommunities.org/id/metropolitan-district-council/leeds,18/08/2016,Children's Services,Better Leeds Communities,04/09/2015,2015160248,2655,0,Children's Services Grant,Supplies & Services
Leeds City Council,http://opendatacommunities.org/id/metropolitan-district-council/leeds,18/08/2016,Children's Services,Barnardos,20/11/2015,2015160249,12083.34,0,Children's Services Grant,Supplies & Services
Leeds City Council,http://opendatacommunities.org/id/metropolitan-district-council/leeds,18/08/2016,Children's Services,Barnardos,16/02/2016,2015160250,4139.5,0,Children's Services Grant,Supplies & Services
Leeds City Council,http://opendatacommunities.org/id/metropolitan-district-council/leeds,18/08/2016,Children's Services,Barnardos,19/02/2016,2015160251,21750,0,Children's Services Grant,Supplies & Services
Leeds City Council,http://opendatacommunities.org/id/metropolitan-district-council/leeds,18/08/2016,Children's Services,Barnardos,26/06/2015,2015160252,4751.25,0,Children's Services Grant,Supplies & Services
Leeds City Council,http://opendatacommunities.org/id/metropolitan-district-council/leeds,18/08/2016,Children's Services,Barnardos,12/08/2015,2015160253,4139.5,0,Children's Services Grant,Supplies & Services
Leeds City Council,http://opendatacommunities.org/id/metropolitan-district-council/leeds,18/08/2016,Children's Services,Barnardos,28/08/2015,2015160254,4139.5,0,Children's Services Grant,Supplies & Services
Leeds City Council,http://opendatacommunities.org/id/metropolitan-district-council/leeds,18/08/2016,Children's Services,Barnardos,10/08/2015,2015160255,7250,0,Children's Services Grant,Supplies & Services
Leeds City Council,http://opendatacommunities.org/id/metropolitan-district-council/leeds,18/08/2016,Children's Services,Barnardos,03/08/2015,2015160256,4139.5,0,Children's Services Grant,Supplies & Services
Leeds City Council,http://opendatacommunities.org/id/metropolitan-district-council/leeds,18/08/2016,Children's Services,Barnardos,16/11/2015,2015160257,4173.75,0,Children's Services Grant,Supplies & Services
Leeds City Council,http://opendatacommunities.org/id/metropolitan-district-council/leeds,18/08/2016,Children's Services,Barnardos,12/11/2015,2015160258,40368.25,0,Children's Services Grant,Supplies & Services
Leeds City Council,http://opendatacommunities.org/id/metropolitan-district-council/leeds,18/08/2016,Children's Services,Barnardos,08/01/2016,2015160259,50164.2,0,Children's Services Grant,Supplies & Services
Leeds City Council,http://opendatacommunities.org/id/metropolitan-district-council/leeds,18/08/2016,Children's Services,Barnardos,12/02/2016,2015160260,41803.5,0,Children's Services Grant,Supplies & Services
Leeds City Council,http://opendatacommunities.org/id/metropolitan-district-council/leeds,18/08/2016,Children's Services,Barnardos,12/02/2016,2015160261,4173.75,0,Children's Services Grant,Supplies & Services
Leeds City Council,http://opendatacommunities.org/id/metropolitan-district-council/leeds,18/08/2016,Children's Services,Barnardos,12/02/2016,2015160262,40368.25,0,Children's Services Grant,Supplies & Services
Leeds City Council,http://opendatacommunities.org/id/metropolitan-district-council/leeds,18/08/2016,Children's Services,Barnardos,07/07/2015,2015160263,40000,0,Children's Services Grant,Supplies & Services
Leeds City Council,http://opendatacommunities.org/id/metropolitan-district-council/leeds,18/08/2016,Children's Services,Barnardos,03/07/2015,2015160264,40368.25,0,Children's Services Grant,Supplies & Services
Leeds City Council,http://opendatacommunities.org/id/metropolitan-district-council/leeds,18/08/2016,Children's Services,Barnardos,31/07/2015,2015160265,41803.5,0,Children's Services Grant,Supplies & Services
Leeds City Council,http://opendatacommunities.org/id/metropolitan-district-council/leeds,18/08/2016,Children's Services,Barnardos,31/07/2015,2015160266,4173.75,0,Children's Services Grant,Supplies & Services
Leeds City Council,http://opendatacommunities.org/id/metropolitan-district-council/leeds,18/08/2016,Children's Services,Asha Neighbourhood Project,09/07/2015,2015160267,3000,0,Children's Services Grant,Supplies & Services
Leeds City Council,http://opendatacommunities.org/id/metropolitan-district-council/leeds,18/08/2016,Children's Services,Armley Juniors,09/07/2015,2015160268,3000,0,Children's Services Grant,Supplies & Services
Leeds City Council,http://opendatacommunities.org/id/metropolitan-district-council/leeds,18/08/2016,Children's Services,Aireborough Supported Activities Scheme,02/11/2015,2015160269,20813,0,Children's Services Grant,Supplies & Services
Leeds City Council,http://opendatacommunities.org/id/metropolitan-district-council/leeds,18/08/2016,Children's Services,Aireborough Supported Activities Scheme,29/07/2015,2015160270,10000,0,Children's Services Grant,Supplies & Services
Leeds City Council,http://opendatacommunities.org/id/metropolitan-district-council/leeds,18/08/2016,Children's Services,Aireborough Supported Activities Scheme,08/05/2015,2015160271,20813,0,Children's Services Grant,Supplies & Services
Leeds City Council,http://opendatacommunities.org/id/metropolitan-district-council/leeds,18/08/2016,Children's Services,Aireborough Supported Activities Scheme,02/06/2015,2015160272,7746,0,Children's Services Grant,Supplies & Services
Leeds City Council,http://opendatacommunities.org/id/metropolitan-district-council/leeds,18/08/2016,Children's Services,Ymes Cic,24/02/2016,2015160273,200,0,Children's Services Grant,Supplies & Services
Leeds City Council,http://opendatacommunities.org/id/metropolitan-district-council/leeds,18/08/2016,Children's Services,Ymes Cic,24/02/2016,2015160274,500,0,Children's Services Grant,Supplies & Services
Leeds City Council,http://opendatacommunities.org/id/metropolitan-district-council/leeds,18/08/2016,Children's Services,Sunshire And Smiles,29/05/2015,2015160275,9420,0,Children's Services Grant,Supplies & Services
Leeds City Council,http://opendatacommunities.org/id/metropolitan-district-council/leeds,18/08/2016,Children's Services,Leeds Mencap 2-8 Playscheme,28/10/2015,2015160276,20000,0,Children's Services Grant,Supplies & Services
Leeds City Council,http://opendatacommunities.org/id/metropolitan-district-council/leeds,18/08/2016,Children's Services,Leeds Mencap 2-8 Playscheme,17/02/2016,2015160277,10000,0,Children's Services Grant,Supplies & Services
Leeds City Council,http://opendatacommunities.org/id/metropolitan-district-council/leeds,18/08/2016,Children's Services,Churwell Cic,28/10/2015,2015160278,40000,0,Children's Services Grant,Supplies & Services
Leeds City Council,http://opendatacommunities.org/id/metropolitan-district-council/leeds,18/08/2016,Children's Services,Voluntary Action-Leeds,04/12/2015,2015160279,21375,0,Infrastructure support grant,Supplies & Services
Leeds City Council,http://opendatacommunities.org/id/metropolitan-district-council/leeds,18/08/2016,Children's Services,Voluntary Action-Leeds,17/07/2015,2015160280,21375,0,Infrastructure support grant,Supplies & Services
Leeds City Council,http://opendatacommunities.org/id/metropolitan-district-council/leeds,18/08/2016,Adult Social Care,Touchstone - Leeds,28/05/2015,2015160281,453.44,0,Adult Social Care Grant,Supplies & Services
Leeds City Council,http://opendatacommunities.org/id/metropolitan-district-council/leeds,18/08/2016,Adult Social Care,The Life Story Network Cic,16/06/2015,2015160282,1485,0,Adult Social Care Grant,Supplies & Services
Leeds City Council,http://opendatacommunities.org/id/metropolitan-district-council/leeds,18/08/2016,Adult Social Care,Leeds Community Foundation,16/03/2016,2015160283,10000,0,Adult Social Care Grant,Supplies & Services
Leeds City Council,http://opendatacommunities.org/id/metropolitan-district-council/leeds,18/08/2016,Adult Social Care,Yorkshire Dance Centre Trust Co Ltd,01/04/2015,2015160284,7697.25,0,Adult Social Care Grant,Supplies & Services
Leeds City Council,http://opendatacommunities.org/id/metropolitan-district-council/leeds,18/08/2016,Adult Social Care,Wrvs St James Luncheon Club,29/06/2015,2015160285,1291,0,Luncheon Club Grant,Supplies & Services
Leeds City Council,http://opendatacommunities.org/id/metropolitan-district-council/leeds,18/08/2016,Adult Social Care,Woodhouse Hill Luncheon Club,18/06/2015,2015160286,1458,0,Luncheon Club Grant,Supplies & Services
Leeds City Council,http://opendatacommunities.org/id/metropolitan-district-council/leeds,18/08/2016,Adult Social Care,William Merritt Centre,01/10/2015,2015160287,8131,0,Adult Social Care Grant,Supplies & Services
Leeds City Council,http://opendatacommunities.org/id/metropolitan-district-council/leeds,18/08/2016,Adult Social Care,William Merritt Centre,31/12/2015,2015160288,8131,0,Adult Social Care Grant,Supplies & Services
Leeds City Council,http://opendatacommunities.org/id/metropolitan-district-council/leeds,18/08/2016,Adult Social Care,William Merritt Centre,01/07/2015,2015160289,8131,0,Adult Social Care Grant,Supplies & Services
Leeds City Council,http://opendatacommunities.org/id/metropolitan-district-council/leeds,18/08/2016,Adult Social Care,William Merritt Centre,01/04/2015,2015160290,8131,0,Adult Social Care Grant,Supplies & Services
Leeds City Council,http://opendatacommunities.org/id/metropolitan-district-council/leeds,18/08/2016,Adult Social Care,Whitkirk Silver Lining Luncheon Club,29/06/2015,2015160291,1458,0,Luncheon Club Grant,Supplies & Services
Leeds City Council,http://opendatacommunities.org/id/metropolitan-district-council/leeds,18/08/2016,Adult Social Care,Whingate Methodist Luncheon Club,19/06/2015,2015160292,2246,0,Luncheon Club Grant,Supplies & Services
Leeds City Council,http://opendatacommunities.org/id/metropolitan-district-council/leeds,18/08/2016,Adult Social Care,Wednesday Luncheon Club (Owls),19/06/2015,2015160293,2246,0,Luncheon Club Grant,Supplies & Services
Leeds City Council,http://opendatacommunities.org/id/metropolitan-district-council/leeds,18/08/2016,Adult Social Care,Access Committee For Leeds,15/01/2016,2015160294,2000,0,Adult Social Care Grant,Supplies & Services
Leeds City Council,http://opendatacommunities.org/id/metropolitan-district-council/leeds,18/08/2016,Adult Social Care,Al Khidmat Centre,29/06/2015,2015160295,3507,0,Luncheon Club Grant,Supplies & Services
Leeds City Council,http://opendatacommunities.org/id/metropolitan-district-council/leeds,18/08/2016,Adult Social Care,Alwoodley Park Methodist Luncheon Club,09/07/2015,2015160296,1459,0,Luncheon Club Grant,Supplies & Services
Leeds City Council,http://opendatacommunities.org/id/metropolitan-district-council/leeds,18/08/2016,Adult Social Care,Armley Helping Hands Luncheon Club,30/06/2015,2015160297,2719,0,Luncheon Club Grant,Supplies & Services
Leeds City Council,http://opendatacommunities.org/id/metropolitan-district-council/leeds,18/08/2016,Adult Social Care,Belle Isle Elderly Winter Aid L/Club,09/07/2015,2015160298,1458,0,Luncheon Club Grant,Supplies & Services
Leeds City Council,http://opendatacommunities.org/id/metropolitan-district-council/leeds,18/08/2016,Adult Social Care,Bhi Eat Together Grow Together,10/07/2015,2015160299,2246,0,Luncheon Club Grant,Supplies & Services
Leeds City Council,http://opendatacommunities.org/id/metropolitan-district-council/leeds,18/08/2016,Adult Social Care,Bhojan Sangam Group,16/07/2015,2015160300,2246,0,Luncheon Club Grant,Supplies & Services
Leeds City Council,http://opendatacommunities.org/id/metropolitan-district-council/leeds,18/08/2016,Adult Social Care,Bramley Community Centre Luncheon Club,30/06/2015,2015160301,2719,0,Luncheon Club Grant,Supplies & Services
Leeds City Council,http://opendatacommunities.org/id/metropolitan-district-council/leeds,18/08/2016,Adult Social Care,Burmantofts Lunch Club,19/06/2015,2015160302,2246,0,Luncheon Club Grant,Supplies & Services
Leeds City Council,http://opendatacommunities.org/id/metropolitan-district-council/leeds,18/08/2016,Adult Social Care,Calverley Lunch Club,18/06/2015,2015160303,2246,0,Luncheon Club Grant,Supplies & Services
Leeds City Council,http://opendatacommunities.org/id/metropolitan-district-council/leeds,18/08/2016,Adult Social Care,Chapel Allerton Town Street Lunch Club,07/09/2015,2015160304,2246,0,Luncheon Club Grant,Supplies & Services
Leeds City Council,http://opendatacommunities.org/id/metropolitan-district-council/leeds,18/08/2016,Adult Social Care,Christ Church L/Club,09/07/2015,2015160305,2246,0,Luncheon Club Grant,Supplies & Services
Leeds City Council,http://opendatacommunities.org/id/metropolitan-district-council/leeds,18/08/2016,Adult Social Care,Cleveleys Court Social Fund,29/06/2015,2015160306,3507,0,Luncheon Club Grant,Supplies & Services
Leeds City Council,http://opendatacommunities.org/id/metropolitan-district-council/leeds,18/08/2016,Adult Social Care,Convent Of Mercy,19/06/2015,2015160307,1312,0,Luncheon Club Grant,Supplies & Services
Leeds City Council,http://opendatacommunities.org/id/metropolitan-district-council/leeds,18/08/2016,Adult Social Care,Cookridge Luncheon Club,19/06/2015,2015160308,2246,0,Luncheon Club Grant,Supplies & Services
Leeds City Council,http://opendatacommunities.org/id/metropolitan-district-council/leeds,18/08/2016,Adult Social Care,Crossgates Carers Group,17/03/2016,2015160309,300,0,Adult Social Care Grant,Supplies & Services
Leeds City Council,http://opendatacommunities.org/id/metropolitan-district-council/leeds,18/08/2016,Adult Social Care,Ebenezer Methodist Church Luncheon Club,30/06/2015,2015160310,2246,0,Luncheon Club Grant,Supplies & Services
Leeds City Council,http://opendatacommunities.org/id/metropolitan-district-council/leeds,18/08/2016,Adult Social Care,Ebor Gardens Luncheon Club,29/06/2015,2015160311,2246,0,Luncheon Club Grant,Supplies & Services
Leeds City Council,http://opendatacommunities.org/id/metropolitan-district-council/leeds,18/08/2016,Adult Social Care,Elmet Carers Group,17/03/2016,2015160312,300,0,Adult Social Care Grant,Supplies & Services
Leeds City Council,http://opendatacommunities.org/id/metropolitan-district-council/leeds,18/08/2016,Adult Social Care,Fairfield Community Centre Partnership,18/06/2015,2015160313,3940,0,Luncheon Club Grant,Supplies & Services
Leeds City Council,http://opendatacommunities.org/id/metropolitan-district-council/leeds,18/08/2016,Adult Social Care,Farnley Luncheon Club,29/06/2015,2015160314,2246,0,Luncheon Club Grant,Supplies & Services
Leeds City Council,http://opendatacommunities.org/id/metropolitan-district-council/leeds,18/08/2016,Adult Social Care,Farsley Live At Home Lunch Club,18/06/2015,2015160315,2246,0,Luncheon Club Grant,Supplies & Services
Leeds City Council,http://opendatacommunities.org/id/metropolitan-district-council/leeds,18/08/2016,Adult Social Care,Great & Little Preston Luncheon Club,18/06/2015,2015160316,2021,0,Luncheon Club Grant,Supplies & Services
Leeds City Council,http://opendatacommunities.org/id/metropolitan-district-council/leeds,18/08/2016,Adult Social Care,Halliday Court Luncheon Club,19/06/2015,2015160317,1458,0,Luncheon Club Grant,Supplies & Services
Leeds City Council,http://opendatacommunities.org/id/metropolitan-district-council/leeds,18/08/2016,Adult Social Care,Hamara Healthy Living Luncheon Club,19/06/2015,2015160318,2719,0,Luncheon Club Grant,Supplies & Services
Leeds City Council,http://opendatacommunities.org/id/metropolitan-district-council/leeds,18/08/2016,Adult Social Care,Hamwattan Centre Luncheon Club,19/06/2015,2015160319,2719,0,Luncheon Club Grant,Supplies & Services
Leeds City Council,http://opendatacommunities.org/id/metropolitan-district-council/leeds,18/08/2016,Adult Social Care,Hawksworth Oldies Lunch Club,09/07/2015,2015160320,2246,0,Luncheon Club Grant,Supplies & Services
Leeds City Council,http://opendatacommunities.org/id/metropolitan-district-council/leeds,18/08/2016,Adult Social Care,Hawksworth Tuesday Luncheon Club,30/06/2015,2015160321,2246,0,Luncheon Club Grant,Supplies & Services
Leeds City Council,http://opendatacommunities.org/id/metropolitan-district-council/leeds,18/08/2016,Adult Social Care,Headingley Methodist Church,19/06/2015,2015160322,2246,0,Luncheon Club Grant,Supplies & Services
Leeds City Council,http://opendatacommunities.org/id/metropolitan-district-council/leeds,18/08/2016,Adult Social Care,Holbeck Elderly Aid,30/06/2015,2015160323,2719,0,Luncheon Club Grant,Supplies & Services
Leeds City Council,http://opendatacommunities.org/id/metropolitan-district-council/leeds,18/08/2016,Adult Social Care,Holbeck Elderly Aid Brunch Club,30/06/2015,2015160324,1458,0,Luncheon Club Grant,Supplies & Services
Leeds City Council,http://opendatacommunities.org/id/metropolitan-district-council/leeds,18/08/2016,Adult Social Care,Hollins Grove Lunch Club,16/07/2015,2015160325,2246,0,Luncheon Club Grant,Supplies & Services
Leeds City Council,http://opendatacommunities.org/id/metropolitan-district-council/leeds,18/08/2016,Adult Social Care,Home Farm Trust Ltd,01/04/2015,2015160326,8931,0,Adult Social Care Grant,Supplies & Services
Leeds City Council,http://opendatacommunities.org/id/metropolitan-district-council/leeds,18/08/2016,Adult Social Care,Home Farm Trust Ltd,05/06/2015,2015160327,8931,0,Adult Social Care Grant,Supplies & Services
Leeds City Council,http://opendatacommunities.org/id/metropolitan-district-council/leeds,18/08/2016,Adult Social Care,Horsforth Live @ Home Luncheon Club,18/06/2015,2015160328,3507,0,Luncheon Club Grant,Supplies & Services
Leeds City Council,http://opendatacommunities.org/id/metropolitan-district-council/leeds,18/08/2016,Adult Social Care,International Caribbean Luncheon Club,18/06/2015,2015160329,1458,0,Luncheon Club Grant,Supplies & Services
Leeds City Council,http://opendatacommunities.org/id/metropolitan-district-council/leeds,18/08/2016,Adult Social Care,Kentmere Centre Luncheon Club,18/06/2015,2015160330,3940,0,Luncheon Club Grant,Supplies & Services
Leeds City Council,http://opendatacommunities.org/id/metropolitan-district-council/leeds,18/08/2016,Adult Social Care,L.I.H.H. Friday Club,09/07/2015,2015160331,2246,0,Luncheon Club Grant,Supplies & Services
Leeds City Council,http://opendatacommunities.org/id/metropolitan-district-council/leeds,18/08/2016,Adult Social Care,Leeds Black Elders Association,09/07/2015,2015160332,1458,0,Luncheon Club Grant,Supplies & Services
Leeds City Council,http://opendatacommunities.org/id/metropolitan-district-council/leeds,18/08/2016,Adult Social Care,Leeds Chinese Community Elderley,18/06/2015,2015160333,3507,0,Luncheon Club Grant,Supplies & Services
Leeds City Council,http://opendatacommunities.org/id/metropolitan-district-council/leeds,18/08/2016,Adult Social Care,Leeds Involving People,31/12/2015,2015160334,11666,0,Adult Social Care Grant,Supplies & Services
Leeds City Council,http://opendatacommunities.org/id/metropolitan-district-council/leeds,18/08/2016,Adult Social Care,Leeds Involving People,01/10/2015,2015160335,11666,0,Adult Social Care Grant,Supplies & Services
Leeds City Council,http://opendatacommunities.org/id/metropolitan-district-council/leeds,18/08/2016,Adult Social Care,Leeds Involving People,01/07/2015,2015160336,11666,0,Adult Social Care Grant,Supplies & Services
Leeds City Council,http://opendatacommunities.org/id/metropolitan-district-council/leeds,18/08/2016,Adult Social Care,Leeds Involving People,01/04/2015,2015160337,10416,0,Adult Social Care Grant,Supplies & Services
Leeds City Council,http://opendatacommunities.org/id/metropolitan-district-council/leeds,18/08/2016,Adult Social Care,Leeds Vietnamese Elderly Group,18/06/2015,2015160338,2246,0,Luncheon Club Grant,Supplies & Services
Leeds City Council,http://opendatacommunities.org/id/metropolitan-district-council/leeds,18/08/2016,Adult Social Care,Leep1,01/04/2015,2015160339,2845.06,0,Adult Social Care Grant,Supplies & Services
Leeds City Council,http://opendatacommunities.org/id/metropolitan-district-council/leeds,18/08/2016,Adult Social Care,Leep1,05/06/2015,2015160340,2845.06,0,Adult Social Care Grant,Supplies & Services
Leeds City Council,http://opendatacommunities.org/id/metropolitan-district-council/leeds,18/08/2016,Adult Social Care,Mahila Samiti Kitchen Luncheon Club,14/09/2015,2015160341,2246,0,Luncheon Club Grant,Supplies & Services
Leeds City Council,http://opendatacommunities.org/id/metropolitan-district-council/leeds,18/08/2016,Adult Social Care,Middleton Elderly Aid Luncheon Club,19/06/2015,2015160342,3507,0,Luncheon Club Grant,Supplies & Services
Leeds City Council,http://opendatacommunities.org/id/metropolitan-district-council/leeds,18/08/2016,Adult Social Care,Moorside Tara Luncheon Club,09/07/2015,2015160343,2246,0,Luncheon Club Grant,Supplies & Services
Leeds City Council,http://opendatacommunities.org/id/metropolitan-district-council/leeds,18/08/2016,Adult Social Care,Moortown Baptist Church,09/07/2015,2015160344,1458,0,Luncheon Club Grant,Supplies & Services
Leeds City Council,http://opendatacommunities.org/id/metropolitan-district-council/leeds,18/08/2016,Adult Social Care,Morley Elderly Action Luncheon Club,19/06/2015,2015160345,2246,0,Luncheon Club Grant,Supplies & Services
Leeds City Council,http://opendatacommunities.org/id/metropolitan-district-council/leeds,18/08/2016,Adult Social Care,Morley St Peters Luncheon Club,18/06/2015,2015160346,2246,0,Luncheon Club Grant,Supplies & Services
Leeds City Council,http://opendatacommunities.org/id/metropolitan-district-council/leeds,18/08/2016,Adult Social Care,Namaste,29/06/2015,2015160347,2246,0,Luncheon Club Grant,Supplies & Services
Leeds City Council,http://opendatacommunities.org/id/metropolitan-district-council/leeds,18/08/2016,Adult Social Care,New Wortley Community Association,19/06/2015,2015160348,2246,0,Luncheon Club Grant,Supplies & Services
Leeds City Council,http://opendatacommunities.org/id/metropolitan-district-council/leeds,18/08/2016,Adult Social Care,North & West Yorkshire Asbah,08/10/2015,2015160349,300,0,Adult Social Care Grant,Supplies & Services
Leeds City Council,http://opendatacommunities.org/id/metropolitan-district-council/leeds,18/08/2016,Adult Social Care,Northcall Swingers Luncheon Club,15/07/2015,2015160350,1458,0,Luncheon Club Grant,Supplies & Services
Leeds City Council,http://opendatacommunities.org/id/metropolitan-district-council/leeds,18/08/2016,Adult Social Care,Oakwood Luncheon Club,16/07/2015,2015160351,2246,0,Luncheon Club Grant,Supplies & Services
Leeds City Council,http://opendatacommunities.org/id/metropolitan-district-council/leeds,18/08/2016,Adult Social Care,Opal Luncheon Club,29/06/2015,2015160352,3507,0,Luncheon Club Grant,Supplies & Services
Leeds City Council,http://opendatacommunities.org/id/metropolitan-district-council/leeds,18/08/2016,Adult Social Care,Open Country,05/06/2015,2015160353,8106.25,0,Adult Social Care Grant,Supplies & Services
Leeds City Council,http://opendatacommunities.org/id/metropolitan-district-council/leeds,18/08/2016,Adult Social Care,Open Country,01/04/2015,2015160354,8106.25,0,Adult Social Care Grant,Supplies & Services
Leeds City Council,http://opendatacommunities.org/id/metropolitan-district-council/leeds,18/08/2016,Adult Social Care,Otley Action For Older People Tuesday Lunch Club,18/06/2015,2015160355,2246,0,Luncheon Club Grant,Supplies & Services
Leeds City Council,http://opendatacommunities.org/id/metropolitan-district-council/leeds,18/08/2016,Adult Social Care,Otley Action Friendship Group,18/06/2015,2015160356,2246,0,Luncheon Club Grant,Supplies & Services
Leeds City Council,http://opendatacommunities.org/id/metropolitan-district-council/leeds,18/08/2016,Adult Social Care,Parivar (Family) Lunch Club,09/07/2015,2015160357,1312,0,Luncheon Club Grant,Supplies & Services
Leeds City Council,http://opendatacommunities.org/id/metropolitan-district-council/leeds,18/08/2016,Adult Social Care,Polish Day Centre,18/06/2015,2015160358,2246,0,Luncheon Club Grant,Supplies & Services
Leeds City Council,http://opendatacommunities.org/id/metropolitan-district-council/leeds,18/08/2016,Adult Social Care,Pool & Arthington Lunch Club,19/06/2015,2015160359,2246,0,Luncheon Club Grant,Supplies & Services
Leeds City Council,http://opendatacommunities.org/id/metropolitan-district-council/leeds,18/08/2016,Adult Social Care,Pudsey Live @ Home Friday Luncheon Club,17/06/2015,2015160360,2246,0,Luncheon Club Grant,Supplies & Services
Leeds City Council,http://opendatacommunities.org/id/metropolitan-district-council/leeds,18/08/2016,Adult Social Care,Pyramid Of Arts,05/06/2015,2015160361,9984.75,0,Adult Social Care Grant,Supplies & Services
Leeds City Council,http://opendatacommunities.org/id/metropolitan-district-council/leeds,18/08/2016,Adult Social Care,Pyramid Of Arts,01/04/2015,2015160362,9984.75,0,Adult Social Care Grant,Supplies & Services
Leeds City Council,http://opendatacommunities.org/id/metropolitan-district-council/leeds,18/08/2016,Adult Social Care,Richmond Hill Sunday Luncheon Club,19/06/2015,2015160363,1009,0,Luncheon Club Grant,Supplies & Services
Leeds City Council,http://opendatacommunities.org/id/metropolitan-district-council/leeds,18/08/2016,Adult Social Care,Richmond Hill Thursday Luncheon Club,29/06/2015,2015160364,1458,0,Luncheon Club Grant,Supplies & Services
Leeds City Council,http://opendatacommunities.org/id/metropolitan-district-council/leeds,18/08/2016,Adult Social Care,Roscoe Luncheon Club Activity Organiser,29/06/2015,2015160365,3254,0,Luncheon Club Grant,Supplies & Services
Leeds City Council,http://opendatacommunities.org/id/metropolitan-district-council/leeds,18/08/2016,Adult Social Care,Rothwell & District Live At Home Scheme,30/06/2015,2015160366,1020,0,Luncheon Club Grant,Supplies & Services
Leeds City Council,http://opendatacommunities.org/id/metropolitan-district-council/leeds,18/08/2016,Adult Social Care,Saheli Women'S Group,09/07/2015,2015160367,1093,0,Luncheon Club Grant,Supplies & Services
Leeds City Council,http://opendatacommunities.org/id/metropolitan-district-council/leeds,18/08/2016,Adult Social Care,Salvation Army Leeds West Hunslet,19/06/2015,2015160368,3940,0,Luncheon Club Grant,Supplies & Services
Leeds City Council,http://opendatacommunities.org/id/metropolitan-district-council/leeds,18/08/2016,Adult Social Care,Shantona Womens Centre,09/07/2015,2015160369,875,0,Luncheon Club Grant,Supplies & Services
Leeds City Council,http://opendatacommunities.org/id/metropolitan-district-council/leeds,18/08/2016,Adult Social Care,Smile Project Luncheon Club,09/07/2015,2015160370,1458,0,Luncheon Club Grant,Supplies & Services
Leeds City Council,http://opendatacommunities.org/id/metropolitan-district-council/leeds,18/08/2016,Adult Social Care,South Seacroft Friends & Neighbours,19/06/2015,2015160371,3507,0,Luncheon Club Grant,Supplies & Services
Leeds City Council,http://opendatacommunities.org/id/metropolitan-district-council/leeds,18/08/2016,Adult Social Care,St Andrew'S Methodist Lunch Club,18/06/2015,2015160372,2246,0,Luncheon Club Grant,Supplies & Services
Leeds City Council,http://opendatacommunities.org/id/metropolitan-district-council/leeds,18/08/2016,Adult Social Care,St Benedicts Luncheon Club,16/07/2015,2015160373,2246,0,Luncheon Club Grant,Supplies & Services
Leeds City Council,http://opendatacommunities.org/id/metropolitan-district-council/leeds,18/08/2016,Adult Social Care,St Chads Lunch Club,19/06/2015,2015160374,1458,0,Luncheon Club Grant,Supplies & Services
Leeds City Council,http://opendatacommunities.org/id/metropolitan-district-council/leeds,18/08/2016,Adult Social Care,St Johns Luncheon Club,14/09/2015,2015160375,3507,0,Luncheon Club Grant,Supplies & Services
Leeds City Council,http://opendatacommunities.org/id/metropolitan-district-council/leeds,18/08/2016,Adult Social Care,St Johns Luncheon Club,19/06/2015,2015160376,2246,0,Luncheon Club Grant,Supplies & Services
Leeds City Council,http://opendatacommunities.org/id/metropolitan-district-council/leeds,18/08/2016,Adult Social Care,St Marys Lunch Club Beeston,29/06/2015,2015160377,2246,0,Luncheon Club Grant,Supplies & Services
Leeds City Council,http://opendatacommunities.org/id/metropolitan-district-council/leeds,18/08/2016,Adult Social Care,St Peters Day Centre And Lunch Club,09/07/2015,2015160378,2246,0,Luncheon Club Grant,Supplies & Services
Leeds City Council,http://opendatacommunities.org/id/metropolitan-district-council/leeds,18/08/2016,Adult Social Care,Stainbeck Day Centre,29/06/2015,2015160379,2246,0,Luncheon Club Grant,Supplies & Services
Leeds City Council,http://opendatacommunities.org/id/metropolitan-district-council/leeds,18/08/2016,Adult Social Care,Sumangal Group For The Elderly L/Club,07/09/2015,2015160380,2246,0,Luncheon Club Grant,Supplies & Services
Leeds City Council,http://opendatacommunities.org/id/metropolitan-district-council/leeds,18/08/2016,Adult Social Care,Swarcliffe Good Neighbours Luncheon Club,09/07/2015,2015160381,3940,0,Luncheon Club Grant,Supplies & Services
Leeds City Council,http://opendatacommunities.org/id/metropolitan-district-council/leeds,18/08/2016,Adult Social Care,Syrian Community Of Leeds,18/06/2015,2015160382,1458,0,Luncheon Club Grant,Supplies & Services
Leeds City Council,http://opendatacommunities.org/id/metropolitan-district-council/leeds,18/08/2016,Adult Social Care,Take Care Carers Group,30/07/2015,2015160383,350,0,Adult Social Care Grant,Supplies & Services
Leeds City Council,http://opendatacommunities.org/id/metropolitan-district-council/leeds,18/08/2016,Adult Social Care,The 88 Lunch Club,16/07/2015,2015160384,2246,0,Luncheon Club Grant,Supplies & Services
Leeds City Council,http://opendatacommunities.org/id/metropolitan-district-council/leeds,18/08/2016,Adult Social Care,The Grove Luncheon Club,19/06/2015,2015160385,1458,0,Luncheon Club Grant,Supplies & Services
Leeds City Council,http://opendatacommunities.org/id/metropolitan-district-council/leeds,18/08/2016,Adult Social Care,Thorner Over 60's Association,29/06/2015,2015160386,911,0,Luncheon Club Grant,Supplies & Services
Leeds City Council,http://opendatacommunities.org/id/metropolitan-district-council/leeds,18/08/2016,Adult Social Care,Purple Patch Arts,13-Mar-15,2015160387,9000,0,Adult Social Care Grant,Supplies & Services
Leeds City Council,http://opendatacommunities.org/id/metropolitan-district-council/leeds,18/08/2016,Adult Social Care,Purple Patch Arts,01-Jun-15,2015160388,9000,0,Adult Social Care Grant,Supplies & Services
Leeds City Council,http://opendatacommunities.org/id/metropolitan-district-council/leeds,18/08/2016,Adult Social Care,Yorkshire Dance Centre Trust Co Ltd,05/06/2015,2015160389,7697.25,0,Adult Social Care Grant,Supplies & Services
Leeds City Council,http://opendatacommunities.org/id/metropolitan-district-council/leeds,18/08/2016,Adult Social Care,Yamsen,21/10/2015,2015160390,1366.25,0,Adult Social Care Grant,Supplies & Services
Leeds City Council,http://opendatacommunities.org/id/metropolitan-district-council/leeds,18/08/2016,Adult Social Care,Yamsen,10/06/2015,2015160391,1366.25,0,Adult Social Care Grant,Supplies & Services
Leeds City Council,http://opendatacommunities.org/id/metropolitan-district-council/leeds,18/08/2016,Adult Social Care,Yamsen,01/04/2015,2015160392,1366.25,0,Adult Social Care Grant,Supplies & Services
Leeds City Council,http://opendatacommunities.org/id/metropolitan-district-council/leeds,18/08/2016,Adult Social Care,People In Action Leeds Uk,20/10/2015,2015160393,7500,0,Adult Social Care Grant,Supplies & Services
Leeds City Council,http://opendatacommunities.org/id/metropolitan-district-council/leeds,18/08/2016,Adult Social Care,People In Action Leeds Uk,01/04/2015,2015160394,7500,0,Adult Social Care Grant,Supplies & Services
Leeds City Council,http://opendatacommunities.org/id/metropolitan-district-council/leeds,18/08/2016,Adult Social Care,Better Action For Families,01/04/2015,2015160395,2500,0,Adult Social Care Grant,Supplies & Services
Leeds City Council,http://opendatacommunities.org/id/metropolitan-district-council/leeds,18/08/2016,Adult Social Care,Yamsen,21/10/2015,2015160396,1366.25,0,Adult Social Care Grant,Supplies & Services
Leeds City Council,http://opendatacommunities.org/id/metropolitan-district-council/leeds,18/08/2016,Adult Social Care,Yamsen,10/06/2015,2015160397,1366.25,0,Adult Social Care Grant,Supplies & Services
Leeds City Council,http://opendatacommunities.org/id/metropolitan-district-council/leeds,18/08/2016,Adult Social Care,Yamsen,01/04/2015,2015160398,1366.25,0,Adult Social Care Grant,Supplies & Services
Leeds City Council,http://opendatacommunities.org/id/metropolitan-district-council/leeds,18/08/2016,Adult Social Care,People In Action Leeds Uk,20/10/2015,2015160399,7500,0,Adult Social Care Grant,Supplies & Services
Leeds City Council,http://opendatacommunities.org/id/metropolitan-district-council/leeds,18/08/2016,Adult Social Care,People In Action Leeds Uk,01/04/2015,2015160400,7500,0,Adult Social Care Grant,Supplies & Services
Leeds City Council,http://opendatacommunities.org/id/metropolitan-district-council/leeds,18/08/2016,Adult Social Care,Better Action For Families,01/04/2015,2015160401,2500,0,Adult Social Care Grant,Supplies & Services
Leeds City Council,http://opendatacommunities.org/id/metropolitan-district-council/leeds,18/08/2016,Adult Social Care,Yamsen,16/02/2016,2015160402,1366.25,0,Adult Social Care Grant,Supplies & Services
Leeds City Council,http://opendatacommunities.org/id/metropolitan-district-council/leeds,18/08/2016,Adult Social Care,Slate Cafe And Furniture Store,21/10/2015,2015160403,9250,0,Adult Social Care Grant,Supplies & Services
Leeds City Council,http://opendatacommunities.org/id/metropolitan-district-council/leeds,18/08/2016,Adult Social Care,Slate Cafe And Furniture Store,16/02/2016,2015160404,9250,0,Adult Social Care Grant,Supplies & Services
Leeds City Council,http://opendatacommunities.org/id/metropolitan-district-council/leeds,18/08/2016,Adult Social Care,Slate Cafe And Furniture Store,01/04/2015,2015160405,9250,0,Adult Social Care Grant,Supplies & Services
Leeds City Council,http://opendatacommunities.org/id/metropolitan-district-council/leeds,18/08/2016,Adult Social Care,Slate Cafe And Furniture Store,10/06/2015,2015160406,9250,0,Adult Social Care Grant,Supplies & Services
Leeds City Council,http://opendatacommunities.org/id/metropolitan-district-council/leeds,18/08/2016,Adult Social Care,People In Action Leeds Uk,17/02/2016,2015160407,7500,0,Adult Social Care Grant,Supplies & Services
Leeds City Council,http://opendatacommunities.org/id/metropolitan-district-council/leeds,18/08/2016,Adult Social Care,People In Action Leeds Uk,10/06/2015,2015160408,7500,0,Adult Social Care Grant,Supplies & Services
Leeds City Council,http://opendatacommunities.org/id/metropolitan-district-council/leeds,18/08/2016,Adult Social Care,Better Action For Families,07/10/2015,2015160409,2500,0,Adult Social Care Grant,Supplies & Services
Leeds City Council,http://opendatacommunities.org/id/metropolitan-district-council/leeds,18/08/2016,Adult Social Care,Better Action For Families,10/06/2015,2015160410,2500,0,Adult Social Care Grant,Supplies & Services
Leeds City Council,http://opendatacommunities.org/id/metropolitan-district-council/leeds,18/08/2016,Adult Social Care,People In Action Leeds Uk,21/12/2015,2015160411,5000,0,Social Services Pooled Budget grant,Supplies & Services
Leeds City Council,http://opendatacommunities.org/id/metropolitan-district-council/leeds,18/08/2016,Adult Social Care,Leeds People First,28/01/2016,2015160412,2177.75,0,Social Services Pooled Budget grant,Supplies & Services
Leeds City Council,http://opendatacommunities.org/id/metropolitan-district-council/leeds,18/08/2016,Adult Social Care,Leeds People First,18/11/2015,2015160413,6533.25,0,Social Services Pooled Budget grant,Supplies & Services
Leeds City Council,http://opendatacommunities.org/id/metropolitan-district-council/leeds,18/08/2016,Adult Social Care,Royal Mencap Society,26/02/2016,2015160414,28445.17,0,Social Services Pooled Budget grant,Supplies & Services
Leeds City Council,http://opendatacommunities.org/id/metropolitan-district-council/leeds,18/08/2016,Adult Social Care,Royal Mencap Society,05/11/2015,2015160415,28445.17,0,Social Services Pooled Budget grant,Supplies & Services
Leeds City Council,http://opendatacommunities.org/id/metropolitan-district-council/leeds,18/08/2016,Adult Social Care,Royal Mencap Society,12/08/2015,2015160416,28445.17,0,Social Services Pooled Budget grant,Supplies & Services
Leeds City Council,http://opendatacommunities.org/id/metropolitan-district-council/leeds,18/08/2016,Adult Social Care,Royal Mencap Society,19/06/2015,2015160417,28445.17,0,Social Services Pooled Budget grant,Supplies & Services
Leeds City Council,http://opendatacommunities.org/id/metropolitan-district-council/leeds,18/08/2016,Adult Social Care,Royal Mencap Society,19/06/2015,2015160418,9361.04,0,Social Services Pooled Budget grant,Supplies & Services
Leeds City Council,http://opendatacommunities.org/id/metropolitan-district-council/leeds,18/08/2016,Adult Social Care,Royal Mencap Society,16/06/2015,2015160419,9361.04,0,Social Services Pooled Budget grant,Supplies & Services
Leeds City Council,http://opendatacommunities.org/id/metropolitan-district-council/leeds,18/08/2016,Adult Social Care,People In Action Leeds Uk,24/11/2015,2015160420,24975,0,Social Services Pooled Budget grant,Supplies & Services
Leeds City Council,http://opendatacommunities.org/id/metropolitan-district-council/leeds,18/08/2016,Adult Social Care,People In Action Leeds Uk,21/09/2015,2015160421,24975,0,Social Services Pooled Budget grant,Supplies & Services
Leeds City Council,http://opendatacommunities.org/id/metropolitan-district-council/leeds,18/08/2016,Adult Social Care,People In Action Leeds Uk,26/11/2015,2015160422,24975,0,Social Services Pooled Budget grant,Supplies & Services
Leeds City Council,http://opendatacommunities.org/id/metropolitan-district-council/leeds,18/08/2016,Adult Social Care,People In Action Leeds Uk,09/03/2016,2015160423,24975,0,Social Services Pooled Budget grant,Supplies & Services
Leeds City Council,http://opendatacommunities.org/id/metropolitan-district-council/leeds,18/08/2016,Adult Social Care,Meanwood Valley Urban Farm Ltd,06/08/2015,2015160424,17826,0,Social Services Pooled Budget grant,Supplies & Services
Leeds City Council,http://opendatacommunities.org/id/metropolitan-district-council/leeds,18/08/2016,Adult Social Care,Meanwood Valley Urban Farm Ltd,05/11/2015,2015160425,17826,0,Social Services Pooled Budget grant,Supplies & Services
Leeds City Council,http://opendatacommunities.org/id/metropolitan-district-council/leeds,18/08/2016,Adult Social Care,Meanwood Valley Urban Farm Ltd,28/01/2016,2015160426,17826,0,Social Services Pooled Budget grant,Supplies & Services
Leeds City Council,http://opendatacommunities.org/id/metropolitan-district-council/leeds,18/08/2016,Adult Social Care,Meanwood Valley Urban Farm Ltd,07/07/2015,2015160427,17826,0,Social Services Pooled Budget grant,Supplies & Services
Leeds City Council,http://opendatacommunities.org/id/metropolitan-district-council/leeds,18/08/2016,Adult Social Care,Lvsldf,22/07/2015,2015160428,10843.58,0,Social Services Pooled Budget grant,Supplies & Services
Leeds City Council,http://opendatacommunities.org/id/metropolitan-district-council/leeds,18/08/2016,Adult Social Care,Lvsldf,22/07/2015,2015160429,10843.58,0,Social Services Pooled Budget grant,Supplies & Services
Leeds City Council,http://opendatacommunities.org/id/metropolitan-district-council/leeds,18/08/2016,Adult Social Care,Lvsldf,23/12/2015,2015160430,10843.58,0,Social Services Pooled Budget grant,Supplies & Services
Leeds City Council,http://opendatacommunities.org/id/metropolitan-district-council/leeds,18/08/2016,Adult Social Care,Lvsldf,12/02/2016,2015160431,10843.58,0,Social Services Pooled Budget grant,Supplies & Services
Leeds City Council,http://opendatacommunities.org/id/metropolitan-district-council/leeds,18/08/2016,City Development,Youth Theatres Leeds,30/04/2015,2015160432,2000,0,Arts grant,Supplies & Services
Leeds City Council,http://opendatacommunities.org/id/metropolitan-district-council/leeds,18/08/2016,City Development,Yorkshire Sculpture Park,11/02/2016,2015160433,25000,0,Arts grant,Supplies & Services
Leeds City Council,http://opendatacommunities.org/id/metropolitan-district-council/leeds,18/08/2016,City Development,Yorkshire Dance Centre Trust Co Ltd,05/02/2016,2015160434,300,0,Arts grant,Supplies & Services
Leeds City Council,http://opendatacommunities.org/id/metropolitan-district-council/leeds,18/08/2016,City Development,Yorkshire Dance Centre Trust Co Ltd,10/11/2015,2015160435,250,0,Arts grant,Supplies & Services
Leeds City Council,http://opendatacommunities.org/id/metropolitan-district-council/leeds,18/08/2016,City Development,Yorkshire Dance Centre Trust Co Ltd,16/03/2016,2015160436,12000,0,Arts grant,Supplies & Services
Leeds City Council,http://opendatacommunities.org/id/metropolitan-district-council/leeds,18/08/2016,City Development,Yorkshire Dance Centre Trust Co Ltd,24/08/2015,2015160437,250,0,Arts grant,Supplies & Services
Leeds City Council,http://opendatacommunities.org/id/metropolitan-district-council/leeds,18/08/2016,City Development,West Yorkshire Playhouse,23/10/2015,2015160438,250,0,Arts grant,Supplies & Services
Leeds City Council,http://opendatacommunities.org/id/metropolitan-district-council/leeds,18/08/2016,City Development,West Yorkshire Playhouse,23/10/2015,2015160439,300,0,Arts grant,Supplies & Services
Leeds City Council,http://opendatacommunities.org/id/metropolitan-district-council/leeds,18/08/2016,City Development,West Yorkshire Playhouse,15/09/2015,2015160440,250,0,Arts grant,Supplies & Services
Leeds City Council,http://opendatacommunities.org/id/metropolitan-district-council/leeds,18/08/2016,City Development,Urban Sprawl,11/06/2015,2015160441,2000,0,Arts grant,Supplies & Services
Leeds City Council,http://opendatacommunities.org/id/metropolitan-district-council/leeds,18/08/2016,City Development,Unlimited Theatre,14/05/2015,2015160442,2000,0,Arts grant,Supplies & Services
Leeds City Council,http://opendatacommunities.org/id/metropolitan-district-council/leeds,18/08/2016,City Development,Tutti Frutti Productions,15/05/2015,2015160443,2000,0,Arts grant,Supplies & Services
Leeds City Council,http://opendatacommunities.org/id/metropolitan-district-council/leeds,18/08/2016,City Development,Transform,29/01/2016,2015160444,8500,0,Arts grant,Supplies & Services
Leeds City Council,http://opendatacommunities.org/id/metropolitan-district-council/leeds,18/08/2016,City Development,Theatre Company Blah Blah Blah,15/05/2015,2015160445,8000,0,Arts grant,Supplies & Services
Leeds City Council,http://opendatacommunities.org/id/metropolitan-district-council/leeds,18/08/2016,City Development,St Patricks Day Parade,25/06/2015,2015160446,6000,0,Arts grant,Supplies & Services
Leeds City Council,http://opendatacommunities.org/id/metropolitan-district-council/leeds,18/08/2016,City Development,Space2 Leeds,15/05/2015,2015160447,3200,0,Arts grant,Supplies & Services
Leeds City Council,http://opendatacommunities.org/id/metropolitan-district-council/leeds,18/08/2016,City Development,South Asian Arts-Uk,06/10/2015,2015160448,10000,0,Arts grant,Supplies & Services
Leeds City Council,http://opendatacommunities.org/id/metropolitan-district-council/leeds,18/08/2016,City Development,South Asian Arts-Uk,15/05/2015,2015160449,16500,0,Arts grant,Supplies & Services
Leeds City Council,http://opendatacommunities.org/id/metropolitan-district-council/leeds,18/08/2016,City Development,Slanjayvah Danza,02/07/2015,2015160450,996,0,Arts grant,Supplies & Services
Leeds City Council,http://opendatacommunities.org/id/metropolitan-district-council/leeds,18/08/2016,City Development,Skippko Arts Team,11/09/2015,2015160451,4800,0,Arts grant,Supplies & Services
Leeds City Council,http://opendatacommunities.org/id/metropolitan-district-council/leeds,18/08/2016,City Development,Saudha Society Of Poetry And Indian,21/08/2015,2015160452,1000,0,Arts grant,Supplies & Services
Leeds City Council,http://opendatacommunities.org/id/metropolitan-district-council/leeds,18/08/2016,City Development,Rjc Productions Ltd,15/05/2015,2015160453,12500,0,Arts grant,Supplies & Services
Leeds City Council,http://opendatacommunities.org/id/metropolitan-district-council/leeds,18/08/2016,City Development,Red Ladder Theatre Co Ltd,21/08/2015,2015160454,13000,0,Arts grant,Supplies & Services
Leeds City Council,http://opendatacommunities.org/id/metropolitan-district-council/leeds,18/08/2016,City Development,Red Ladder Theatre Co Ltd,05/05/2015,2015160455,6000,0,Arts grant,Supplies & Services
Leeds City Council,http://opendatacommunities.org/id/metropolitan-district-council/leeds,18/08/2016,City Development,Pyramid Of Arts,18/11/2015,2015160456,1000,0,Arts grant,Supplies & Services
Leeds City Council,http://opendatacommunities.org/id/metropolitan-district-council/leeds,18/08/2016,City Development,Playful Anywhere Cic,16/03/2016,2015160457,13490,0,Arts grant,Supplies & Services
Leeds City Council,http://opendatacommunities.org/id/metropolitan-district-council/leeds,18/08/2016,City Development,Phoenix Dance Theatre,16/03/2016,2015160458,12000,0,Arts grant,Supplies & Services
Leeds City Council,http://opendatacommunities.org/id/metropolitan-district-council/leeds,18/08/2016,City Development,Phoenix Dance Theatre,14/05/2015,2015160459,65000,0,Arts grant,Supplies & Services
Leeds City Council,http://opendatacommunities.org/id/metropolitan-district-council/leeds,18/08/2016,City Development,Northern School Of Contemporary,26/10/2015,2015160460,522,0,Arts grant,Supplies & Services
Leeds City Council,http://opendatacommunities.org/id/metropolitan-district-council/leeds,18/08/2016,City Development,Northern School Of Contemporary,15/05/2015,2015160461,7200,0,Arts grant,Supplies & Services
Leeds City Council,http://opendatacommunities.org/id/metropolitan-district-council/leeds,18/08/2016,City Development,New Wortley Community Association,16/03/2016,2015160462,7875,0,Arts grant,Supplies & Services
Leeds City Council,http://opendatacommunities.org/id/metropolitan-district-council/leeds,18/08/2016,City Development,Musical Arc,02/06/2015,2015160463,2400,0,Arts grant,Supplies & Services
Leeds City Council,http://opendatacommunities.org/id/metropolitan-district-council/leeds,18/08/2016,City Development,Morley Literature Festival,29/04/2015,2015160464,900,0,Arts grant,Supplies & Services
Leeds City Council,http://opendatacommunities.org/id/metropolitan-district-council/leeds,18/08/2016,City Development,Morley Literature Festival,15/05/2015,2015160465,2000,0,Arts grant,Supplies & Services
Leeds City Council,http://opendatacommunities.org/id/metropolitan-district-council/leeds,18/08/2016,City Development,Manic Chord Theatre,01/03/2016,2015160466,929,0,Arts grant,Supplies & Services
Leeds City Council,http://opendatacommunities.org/id/metropolitan-district-council/leeds,18/08/2016,City Development,Makor Charitable Trust,30/04/2015,2015160467,2000,0,Arts grant,Supplies & Services
Leeds City Council,http://opendatacommunities.org/id/metropolitan-district-council/leeds,18/08/2016,City Development,Lumen Arts,16/03/2016,2015160468,4000,0,Arts grant,Supplies & Services
Leeds City Council,http://opendatacommunities.org/id/metropolitan-district-council/leeds,18/08/2016,City Development,Lumen Arts,21/05/2015,2015160469,3400,0,Arts grant,Supplies & Services
Leeds City Council,http://opendatacommunities.org/id/metropolitan-district-council/leeds,18/08/2016,City Development,Little London Arts,19/06/2015,2015160470,3200,0,Arts grant,Supplies & Services
Leeds City Council,http://opendatacommunities.org/id/metropolitan-district-council/leeds,18/08/2016,City Development,Lifeforce Productions,30/04/2015,2015160471,4000,0,Arts grant,Supplies & Services
Leeds City Council,http://opendatacommunities.org/id/metropolitan-district-council/leeds,18/08/2016,City Development,Left Bank Leeds,10/03/2016,2015160472,1500,0,Arts grant,Supplies & Services
Leeds City Council,http://opendatacommunities.org/id/metropolitan-district-council/leeds,18/08/2016,City Development,Left Bank Leeds,16/07/2015,2015160473,2000,0,Arts grant,Supplies & Services
Leeds City Council,http://opendatacommunities.org/id/metropolitan-district-council/leeds,18/08/2016,City Development,Leeds West Indian Carnival,30/04/2015,2015160474,50000,0,Arts grant,Supplies & Services
Leeds City Council,http://opendatacommunities.org/id/metropolitan-district-council/leeds,18/08/2016,City Development,Leeds Sports Federation,05/06/2015,2015160475,9700,0,Sports Grant,Supplies & Services
Leeds City Council,http://opendatacommunities.org/id/metropolitan-district-council/leeds,18/08/2016,City Development,Leeds Pride,21/05/2015,2015160476,15000,0,Arts grant,Supplies & Services
Leeds City Council,http://opendatacommunities.org/id/metropolitan-district-council/leeds,18/08/2016,City Development,Leeds Mencap Ltd,12/05/2015,2015160477,2000,0,Arts grant,Supplies & Services
Leeds City Council,http://opendatacommunities.org/id/metropolitan-district-council/leeds,18/08/2016,City Development,Leeds Judean Club For Boys And Girls T/A,01/03/2016,2015160478,1000,0,Arts grant,Supplies & Services
Leeds City Council,http://opendatacommunities.org/id/metropolitan-district-council/leeds,18/08/2016,City Development,Leeds International Pianoforte,26/06/2015,2015160479,13000,0,Arts grant,Supplies & Services
Leeds City Council,http://opendatacommunities.org/id/metropolitan-district-council/leeds,18/08/2016,City Development,Leeds Chinese Community Association Ltd,21/05/2015,2015160480,2000,0,Arts grant,Supplies & Services
Leeds City Council,http://opendatacommunities.org/id/metropolitan-district-council/leeds,18/08/2016,City Development,Leeds Childrens Circus,14/05/2015,2015160481,2000,0,Arts grant,Supplies & Services
Leeds City Council,http://opendatacommunities.org/id/metropolitan-district-council/leeds,18/08/2016,City Development,Leeds Baroque Choir And Orchestra,01/07/2015,2015160482,1000,0,Arts grant,Supplies & Services
Leeds City Council,http://opendatacommunities.org/id/metropolitan-district-council/leeds,18/08/2016,City Development,Kirkstall Festival,12/05/2015,2015160483,2000,0,Arts grant,Supplies & Services
Leeds City Council,http://opendatacommunities.org/id/metropolitan-district-council/leeds,18/08/2016,City Development,Irish Arts Foundation,21/05/2015,2015160484,3000,0,Arts grant,Supplies & Services
Leeds City Council,http://opendatacommunities.org/id/metropolitan-district-council/leeds,18/08/2016,City Development,Invisble Flock,16/03/2016,2015160485,9910,0,Arts grant,Supplies & Services
Leeds City Council,http://opendatacommunities.org/id/metropolitan-district-council/leeds,18/08/2016,City Development,Interplay Theatre Trust,15/05/2015,2015160486,12750,0,Arts grant,Supplies & Services
Leeds City Council,http://opendatacommunities.org/id/metropolitan-district-council/leeds,18/08/2016,City Development,Hyde Park Unity Day,30/04/2015,2015160487,2000,0,Arts grant,Supplies & Services
Leeds City Council,http://opendatacommunities.org/id/metropolitan-district-council/leeds,18/08/2016,City Development,Heads Together Productions Ltd,15/05/2015,2015160488,9000,0,Arts grant,Supplies & Services
Leeds City Council,http://opendatacommunities.org/id/metropolitan-district-council/leeds,18/08/2016,City Development,Headingley Litfest,14/05/2015,2015160489,2000,0,Arts grant,Supplies & Services
Leeds City Council,http://opendatacommunities.org/id/metropolitan-district-council/leeds,18/08/2016,City Development,Harrogate Band,10/11/2015,2015160490,350,0,Arts grant,Supplies & Services
Leeds City Council,http://opendatacommunities.org/id/metropolitan-district-council/leeds,18/08/2016,City Development,Hackspace Leeds,20/10/2015,2015160491,1766,0,Arts grant,Supplies & Services
Leeds City Council,http://opendatacommunities.org/id/metropolitan-district-council/leeds,18/08/2016,City Development,Hackspace Leeds,07/10/2015,2015160492,2000,0,Arts grant,Supplies & Services
Leeds City Council,http://opendatacommunities.org/id/metropolitan-district-council/leeds,18/08/2016,City Development,Hackspace Leeds,03/09/2015,2015160493,2500,0,Arts grant,Supplies & Services
Leeds City Council,http://opendatacommunities.org/id/metropolitan-district-council/leeds,18/08/2016,City Development,Grief Series,10/02/2016,2015160494,1000,0,Arts grant,Supplies & Services
Leeds City Council,http://opendatacommunities.org/id/metropolitan-district-council/leeds,18/08/2016,City Development,Friends Of Parkinson Park,21/05/2015,2015160495,551,0,Arts grant,Supplies & Services
Leeds City Council,http://opendatacommunities.org/id/metropolitan-district-council/leeds,18/08/2016,City Development,East Street Arts,23/03/2016,2015160496,35000,0,Arts grant,Supplies & Services
Leeds City Council,http://opendatacommunities.org/id/metropolitan-district-council/leeds,18/08/2016,City Development,East Street Arts,21/08/2015,2015160497,5000,0,Arts grant,Supplies & Services
Leeds City Council,http://opendatacommunities.org/id/metropolitan-district-council/leeds,18/08/2016,City Development,East Street Arts,15/05/2015,2015160498,30000,0,Arts grant,Supplies & Services
Leeds City Council,http://opendatacommunities.org/id/metropolitan-district-council/leeds,18/08/2016,City Development,Dazl,02/06/2015,2015160499,6750,0,Arts grant,Supplies & Services
Leeds City Council,http://opendatacommunities.org/id/metropolitan-district-council/leeds,18/08/2016,City Development,Otley Courthouse Project ,21/08/2015,2015160500,9196,0,Arts grant,Supplies & Services
Leeds City Council,http://opendatacommunities.org/id/metropolitan-district-council/leeds,18/08/2016,City Development,Otley Courthouse Project ,16/07/2015,2015160501,4400,0,Arts grant,Supplies & Services
Leeds City Council,http://opendatacommunities.org/id/metropolitan-district-council/leeds,18/08/2016,City Development,Come Play With Me Cic,17/02/2016,2015160502,1000,0,Arts grant,Supplies & Services
Leeds City Council,http://opendatacommunities.org/id/metropolitan-district-council/leeds,18/08/2016,City Development,City Of Leeds Gymnastics Club Cic,17/02/2016,2015160503,25000,0,Sports Grant,Supplies & Services
Leeds City Council,http://opendatacommunities.org/id/metropolitan-district-council/leeds,18/08/2016,City Development,Buffalo,21/05/2015,2015160504,1000,0,Arts grant,Supplies & Services
Leeds City Council,http://opendatacommunities.org/id/metropolitan-district-council/leeds,18/08/2016,City Development,Black Health Initiative,16/03/2016,2015160505,10000,0,Arts grant,Supplies & Services
Leeds City Council,http://opendatacommunities.org/id/metropolitan-district-council/leeds,18/08/2016,City Development,Black Health Initiative,20/07/2015,2015160506,39000,0,Arts grant,Supplies & Services
Leeds City Council,http://opendatacommunities.org/id/metropolitan-district-council/leeds,18/08/2016,City Development,Assembly House Cic,03/08/2015,2015160507,2000,0,Arts grant,Supplies & Services
Leeds City Council,http://opendatacommunities.org/id/metropolitan-district-council/leeds,18/08/2016,City Development,Assembly House Cic,05/08/2015,2015160508,1000,0,Arts grant,Supplies & Services
Leeds City Council,http://opendatacommunities.org/id/metropolitan-district-council/leeds,18/08/2016,City Development,Arts @ Trinity Ltd,17/02/2016,2015160509,950,0,Arts grant,Supplies & Services
Leeds City Council,http://opendatacommunities.org/id/metropolitan-district-council/leeds,18/08/2016,City Development,Arts @ Trinity Ltd,12/05/2015,2015160510,2000,0,Arts grant,Supplies & Services
Leeds City Council,http://opendatacommunities.org/id/metropolitan-district-council/leeds,18/08/2016,City Development,Artlink West Yorkshire,15/05/2015,2015160511,9600,0,Arts grant,Supplies & Services
Leeds City Council,http://opendatacommunities.org/id/metropolitan-district-council/leeds,18/08/2016,City Development,Apna Yogo Group,21/05/2015,2015160512,500,0,Arts grant,Supplies & Services
Leeds City Council,http://opendatacommunities.org/id/metropolitan-district-council/leeds,18/08/2016,City Development,Alchemy Anew,14/05/2015,2015160513,2000,0,Arts grant,Supplies & Services
Leeds City Council,http://opendatacommunities.org/id/metropolitan-district-council/leeds,18/08/2016,City Development,Yorkshire Dance Centre Trust Co Ltd,30/04/2015,2015160514,52000,0,Arts grant,Supplies & Services
Leeds City Council,http://opendatacommunities.org/id/metropolitan-district-council/leeds,18/08/2016,City Development,West Yorkshire Playhouse,14/05/2015,2015160515,630000,0,Arts grant,Supplies & Services
Leeds City Council,http://opendatacommunities.org/id/metropolitan-district-council/leeds,18/08/2016,City Development,Opera North Ltd,14/05/2015,2015160516,510000,0,Arts grant,Supplies & Services
Leeds City Council,http://opendatacommunities.org/id/metropolitan-district-council/leeds,18/08/2016,City Development,Northern Ballet Theatre Limited,08/05/2015,2015160517,223000,0,Arts grant,Supplies & Services
Leeds City Council,http://opendatacommunities.org/id/metropolitan-district-council/leeds,18/08/2016,City Development,Leeds Grand Theatre & Opera,17/07/2015,2015160518,160000,0,Arts grant,Supplies & Services
Leeds City Council,http://opendatacommunities.org/id/metropolitan-district-council/leeds,18/08/2016,City Development,Seagulls Re-Use Ltd,08/02/2016,2015160519,1000,0,Grant to Business,Supplies & Services
Leeds City Council,http://opendatacommunities.org/id/metropolitan-district-council/leeds,18/08/2016,City Development,Seagulls Re-Use Ltd,04/02/2016,2015160520,1000,0,Grant to Business,Supplies & Services
Leeds City Council,http://opendatacommunities.org/id/metropolitan-district-council/leeds,18/08/2016,City Development,Farsley Business Forum,26/11/2015,2015160521,750,0,Grant to Business,Supplies & Services
Leeds City Council,http://opendatacommunities.org/id/metropolitan-district-council/leeds,18/08/2016,Citizens & Communities,Wycas,04/01/2016,2015160522,10112.75,0,Infrastructure Support Grant,Supplies & Services
Leeds City Council,http://opendatacommunities.org/id/metropolitan-district-council/leeds,18/08/2016,Citizens & Communities,Wycas,16/10/2015,2015160523,10112.75,0,Infrastructure Support Grant,Supplies & Services
Leeds City Council,http://opendatacommunities.org/id/metropolitan-district-council/leeds,18/08/2016,Citizens & Communities,Wycas,14/07/2015,2015160524,10112.75,0,Infrastructure Support Grant,Supplies & Services
Leeds City Council,http://opendatacommunities.org/id/metropolitan-district-council/leeds,18/08/2016,Citizens & Communities,Wycas,17/04/2015,2015160525,10112.75,0,Infrastructure Support Grant,Supplies & Services
Leeds City Council,http://opendatacommunities.org/id/metropolitan-district-council/leeds,18/08/2016,Citizens & Communities,Voluntary Action-Leeds,07/10/2015,2015160526,8039.71,0,Equality Grant,Supplies & Services
Leeds City Council,http://opendatacommunities.org/id/metropolitan-district-council/leeds,18/08/2016,Citizens & Communities,Voluntary Action-Leeds,20/11/2015,2015160527,8039.72,0,Equality Grant,Supplies & Services
Leeds City Council,http://opendatacommunities.org/id/metropolitan-district-council/leeds,18/08/2016,Citizens & Communities,Voluntary Action-Leeds,26/02/2016,2015160528,8039.72,0,Equality Grant,Supplies & Services
Leeds City Council,http://opendatacommunities.org/id/metropolitan-district-council/leeds,18/08/2016,Citizens & Communities,Voluntary Action-Leeds,05/11/2015,2015160529,1000,0,Equality Grant,Supplies & Services
Leeds City Council,http://opendatacommunities.org/id/metropolitan-district-council/leeds,18/08/2016,Citizens & Communities,Voluntary Action-Leeds,16/10/2015,2015160530,74638.75,0,Infrastructure Support Grant,Supplies & Services
Leeds City Council,http://opendatacommunities.org/id/metropolitan-district-council/leeds,18/08/2016,Citizens & Communities,Voluntary Action-Leeds,04/01/2016,2015160531,74638.75,0,Infrastructure Support Grant,Supplies & Services
Leeds City Council,http://opendatacommunities.org/id/metropolitan-district-council/leeds,18/08/2016,Citizens & Communities,Voluntary Action-Leeds,14/07/2015,2015160532,74638.75,0,Infrastructure Support Grant,Supplies & Services
Leeds City Council,http://opendatacommunities.org/id/metropolitan-district-council/leeds,18/08/2016,Citizens & Communities,Voluntary Action-Leeds,17/04/2015,2015160533,74638.75,0,Infrastructure Support Grant,Supplies & Services
Leeds City Council,http://opendatacommunities.org/id/metropolitan-district-council/leeds,18/08/2016,Citizens & Communities,The Earl Of Harewood 1959 Settlement,09/02/2016,2015160534,5000,0,Flood Grant,Supplies & Services
Leeds City Council,http://opendatacommunities.org/id/metropolitan-district-council/leeds,18/08/2016,Citizens & Communities,The Earl Of Harewood 1959 Settlement,09/02/2016,2015160535,5000,0,Flood Grant,Supplies & Services
Leeds City Council,http://opendatacommunities.org/id/metropolitan-district-council/leeds,18/08/2016,Citizens & Communities,Leeds Community Foundation,15/09/2015,2015160536,150000,0,Innovation Fund Grant,Supplies & Services
Leeds City Council,http://opendatacommunities.org/id/metropolitan-district-council/leeds,18/08/2016,Citizens & Communities,Leeds Citizens Advice Bureau,14/10/2015,2015160537,402718.5,0,Advisory Grant,Supplies & Services
Leeds City Council,http://opendatacommunities.org/id/metropolitan-district-council/leeds,18/08/2016,Citizens & Communities,Leeds Citizens Advice Bureau,11/01/2016,2015160538,404736.5,0,Advisory Grant,Supplies & Services
Leeds City Council,http://opendatacommunities.org/id/metropolitan-district-council/leeds,18/08/2016,Citizens & Communities,Leeds Citizens Advice Bureau,14/04/2015,2015160539,378754.5,0,Advisory Grant,Supplies & Services
Leeds City Council,http://opendatacommunities.org/id/metropolitan-district-council/leeds,18/08/2016,Citizens & Communities,Leeds Citizens Advice Bureau,14/07/2015,2015160540,378754.5,0,Advisory Grant,Supplies & Services
Leeds City Council,http://opendatacommunities.org/id/metropolitan-district-council/leeds,18/08/2016,Citizens & Communities,Equality Leeds,13/05/2015,2015160541,2679.95,0,Infrastructure Support Grant,Supplies & Services
Leeds City Council,http://opendatacommunities.org/id/metropolitan-district-council/leeds,18/08/2016,Citizens & Communities,Equality Leeds,10/06/2015,2015160542,2679.95,0,Infrastructure Support Grant,Supplies & Services
Leeds City Council,http://opendatacommunities.org/id/metropolitan-district-council/leeds,18/08/2016,Citizens & Communities,Equality Leeds,05/08/2015,2015160543,2679.95,0,Infrastructure Support Grant,Supplies & Services
Leeds City Council,http://opendatacommunities.org/id/metropolitan-district-council/leeds,18/08/2016,Citizens & Communities,Earl Of Harewood'S 1959 Settlement,09/02/2016,2015160544,5000,0,Flood Grant,Supplies & Services
Leeds City Council,http://opendatacommunities.org/id/metropolitan-district-council/leeds,18/08/2016,Citizens & Communities,Zest Health For Life,29/01/2016,2015160545,490,0,Neighbourhood Grant,Supplies & Services
Leeds City Council,http://opendatacommunities.org/id/metropolitan-district-council/leeds,18/08/2016,Citizens & Communities,Zest Health For Life,13/01/2016,2015160546,330,0,Neighbourhood Grant,Supplies & Services
Leeds City Council,http://opendatacommunities.org/id/metropolitan-district-council/leeds,18/08/2016,Citizens & Communities,Zest Health For Life,17/07/2015,2015160547,500,0,Neighbourhood Grant,Supplies & Services
Leeds City Council,http://opendatacommunities.org/id/metropolitan-district-council/leeds,18/08/2016,Citizens & Communities,Yeadon Town Hall Users Group,17/06/2015,2015160548,500,0,Neighbourhood Grant,Supplies & Services
Leeds City Council,http://opendatacommunities.org/id/metropolitan-district-council/leeds,18/08/2016,Citizens & Communities,West Leeds Juniors Fc,23/10/2015,2015160549,250,0,Neighbourhood Grant,Supplies & Services
Leeds City Council,http://opendatacommunities.org/id/metropolitan-district-council/leeds,18/08/2016,Citizens & Communities,West Leeds Juniors Fc,14/08/2015,2015160550,250,0,Neighbourhood Grant,Supplies & Services
Leeds City Council,http://opendatacommunities.org/id/metropolitan-district-council/leeds,18/08/2016,Citizens & Communities,Tingley With Woodkirk In Bloom,21/04/2015,2015160551,500,0,Neighbourhood Grant,Supplies & Services
Leeds City Council,http://opendatacommunities.org/id/metropolitan-district-council/leeds,18/08/2016,Citizens & Communities,The Pudsey Racers Running Club,25/06/2015,2015160552,720,0,Neighbourhood Grant,Supplies & Services
Leeds City Council,http://opendatacommunities.org/id/metropolitan-district-council/leeds,18/08/2016,Citizens & Communities,The Big Hoo-Ha Company,04/03/2016,2015160553,495,0,Neighbourhood Grant,Supplies & Services
Leeds City Council,http://opendatacommunities.org/id/metropolitan-district-council/leeds,18/08/2016,Citizens & Communities,Tarnfield Bowling Club,09/02/2016,2015160554,900,0,Neighbourhood Grant,Supplies & Services
Leeds City Council,http://opendatacommunities.org/id/metropolitan-district-council/leeds,18/08/2016,Citizens & Communities,Syrian Community Of Leeds,21/01/2016,2015160555,500,0,Neighbourhood Grant,Supplies & Services
Leeds City Council,http://opendatacommunities.org/id/metropolitan-district-council/leeds,18/08/2016,Citizens & Communities,Swillington St Mary's Beavers/Cubs/Scouts,12/05/2015,2015160556,500,0,Neighbourhood Grant,Supplies & Services
Leeds City Council,http://opendatacommunities.org/id/metropolitan-district-council/leeds,18/08/2016,Citizens & Communities,1st Micklefield Scout Group,24/09/2015,2015160557,500,0,Neighbourhood Grant,Supplies & Services
Leeds City Council,http://opendatacommunities.org/id/metropolitan-district-council/leeds,18/08/2016,Citizens & Communities,1st Pudsey Scout Group,03/03/2016,2015160558,500,0,Neighbourhood Grant,Supplies & Services
Leeds City Council,http://opendatacommunities.org/id/metropolitan-district-council/leeds,18/08/2016,Citizens & Communities,Swillington In Bloom,24/09/2015,2015160559,450,0,Neighbourhood Grant,Supplies & Services
Leeds City Council,http://opendatacommunities.org/id/metropolitan-district-council/leeds,18/08/2016,Citizens & Communities,Street Work Soccer Academy Ltd,13/01/2016,2015160560,500,0,Neighbourhood Grant,Supplies & Services
Leeds City Council,http://opendatacommunities.org/id/metropolitan-district-council/leeds,18/08/2016,Citizens & Communities,Stoney Rock Court Sheltered Housing,25/02/2016,2015160561,300,0,Neighbourhood Grant,Supplies & Services
Leeds City Council,http://opendatacommunities.org/id/metropolitan-district-council/leeds,18/08/2016,Citizens & Communities,Stoney Rock Court Sheltered Housing,24/08/2015,2015160562,500,0,Neighbourhood Grant,Supplies & Services
Leeds City Council,http://opendatacommunities.org/id/metropolitan-district-council/leeds,18/08/2016,Citizens & Communities,Stitch Up Cic,10/06/2015,2015160563,500,0,Neighbourhood Grant,Supplies & Services
Leeds City Council,http://opendatacommunities.org/id/metropolitan-district-council/leeds,18/08/2016,Citizens & Communities,St Stephens Well Community Garden,01/05/2015,2015160564,500,0,Neighbourhood Grant,Supplies & Services
Leeds City Council,http://opendatacommunities.org/id/metropolitan-district-council/leeds,18/08/2016,Citizens & Communities,St Margarets Church (Parish Centre),24/03/2016,2015160565,60,0,Neighbourhood Grant,Supplies & Services
Leeds City Council,http://opendatacommunities.org/id/metropolitan-district-council/leeds,18/08/2016,Citizens & Communities,St Margarets Church (Parish Centre),24/03/2016,2015160566,40,0,Neighbourhood Grant,Supplies & Services
Leeds City Council,http://opendatacommunities.org/id/metropolitan-district-council/leeds,18/08/2016,Citizens & Communities,St Cyprians With St James Church,30/09/2015,2015160567,500,0,Neighbourhood Grant,Supplies & Services
Leeds City Council,http://opendatacommunities.org/id/metropolitan-district-council/leeds,18/08/2016,Citizens & Communities,St Andrew'S Pantomime Group,03/12/2015,2015160568,500,0,Neighbourhood Grant,Supplies & Services
Leeds City Council,http://opendatacommunities.org/id/metropolitan-district-council/leeds,18/08/2016,Citizens & Communities,St Agnes Parochial Church Council,07/08/2015,2015160569,300,0,Neighbourhood Grant,Supplies & Services
Leeds City Council,http://opendatacommunities.org/id/metropolitan-district-council/leeds,18/08/2016,Citizens & Communities,Seagulls Re-Use Ltd,20/01/2016,2015160570,426,0,Neighbourhood Grant,Supplies & Services
Leeds City Council,http://opendatacommunities.org/id/metropolitan-district-council/leeds,18/08/2016,Citizens & Communities,Saxton Gardens Residents Association,30/09/2015,2015160571,500,0,Neighbourhood Grant,Supplies & Services
Leeds City Council,http://opendatacommunities.org/id/metropolitan-district-council/leeds,18/08/2016,Citizens & Communities,Russian Speakers Group For Children,16/06/2015,2015160572,500,0,Neighbourhood Grant,Supplies & Services
Leeds City Council,http://opendatacommunities.org/id/metropolitan-district-council/leeds,18/08/2016,Citizens & Communities,Robin Hood Residents Association,22/12/2015,2015160573,330,0,Neighbourhood Grant,Supplies & Services
Leeds City Council,http://opendatacommunities.org/id/metropolitan-district-council/leeds,18/08/2016,Citizens & Communities,Right Choices,27/01/2016,2015160574,567.28,0,Neighbourhood Grant,Supplies & Services
Leeds City Council,http://opendatacommunities.org/id/metropolitan-district-council/leeds,18/08/2016,Citizens & Communities,Prince Philip Centre Phab Club,22/01/2016,2015160575,332.43,0,Neighbourhood Grant,Supplies & Services
Leeds City Council,http://opendatacommunities.org/id/metropolitan-district-council/leeds,18/08/2016,Citizens & Communities,Prince Philip Centre Phab Club,17/07/2015,2015160576,581.76,0,Neighbourhood Grant,Supplies & Services
Leeds City Council,http://opendatacommunities.org/id/metropolitan-district-council/leeds,18/08/2016,Citizens & Communities,Pool Feast Association,10/07/2015,2015160577,425,0,Neighbourhood Grant,Supplies & Services
Leeds City Council,http://opendatacommunities.org/id/metropolitan-district-council/leeds,18/08/2016,Citizens & Communities,Otley Carnival Committee,13/11/2015,2015160578,500,0,Neighbourhood Grant,Supplies & Services
Leeds City Council,http://opendatacommunities.org/id/metropolitan-district-council/leeds,18/08/2016,Citizens & Communities,Northern Ballet Theatre Limited,14/01/2016,2015160579,450,0,Neighbourhood Grant,Supplies & Services
Leeds City Council,http://opendatacommunities.org/id/metropolitan-district-council/leeds,18/08/2016,Citizens & Communities,New Wortley Community Association,13/11/2015,2015160580,500,0,Neighbourhood Grant,Supplies & Services
Leeds City Council,http://opendatacommunities.org/id/metropolitan-district-council/leeds,18/08/2016,Citizens & Communities,New Wortley Community Association,29/04/2015,2015160581,500,0,Neighbourhood Grant,Supplies & Services
Leeds City Council,http://opendatacommunities.org/id/metropolitan-district-council/leeds,18/08/2016,Citizens & Communities,New World Steel Orchestra,10/04/2015,2015160582,500,0,Neighbourhood Grant,Supplies & Services
Leeds City Council,http://opendatacommunities.org/id/metropolitan-district-council/leeds,18/08/2016,Citizens & Communities,Musical Arc,09/06/2015,2015160583,480,0,Neighbourhood Grant,Supplies & Services
Leeds City Council,http://opendatacommunities.org/id/metropolitan-district-council/leeds,18/08/2016,Citizens & Communities,Musical Arc,14/08/2015,2015160584,220,0,Neighbourhood Grant,Supplies & Services
Leeds City Council,http://opendatacommunities.org/id/metropolitan-district-council/leeds,18/08/2016,Citizens & Communities,Makor Charitable Trust,07/08/2015,2015160585,333.33,0,Neighbourhood Grant,Supplies & Services
Leeds City Council,http://opendatacommunities.org/id/metropolitan-district-council/leeds,18/08/2016,Citizens & Communities,Little Woodhouse Community Association,11/03/2016,2015160586,500,0,Neighbourhood Grant,Supplies & Services
Leeds City Council,http://opendatacommunities.org/id/metropolitan-district-council/leeds,18/08/2016,Citizens & Communities,Leeds Mencap Ltd,30/09/2015,2015160587,500,0,Neighbourhood Grant,Supplies & Services
Leeds City Council,http://opendatacommunities.org/id/metropolitan-district-council/leeds,18/08/2016,Citizens & Communities,Leeds Kabaddi Club,10/07/2015,2015160588,500,0,Neighbourhood Grant,Supplies & Services
Leeds City Council,http://opendatacommunities.org/id/metropolitan-district-council/leeds,18/08/2016,Citizens & Communities,Leeds Jewish Ex-Serviceman & Womens Association,05/11/2015,2015160589,323.5,0,Neighbourhood Grant,Supplies & Services
Leeds City Council,http://opendatacommunities.org/id/metropolitan-district-council/leeds,18/08/2016,Citizens & Communities,Leeds Housing Concern,11/12/2015,2015160590,200,0,Neighbourhood Grant,Supplies & Services
Leeds City Council,http://opendatacommunities.org/id/metropolitan-district-council/leeds,18/08/2016,Citizens & Communities,Leeds Housing Concern,22/12/2015,2015160591,400,0,Neighbourhood Grant,Supplies & Services
Leeds City Council,http://opendatacommunities.org/id/metropolitan-district-council/leeds,18/08/2016,Citizens & Communities,Leeds Childrens Circus,13/11/2015,2015160592,405,0,Neighbourhood Grant,Supplies & Services
Leeds City Council,http://opendatacommunities.org/id/metropolitan-district-council/leeds,18/08/2016,Citizens & Communities,Lady Pit Lane Model Allotment Association,06/11/2015,2015160593,500,0,Neighbourhood Grant,Supplies & Services
Leeds City Council,http://opendatacommunities.org/id/metropolitan-district-council/leeds,18/08/2016,Citizens & Communities,Kidz & Co,17/07/2015,2015160594,435,0,Neighbourhood Grant,Supplies & Services
Leeds City Council,http://opendatacommunities.org/id/metropolitan-district-council/leeds,18/08/2016,Citizens & Communities,Kidz & Co,17/07/2015,2015160595,435,0,Neighbourhood Grant,Supplies & Services
Leeds City Council,http://opendatacommunities.org/id/metropolitan-district-council/leeds,18/08/2016,Citizens & Communities,Irish Arts Foundation,15/01/2016,2015160596,495,0,Neighbourhood Grant,Supplies & Services
Leeds City Council,http://opendatacommunities.org/id/metropolitan-district-council/leeds,18/08/2016,Citizens & Communities,Irish Arts Foundation,07/08/2015,2015160597,500,0,Neighbourhood Grant,Supplies & Services
Leeds City Council,http://opendatacommunities.org/id/metropolitan-district-council/leeds,18/08/2016,Citizens & Communities,Igbo Union Yorkshire,17/07/2015,2015160598,88.06,0,Neighbourhood Grant,Supplies & Services
Leeds City Council,http://opendatacommunities.org/id/metropolitan-district-council/leeds,18/08/2016,Citizens & Communities,Igbo Union Yorkshire,17/07/2015,2015160599,188.7,0,Neighbourhood Grant,Supplies & Services
Leeds City Council,http://opendatacommunities.org/id/metropolitan-district-council/leeds,18/08/2016,Citizens & Communities,Igbo Union Yorkshire,17/07/2015,2015160600,500,0,Neighbourhood Grant,Supplies & Services
Leeds City Council,http://opendatacommunities.org/id/metropolitan-district-council/leeds,18/08/2016,Citizens & Communities,Guiseley Senior Citizens Association,03/07/2015,2015160601,730,0,Neighbourhood Grant,Supplies & Services
Leeds City Council,http://opendatacommunities.org/id/metropolitan-district-council/leeds,18/08/2016,Citizens & Communities,Glenthorpe & Walford Community Group,06/08/2015,2015160602,500,0,Neighbourhood Grant,Supplies & Services
Leeds City Council,http://opendatacommunities.org/id/metropolitan-district-council/leeds,18/08/2016,Citizens & Communities,Getaway Girls,29/03/2016,2015160603,500,0,Neighbourhood Grant,Supplies & Services
Leeds City Council,http://opendatacommunities.org/id/metropolitan-district-council/leeds,18/08/2016,Citizens & Communities,Getaway Girls,17/04/2015,2015160604,500,0,Neighbourhood Grant,Supplies & Services
Leeds City Council,http://opendatacommunities.org/id/metropolitan-district-council/leeds,18/08/2016,Citizens & Communities,Get Cooking!,27/11/2015,2015160605,353,0,Neighbourhood Grant,Supplies & Services
Leeds City Council,http://opendatacommunities.org/id/metropolitan-district-council/leeds,18/08/2016,Citizens & Communities,Garforth In Bloom,24/09/2015,2015160606,445,0,Neighbourhood Grant,Supplies & Services
Leeds City Council,http://opendatacommunities.org/id/metropolitan-district-council/leeds,18/08/2016,Citizens & Communities,Garforth Historical Society,25/02/2016,2015160607,310,0,Neighbourhood Grant,Supplies & Services
Leeds City Council,http://opendatacommunities.org/id/metropolitan-district-council/leeds,18/08/2016,Citizens & Communities,Garforth Brass,19/08/2015,2015160608,500,0,Neighbourhood Grant,Supplies & Services
Leeds City Council,http://opendatacommunities.org/id/metropolitan-district-council/leeds,18/08/2016,Citizens & Communities,Friends Of Skelton Grange,07/10/2015,2015160609,500,0,Neighbourhood Grant,Supplies & Services
Leeds City Council,http://opendatacommunities.org/id/metropolitan-district-council/leeds,18/08/2016,Citizens & Communities,Friends Of Skelton Grange,09/11/2015,2015160610,500,0,Neighbourhood Grant,Supplies & Services
Leeds City Council,http://opendatacommunities.org/id/metropolitan-district-council/leeds,18/08/2016,Citizens & Communities,Friends Of Phab,23/07/2015,2015160611,332.43,0,Neighbourhood Grant,Supplies & Services
Leeds City Council,http://opendatacommunities.org/id/metropolitan-district-council/leeds,18/08/2016,Citizens & Communities,Friends Of Phab,23/07/2015,2015160612,83.11,0,Neighbourhood Grant,Supplies & Services
Leeds City Council,http://opendatacommunities.org/id/metropolitan-district-council/leeds,18/08/2016,Citizens & Communities,Friends Of Phab,23/07/2015,2015160613,83.11,0,Neighbourhood Grant,Supplies & Services
Leeds City Council,http://opendatacommunities.org/id/metropolitan-district-council/leeds,18/08/2016,Citizens & Communities,Friends Of Parkinson Park,24/06/2015,2015160614,500,0,Neighbourhood Grant,Supplies & Services
Leeds City Council,http://opendatacommunities.org/id/metropolitan-district-council/leeds,18/08/2016,Citizens & Communities,Friends Of Lawnswood Cemetery,23/07/2015,2015160615,475,0,Neighbourhood Grant,Supplies & Services
Leeds City Council,http://opendatacommunities.org/id/metropolitan-district-council/leeds,18/08/2016,Citizens & Communities,For Disability Mobility,07/10/2015,2015160616,496.25,0,Neighbourhood Grant,Supplies & Services
Leeds City Council,http://opendatacommunities.org/id/metropolitan-district-council/leeds,18/08/2016,Citizens & Communities,Fewston Court Residents Group,25/02/2016,2015160617,500,0,Neighbourhood Grant,Supplies & Services
Leeds City Council,http://opendatacommunities.org/id/metropolitan-district-council/leeds,18/08/2016,Citizens & Communities,Fdm Bus,11/06/2015,2015160618,482.3,0,Neighbourhood Grant,Supplies & Services
Leeds City Council,http://opendatacommunities.org/id/metropolitan-district-council/leeds,18/08/2016,Citizens & Communities,Farsley Celtic Juniors Football Club,19/06/2015,2015160619,500,0,Neighbourhood Grant,Supplies & Services
Leeds City Council,http://opendatacommunities.org/id/metropolitan-district-council/leeds,18/08/2016,Citizens & Communities,East Ardsley United Cricket Club,03/12/2015,2015160620,500,0,Neighbourhood Grant,Supplies & Services
Leeds City Council,http://opendatacommunities.org/id/metropolitan-district-council/leeds,18/08/2016,Citizens & Communities,East Ardsley Flower Club,11/06/2015,2015160621,500,0,Neighbourhood Grant,Supplies & Services
Leeds City Council,http://opendatacommunities.org/id/metropolitan-district-council/leeds,18/08/2016,Citizens & Communities,Cross Green Community Group,11/12/2015,2015160622,500,0,Neighbourhood Grant,Supplies & Services
Leeds City Council,http://opendatacommunities.org/id/metropolitan-district-council/leeds,18/08/2016,Citizens & Communities,Council Of Christians And Jews,14/08/2015,2015160623,800,0,Neighbourhood Grant,Supplies & Services
Leeds City Council,http://opendatacommunities.org/id/metropolitan-district-council/leeds,18/08/2016,Citizens & Communities,Council Of Christians And Jews,07/08/2015,2015160624,400,0,Neighbourhood Grant,Supplies & Services
Leeds City Council,http://opendatacommunities.org/id/metropolitan-district-council/leeds,18/08/2016,Citizens & Communities,Cottingley In Bloom,13/07/2015,2015160625,500,0,Neighbourhood Grant,Supplies & Services
Leeds City Council,http://opendatacommunities.org/id/metropolitan-district-council/leeds,18/08/2016,Citizens & Communities,Childrens Project,26/11/2015,2015160626,500,0,Neighbourhood Grant,Supplies & Services
Leeds City Council,http://opendatacommunities.org/id/metropolitan-district-council/leeds,18/08/2016,Citizens & Communities,Carlton Village Residents Association,03/12/2015,2015160627,500,0,Neighbourhood Grant,Supplies & Services
Leeds City Council,http://opendatacommunities.org/id/metropolitan-district-council/leeds,18/08/2016,Citizens & Communities,Carlton Primary School Pta,24/12/2015,2015160628,500,0,Neighbourhood Grant,Supplies & Services
Leeds City Council,http://opendatacommunities.org/id/metropolitan-district-council/leeds,18/08/2016,Citizens & Communities,Calverley Village Guide Association,14/08/2015,2015160629,500,0,Neighbourhood Grant,Supplies & Services
Leeds City Council,http://opendatacommunities.org/id/metropolitan-district-council/leeds,18/08/2016,Citizens & Communities,Burmantofts Senior Action,25/02/2016,2015160630,450,0,Neighbourhood Grant,Supplies & Services
Leeds City Council,http://opendatacommunities.org/id/metropolitan-district-council/leeds,18/08/2016,Citizens & Communities,Burmantofts Community Nursery,27/11/2015,2015160631,500,0,Neighbourhood Grant,Supplies & Services
Leeds City Council,http://opendatacommunities.org/id/metropolitan-district-council/leeds,18/08/2016,Citizens & Communities,Bramham Community Action Group,07/07/2015,2015160632,500,0,Neighbourhood Grant,Supplies & Services
Leeds City Council,http://opendatacommunities.org/id/metropolitan-district-council/leeds,18/08/2016,Citizens & Communities,Barnardos,29/04/2015,2015160633,160,0,Neighbourhood Grant,Supplies & Services
Leeds City Council,http://opendatacommunities.org/id/metropolitan-district-council/leeds,18/08/2016,Citizens & Communities,Barnardos,29/04/2015,2015160634,420,0,Neighbourhood Grant,Supplies & Services
Leeds City Council,http://opendatacommunities.org/id/metropolitan-district-council/leeds,18/08/2016,Citizens & Communities,Barnardos,29/04/2015,2015160635,160,0,Neighbourhood Grant,Supplies & Services
Leeds City Council,http://opendatacommunities.org/id/metropolitan-district-council/leeds,18/08/2016,Citizens & Communities,Barnardos,29/04/2015,2015160636,260,0,Neighbourhood Grant,Supplies & Services
Leeds City Council,http://opendatacommunities.org/id/metropolitan-district-council/leeds,18/08/2016,Citizens & Communities,Barca - Leeds,23/12/2015,2015160637,495,0,Neighbourhood Grant,Supplies & Services
Leeds City Council,http://opendatacommunities.org/id/metropolitan-district-council/leeds,18/08/2016,Citizens & Communities,Asyabi Uk,17/06/2015,2015160638,400,0,Neighbourhood Grant,Supplies & Services
Leeds City Council,http://opendatacommunities.org/id/metropolitan-district-council/leeds,18/08/2016,Citizens & Communities,Arthington Parish Room,28/09/2015,2015160639,1030.8,0,Neighbourhood Grant,Supplies & Services
Leeds City Council,http://opendatacommunities.org/id/metropolitan-district-council/leeds,18/08/2016,Citizens & Communities,Arthington Cricket Club,18/03/2016,2015160640,1000,0,Neighbourhood Grant,Supplies & Services
Leeds City Council,http://opendatacommunities.org/id/metropolitan-district-council/leeds,18/08/2016,Citizens & Communities,Armley Helping Hands,27/11/2015,2015160641,493.92,0,Neighbourhood Grant,Supplies & Services
Leeds City Council,http://opendatacommunities.org/id/metropolitan-district-council/leeds,18/08/2016,Citizens & Communities,Aireborough Neighbourhood Watch,18/09/2015,2015160642,720,0,Neighbourhood Grant,Supplies & Services
Leeds City Council,http://opendatacommunities.org/id/metropolitan-district-council/leeds,18/08/2016,Citizens & Communities,Zest Health For Life,03/02/2016,2015160643,845,0,Neighbourhood Grant,Supplies & Services
Leeds City Council,http://opendatacommunities.org/id/metropolitan-district-council/leeds,18/08/2016,Citizens & Communities,Zest Health For Life,05/11/2015,2015160644,600,0,Neighbourhood Grant,Supplies & Services
Leeds City Council,http://opendatacommunities.org/id/metropolitan-district-council/leeds,18/08/2016,Citizens & Communities,Zest Health For Life,05/11/2015,2015160645,2990.39,0,Neighbourhood Grant,Supplies & Services
Leeds City Council,http://opendatacommunities.org/id/metropolitan-district-council/leeds,18/08/2016,Citizens & Communities,Zest Health For Life,04/01/2016,2015160646,250,0,Neighbourhood Grant,Supplies & Services
Leeds City Council,http://opendatacommunities.org/id/metropolitan-district-council/leeds,18/08/2016,Citizens & Communities,Young Minds,12/02/2016,2015160647,1356,0,Neighbourhood Grant,Supplies & Services
Leeds City Council,http://opendatacommunities.org/id/metropolitan-district-council/leeds,18/08/2016,Citizens & Communities,Young Minds,13/11/2015,2015160648,1356,0,Neighbourhood Grant,Supplies & Services
Leeds City Council,http://opendatacommunities.org/id/metropolitan-district-council/leeds,18/08/2016,Citizens & Communities,1st Crossgate Brownies,04/03/2016,2015160649,575,0,Neighbourhood Grant,Supplies & Services
Leeds City Council,http://opendatacommunities.org/id/metropolitan-district-council/leeds,18/08/2016,Citizens & Communities,Young Minds,17/08/2015,2015160650,1333,0,Neighbourhood Grant,Supplies & Services
Leeds City Council,http://opendatacommunities.org/id/metropolitan-district-council/leeds,18/08/2016,Citizens & Communities,Young Minds,31/07/2015,2015160651,1356,0,Neighbourhood Grant,Supplies & Services
Leeds City Council,http://opendatacommunities.org/id/metropolitan-district-council/leeds,18/08/2016,Citizens & Communities,Y M C A Training,29/05/2015,2015160652,600,0,Neighbourhood Grant,Supplies & Services
Leeds City Council,http://opendatacommunities.org/id/metropolitan-district-council/leeds,18/08/2016,Citizens & Communities,Woodsley Road Community Centre,04/06/2015,2015160653,1700,0,Neighbourhood Grant,Supplies & Services
Leeds City Council,http://opendatacommunities.org/id/metropolitan-district-council/leeds,18/08/2016,Citizens & Communities,Woodkirk Valley Football Club,23/07/2015,2015160654,3000,0,Neighbourhood Grant,Supplies & Services
Leeds City Council,http://opendatacommunities.org/id/metropolitan-district-council/leeds,18/08/2016,Citizens & Communities,Wetherby District Scout Council,19/08/2015,2015160655,1900,0,Neighbourhood Grant,Supplies & Services
Leeds City Council,http://opendatacommunities.org/id/metropolitan-district-council/leeds,18/08/2016,Citizens & Communities,Wetherby Arts Festival,08/12/2015,2015160656,1250,0,Neighbourhood Grant,Supplies & Services
Leeds City Council,http://opendatacommunities.org/id/metropolitan-district-council/leeds,18/08/2016,Citizens & Communities,Wetherby Community Radio,08/01/2016,2015160657,1000,0,Neighbourhood Grant,Supplies & Services
Leeds City Council,http://opendatacommunities.org/id/metropolitan-district-council/leeds,18/08/2016,Citizens & Communities,Wetherby Community Radio,18/09/2015,2015160658,1700,0,Neighbourhood Grant,Supplies & Services
Leeds City Council,http://opendatacommunities.org/id/metropolitan-district-council/leeds,18/08/2016,Citizens & Communities,Victim Support,30/10/2015,2015160659,2499.58,0,Neighbourhood Grant,Supplies & Services
Leeds City Council,http://opendatacommunities.org/id/metropolitan-district-council/leeds,18/08/2016,Citizens & Communities,Victim Support,30/09/2015,2015160660,999.22,0,Neighbourhood Grant,Supplies & Services
Leeds City Council,http://opendatacommunities.org/id/metropolitan-district-council/leeds,18/08/2016,Citizens & Communities,Upbeat Social Enterprises Cic,17/02/2016,2015160661,2500,0,Neighbourhood Grant,Supplies & Services
Leeds City Council,http://opendatacommunities.org/id/metropolitan-district-council/leeds,18/08/2016,Citizens & Communities,Upbeat Social Enterprises Cic,17/02/2016,2015160662,2500,0,Neighbourhood Grant,Supplies & Services
Leeds City Council,http://opendatacommunities.org/id/metropolitan-district-council/leeds,18/08/2016,Citizens & Communities,Upbeat Social Enterprises Cic,11/05/2015,2015160663,2074.45,0,Neighbourhood Grant,Supplies & Services
Leeds City Council,http://opendatacommunities.org/id/metropolitan-district-council/leeds,18/08/2016,Citizens & Communities,The Works Skatepark Charity,25/01/2016,2015160664,699.3,0,Neighbourhood Grant,Supplies & Services
Leeds City Council,http://opendatacommunities.org/id/metropolitan-district-council/leeds,18/08/2016,Citizens & Communities,The Works Skatepark Charity,25/01/2016,2015160665,699.3,0,Neighbourhood Grant,Supplies & Services
Leeds City Council,http://opendatacommunities.org/id/metropolitan-district-council/leeds,18/08/2016,Citizens & Communities,The Works Skatepark Charity,10/03/2016,2015160666,5068,0,Neighbourhood Grant,Supplies & Services
Leeds City Council,http://opendatacommunities.org/id/metropolitan-district-council/leeds,18/08/2016,Citizens & Communities,The Works Skatepark Charity,24/12/2015,2015160667,2380,0,Neighbourhood Grant,Supplies & Services
Leeds City Council,http://opendatacommunities.org/id/metropolitan-district-council/leeds,18/08/2016,Citizens & Communities,The Works Skatepark Charity,30/09/2015,2015160668,1190,0,Neighbourhood Grant,Supplies & Services
Leeds City Council,http://opendatacommunities.org/id/metropolitan-district-council/leeds,18/08/2016,Citizens & Communities,The Works Skatepark Charity,01/07/2015,2015160669,2380,0,Neighbourhood Grant,Supplies & Services
Leeds City Council,http://opendatacommunities.org/id/metropolitan-district-council/leeds,18/08/2016,Citizens & Communities,The Middleton Community Centre,30/06/2015,2015160670,1090,0,Neighbourhood Grant,Supplies & Services
Leeds City Council,http://opendatacommunities.org/id/metropolitan-district-council/leeds,18/08/2016,Citizens & Communities,The Leodiensian Club,29/05/2015,2015160671,457.6,0,Neighbourhood Grant,Supplies & Services
Leeds City Council,http://opendatacommunities.org/id/metropolitan-district-council/leeds,18/08/2016,Citizens & Communities,The Leodiensian Club,29/05/2015,2015160672,232.4,0,Neighbourhood Grant,Supplies & Services
Leeds City Council,http://opendatacommunities.org/id/metropolitan-district-council/leeds,18/08/2016,Citizens & Communities,The Leeds Music Hub,08/01/2016,2015160673,2208.9,0,Neighbourhood Grant,Supplies & Services
Leeds City Council,http://opendatacommunities.org/id/metropolitan-district-council/leeds,18/08/2016,Citizens & Communities,The Leeds Music Hub,08/05/2015,2015160674,841.55,0,Neighbourhood Grant,Supplies & Services
Leeds City Council,http://opendatacommunities.org/id/metropolitan-district-council/leeds,18/08/2016,Citizens & Communities,The Leeds Music Hub,21/08/2015,2015160675,528.6,0,Neighbourhood Grant,Supplies & Services
Leeds City Council,http://opendatacommunities.org/id/metropolitan-district-council/leeds,18/08/2016,Citizens & Communities,The Donkey Sanctuary,21/01/2016,2015160676,30,0,Neighbourhood Grant,Supplies & Services
Leeds City Council,http://opendatacommunities.org/id/metropolitan-district-council/leeds,18/08/2016,Citizens & Communities,The Conservation Volunteers,22/01/2016,2015160677,1910.48,0,Neighbourhood Grant,Supplies & Services
Leeds City Council,http://opendatacommunities.org/id/metropolitan-district-council/leeds,18/08/2016,Citizens & Communities,The Conservation Volunteers,11/11/2015,2015160678,2638.47,0,Neighbourhood Grant,Supplies & Services
Leeds City Council,http://opendatacommunities.org/id/metropolitan-district-council/leeds,18/08/2016,Citizens & Communities,The Conservation Volunteers,10/09/2015,2015160679,1394.05,0,Neighbourhood Grant,Supplies & Services
Leeds City Council,http://opendatacommunities.org/id/metropolitan-district-council/leeds,18/08/2016,Citizens & Communities,The Ciaran Bingham Trust Foundation Trus,05/06/2015,2015160680,5000,0,Neighbourhood Grant,Supplies & Services
Leeds City Council,http://opendatacommunities.org/id/metropolitan-district-council/leeds,18/08/2016,Citizens & Communities,The Cardigan Centre,18/03/2016,2015160681,2583,0,Neighbourhood Grant,Supplies & Services
Leeds City Council,http://opendatacommunities.org/id/metropolitan-district-council/leeds,18/08/2016,Citizens & Communities,The Cardigan Centre,15/12/2015,2015160682,1476,0,Neighbourhood Grant,Supplies & Services
Leeds City Council,http://opendatacommunities.org/id/metropolitan-district-council/leeds,18/08/2016,Citizens & Communities,The Big Hoo-Ha Company,26/06/2015,2015160683,3789,0,Neighbourhood Grant,Supplies & Services
Leeds City Council,http://opendatacommunities.org/id/metropolitan-district-council/leeds,18/08/2016,Citizens & Communities,Tarnfield Bowling Club,05/02/2016,2015160684,600,0,Neighbourhood Grant,Supplies & Services
Leeds City Council,http://opendatacommunities.org/id/metropolitan-district-council/leeds,18/08/2016,Citizens & Communities,Swinnow Community Centre,17/09/2015,2015160685,2700,0,Neighbourhood Grant,Supplies & Services
Leeds City Council,http://opendatacommunities.org/id/metropolitan-district-council/leeds,18/08/2016,Citizens & Communities,Swarcliffe Good Neighbours Scheme,16/10/2015,2015160686,60,0,Neighbourhood Grant,Supplies & Services
Leeds City Council,http://opendatacommunities.org/id/metropolitan-district-council/leeds,18/08/2016,Citizens & Communities,Swarcliffe Good Neighbours Scheme,11/11/2015,2015160687,96,0,Neighbourhood Grant,Supplies & Services
Leeds City Council,http://opendatacommunities.org/id/metropolitan-district-council/leeds,18/08/2016,Citizens & Communities,Sudanese Community Association,30/09/2015,2015160688,2250,0,Neighbourhood Grant,Supplies & Services
Leeds City Council,http://opendatacommunities.org/id/metropolitan-district-council/leeds,18/08/2016,Citizens & Communities,Street Work Soccer Academy Ltd,31/03/2016,2015160689,2060,0,Neighbourhood Grant,Supplies & Services
Leeds City Council,http://opendatacommunities.org/id/metropolitan-district-council/leeds,18/08/2016,Citizens & Communities,Street Work Soccer Academy Ltd,31/03/2016,2015160690,3310,0,Neighbourhood Grant,Supplies & Services
Leeds City Council,http://opendatacommunities.org/id/metropolitan-district-council/leeds,18/08/2016,Citizens & Communities,Street Work Soccer Academy Ltd,05/02/2016,2015160691,2060,0,Neighbourhood Grant,Supplies & Services
Leeds City Council,http://opendatacommunities.org/id/metropolitan-district-council/leeds,18/08/2016,Citizens & Communities,Street Work Soccer Academy Ltd,05/02/2016,2015160692,3310,0,Neighbourhood Grant,Supplies & Services
Leeds City Council,http://opendatacommunities.org/id/metropolitan-district-council/leeds,18/08/2016,Citizens & Communities,51st Leeds (Hunslet Parish Church),11/06/2015,2015160693,295.23,0,Neighbourhood Grant,Supplies & Services
Leeds City Council,http://opendatacommunities.org/id/metropolitan-district-council/leeds,18/08/2016,Citizens & Communities,5th Moor Allerton Guides,28/04/2015,2015160694,573.96,0,Neighbourhood Grant,Supplies & Services
Leeds City Council,http://opendatacommunities.org/id/metropolitan-district-council/leeds,18/08/2016,Citizens & Communities,5th Moor Allerton Guides,08/02/2016,2015160695,573.96,0,Neighbourhood Grant,Supplies & Services
Leeds City Council,http://opendatacommunities.org/id/metropolitan-district-council/leeds,18/08/2016,Citizens & Communities,Street Work Soccer Academy Ltd,07/07/2015,2015160696,6620,0,Neighbourhood Grant,Supplies & Services
Leeds City Council,http://opendatacommunities.org/id/metropolitan-district-council/leeds,18/08/2016,Citizens & Communities,Street Work Soccer Academy Ltd,07/07/2015,2015160697,4120,0,Neighbourhood Grant,Supplies & Services
Leeds City Council,http://opendatacommunities.org/id/metropolitan-district-council/leeds,18/08/2016,Citizens & Communities,Street Work Soccer Academy Ltd,30/09/2015,2015160698,1920,0,Neighbourhood Grant,Supplies & Services
Leeds City Council,http://opendatacommunities.org/id/metropolitan-district-council/leeds,18/08/2016,Citizens & Communities,Street Work Soccer Academy Ltd,30/09/2015,2015160699,1920,0,Neighbourhood Grant,Supplies & Services
Leeds City Council,http://opendatacommunities.org/id/metropolitan-district-council/leeds,18/08/2016,Citizens & Communities,Stitch Up Cic,27/11/2015,2015160700,1400,0,Neighbourhood Grant,Supplies & Services
Leeds City Council,http://opendatacommunities.org/id/metropolitan-district-council/leeds,18/08/2016,Citizens & Communities,Step,04/03/2016,2015160701,1298.88,0,Neighbourhood Grant,Supplies & Services
Leeds City Council,http://opendatacommunities.org/id/metropolitan-district-council/leeds,18/08/2016,Citizens & Communities,Stanningley Sports & Amateur Rugby,24/07/2015,2015160702,112.5,0,Neighbourhood Grant,Supplies & Services
Leeds City Council,http://opendatacommunities.org/id/metropolitan-district-council/leeds,18/08/2016,Citizens & Communities,St Matthias Pcc,25/02/2016,2015160703,101,0,Neighbourhood Grant,Supplies & Services
Leeds City Council,http://opendatacommunities.org/id/metropolitan-district-council/leeds,18/08/2016,Citizens & Communities,St Marys The Blessed Virgin Hawksworth,23/10/2015,2015160704,1250,0,Neighbourhood Grant,Supplies & Services
Leeds City Council,http://opendatacommunities.org/id/metropolitan-district-council/leeds,18/08/2016,Citizens & Communities,St Marys The Blessed Virgin Hawksworth,23/10/2015,2015160705,1250,0,Neighbourhood Grant,Supplies & Services
Leeds City Council,http://opendatacommunities.org/id/metropolitan-district-council/leeds,18/08/2016,Citizens & Communities,St Marys The Blessed Virgin Hawksworth,21/01/2016,2015160706,1250,0,Neighbourhood Grant,Supplies & Services
Leeds City Council,http://opendatacommunities.org/id/metropolitan-district-council/leeds,18/08/2016,Citizens & Communities,St Marys The Blessed Virgin Hawksworth,21/05/2015,2015160707,1750,0,Neighbourhood Grant,Supplies & Services
Leeds City Council,http://opendatacommunities.org/id/metropolitan-district-council/leeds,18/08/2016,Citizens & Communities,St Margarets Church (Parish Centre),09/03/2016,2015160708,60,0,Neighbourhood Grant,Supplies & Services
Leeds City Council,http://opendatacommunities.org/id/metropolitan-district-council/leeds,18/08/2016,Citizens & Communities,St Margarets Church (Parish Centre),05/11/2015,2015160709,40,0,Neighbourhood Grant,Supplies & Services
Leeds City Council,http://opendatacommunities.org/id/metropolitan-district-council/leeds,18/08/2016,Citizens & Communities,St John Ambulance,12/08/2015,2015160710,68.8,0,Neighbourhood Grant,Supplies & Services
Leeds City Council,http://opendatacommunities.org/id/metropolitan-district-council/leeds,18/08/2016,Citizens & Communities,St Georges Crypt,17/12/2015,2015160711,500,0,Neighbourhood Grant,Supplies & Services
Leeds City Council,http://opendatacommunities.org/id/metropolitan-district-council/leeds,18/08/2016,Citizens & Communities,St Georges Crypt,22/02/2016,2015160712,500,0,Neighbourhood Grant,Supplies & Services
Leeds City Council,http://opendatacommunities.org/id/metropolitan-district-council/leeds,18/08/2016,Citizens & Communities,St Georges Crypt,22/02/2016,2015160713,28.83,0,Neighbourhood Grant,Supplies & Services
Leeds City Council,http://opendatacommunities.org/id/metropolitan-district-council/leeds,18/08/2016,Citizens & Communities,St Georges Crypt,30/07/2015,2015160714,500,0,Neighbourhood Grant,Supplies & Services
Leeds City Council,http://opendatacommunities.org/id/metropolitan-district-council/leeds,18/08/2016,Citizens & Communities,South Leeds Life Group,07/08/2015,2015160715,300,0,Neighbourhood Grant,Supplies & Services
Leeds City Council,http://opendatacommunities.org/id/metropolitan-district-council/leeds,18/08/2016,Citizens & Communities,South Asian Arts-Uk,26/11/2015,2015160716,500,0,Neighbourhood Grant,Supplies & Services
Leeds City Council,http://opendatacommunities.org/id/metropolitan-district-council/leeds,18/08/2016,Citizens & Communities,South Asian Arts-Uk,26/11/2015,2015160717,300,0,Neighbourhood Grant,Supplies & Services
Leeds City Council,http://opendatacommunities.org/id/metropolitan-district-council/leeds,18/08/2016,Citizens & Communities,Songo Drumming Project,09/10/2015,2015160718,300,0,Neighbourhood Grant,Supplies & Services
Leeds City Council,http://opendatacommunities.org/id/metropolitan-district-council/leeds,18/08/2016,Citizens & Communities,Slate Cafe And Furniture Store,09/07/2015,2015160719,90,0,Neighbourhood Grant,Supplies & Services
Leeds City Council,http://opendatacommunities.org/id/metropolitan-district-council/leeds,18/08/2016,Citizens & Communities,Slaid Hill In Bloom,25/09/2015,2015160720,1075.48,0,Neighbourhood Grant,Supplies & Services
Leeds City Council,http://opendatacommunities.org/id/metropolitan-district-council/leeds,18/08/2016,Citizens & Communities,Shadwell Tennis Club,02/02/2016,2015160721,500,0,Neighbourhood Grant,Supplies & Services
Leeds City Council,http://opendatacommunities.org/id/metropolitan-district-council/leeds,18/08/2016,Citizens & Communities,Shadwell Independent Library And Arts Centre,22/02/2016,2015160722,1188,0,Neighbourhood Grant,Supplies & Services
Leeds City Council,http://opendatacommunities.org/id/metropolitan-district-council/leeds,18/08/2016,Citizens & Communities,Shadwell Independent Library And Arts Centre,19/08/2015,2015160723,5000,0,Neighbourhood Grant,Supplies & Services
Leeds City Council,http://opendatacommunities.org/id/metropolitan-district-council/leeds,18/08/2016,Citizens & Communities,Seagulls Re-Use Ltd,07/01/2016,2015160724,3695.95,0,Neighbourhood Grant,Supplies & Services
Leeds City Council,http://opendatacommunities.org/id/metropolitan-district-council/leeds,18/08/2016,Citizens & Communities,Seacroft Gala,12/02/2016,2015160725,866,0,Neighbourhood Grant,Supplies & Services
Leeds City Council,http://opendatacommunities.org/id/metropolitan-district-council/leeds,18/08/2016,Citizens & Communities,Seacroft Gala,03/09/2015,2015160726,664,0,Neighbourhood Grant,Supplies & Services
Leeds City Council,http://opendatacommunities.org/id/metropolitan-district-council/leeds,18/08/2016,Citizens & Communities,Rothwell 600,15/01/2016,2015160727,816.15,0,Neighbourhood Grant,Supplies & Services
Leeds City Council,http://opendatacommunities.org/id/metropolitan-district-council/leeds,18/08/2016,Citizens & Communities,Rothwell & District Live At Home Scheme,24/03/2016,2015160728,150,0,Neighbourhood Grant,Supplies & Services
Leeds City Council,http://opendatacommunities.org/id/metropolitan-district-council/leeds,18/08/2016,Citizens & Communities,Rothwell & District Live At Home Scheme,18/11/2015,2015160729,992.52,0,Neighbourhood Grant,Supplies & Services
Leeds City Council,http://opendatacommunities.org/id/metropolitan-district-council/leeds,18/08/2016,Citizens & Communities,Rothwell & District Carnival Committee,17/02/2016,2015160730,500,0,Neighbourhood Grant,Supplies & Services
Leeds City Council,http://opendatacommunities.org/id/metropolitan-district-council/leeds,18/08/2016,Citizens & Communities,Rothwell & District Carnival Committee,09/10/2015,2015160731,3000,0,Neighbourhood Grant,Supplies & Services
Leeds City Council,http://opendatacommunities.org/id/metropolitan-district-council/leeds,18/08/2016,Citizens & Communities,Rothwell & District Carnival Committee,26/06/2015,2015160732,1000,0,Neighbourhood Grant,Supplies & Services
Leeds City Council,http://opendatacommunities.org/id/metropolitan-district-council/leeds,18/08/2016,Citizens & Communities,Rjc Productions Ltd,16/10/2015,2015160733,3188.09,0,Neighbourhood Grant,Supplies & Services
Leeds City Council,http://opendatacommunities.org/id/metropolitan-district-council/leeds,18/08/2016,Citizens & Communities,Radharaman Society,29/01/2016,2015160734,1000,0,Neighbourhood Grant,Supplies & Services
Leeds City Council,http://opendatacommunities.org/id/metropolitan-district-council/leeds,18/08/2016,Citizens & Communities,Pool Pre-School Group,06/11/2015,2015160735,1000,0,Neighbourhood Grant,Supplies & Services
Leeds City Council,http://opendatacommunities.org/id/metropolitan-district-council/leeds,18/08/2016,Citizens & Communities,Pool In Wharfedale Village Hall Memorial,16/10/2015,2015160736,5000,0,Neighbourhood Grant,Supplies & Services
Leeds City Council,http://opendatacommunities.org/id/metropolitan-district-council/leeds,18/08/2016,Citizens & Communities,Playful Anywhere Cic,31/07/2015,2015160737,2005,0,Neighbourhood Grant,Supplies & Services
Leeds City Council,http://opendatacommunities.org/id/metropolitan-district-council/leeds,18/08/2016,Citizens & Communities,Playful Anywhere Cic,06/08/2015,2015160738,1853.66,0,Neighbourhood Grant,Supplies & Services
Leeds City Council,http://opendatacommunities.org/id/metropolitan-district-council/leeds,18/08/2016,Citizens & Communities,Playful Anywhere Cic,07/08/2015,2015160739,950,0,Neighbourhood Grant,Supplies & Services
Leeds City Council,http://opendatacommunities.org/id/metropolitan-district-council/leeds,18/08/2016,Citizens & Communities,Playful Anywhere Cic,17/08/2015,2015160740,2000,0,Neighbourhood Grant,Supplies & Services
Leeds City Council,http://opendatacommunities.org/id/metropolitan-district-council/leeds,18/08/2016,Citizens & Communities,Owls,30/10/2015,2015160741,509,0,Neighbourhood Grant,Supplies & Services
Leeds City Council,http://opendatacommunities.org/id/metropolitan-district-council/leeds,18/08/2016,Citizens & Communities,Owls,31/07/2015,2015160742,625,0,Neighbourhood Grant,Supplies & Services
Leeds City Council,http://opendatacommunities.org/id/metropolitan-district-council/leeds,18/08/2016,Citizens & Communities,Opal Luncheon Club,09/11/2015,2015160743,510.15,0,Neighbourhood Grant,Supplies & Services
Leeds City Council,http://opendatacommunities.org/id/metropolitan-district-council/leeds,18/08/2016,Citizens & Communities,Opal Luncheon Club,24/03/2016,2015160744,721,0,Neighbourhood Grant,Supplies & Services
Leeds City Council,http://opendatacommunities.org/id/metropolitan-district-council/leeds,18/08/2016,Citizens & Communities,Opal Luncheon Club,23/07/2015,2015160745,689,0,Neighbourhood Grant,Supplies & Services
Leeds City Council,http://opendatacommunities.org/id/metropolitan-district-council/leeds,18/08/2016,Citizens & Communities,Older Peoples Action In The Locality,29/05/2015,2015160746,10500,0,Neighbourhood Grant,Supplies & Services
Leeds City Council,http://opendatacommunities.org/id/metropolitan-district-council/leeds,18/08/2016,Citizens & Communities,Old Chapel Music Cic,07/07/2015,2015160747,3420,0,Neighbourhood Grant,Supplies & Services
Leeds City Council,http://opendatacommunities.org/id/metropolitan-district-council/leeds,18/08/2016,Citizens & Communities,Northcall,27/11/2015,2015160748,150,0,Neighbourhood Grant,Supplies & Services
Leeds City Council,http://opendatacommunities.org/id/metropolitan-district-council/leeds,18/08/2016,Citizens & Communities,Northcall,10/02/2016,2015160749,4204.82,0,Neighbourhood Grant,Supplies & Services
Leeds City Council,http://opendatacommunities.org/id/metropolitan-district-council/leeds,18/08/2016,Citizens & Communities,Northcall,15/10/2015,2015160750,1697,0,Neighbourhood Grant,Supplies & Services
Leeds City Council,http://opendatacommunities.org/id/metropolitan-district-council/leeds,18/08/2016,Citizens & Communities,Northcall,07/12/2015,2015160751,7000,0,Neighbourhood Grant,Supplies & Services
Leeds City Council,http://opendatacommunities.org/id/metropolitan-district-council/leeds,18/08/2016,Citizens & Communities,Northcall,10/06/2015,2015160752,332,0,Neighbourhood Grant,Supplies & Services
Leeds City Council,http://opendatacommunities.org/id/metropolitan-district-council/leeds,18/08/2016,Citizens & Communities,Northcall,10/06/2015,2015160753,2092,0,Neighbourhood Grant,Supplies & Services
Leeds City Council,http://opendatacommunities.org/id/metropolitan-district-council/leeds,18/08/2016,Citizens & Communities,Next Generation Arts,26/02/2016,2015160754,2600,0,Neighbourhood Grant,Supplies & Services
Leeds City Council,http://opendatacommunities.org/id/metropolitan-district-council/leeds,18/08/2016,Citizens & Communities,New Wortley Community Association,14/08/2015,2015160755,2267,0,Neighbourhood Grant,Supplies & Services
Leeds City Council,http://opendatacommunities.org/id/metropolitan-district-council/leeds,18/08/2016,Citizens & Communities,New Wortley Community Association,12/08/2015,2015160756,1133,0,Neighbourhood Grant,Supplies & Services
Leeds City Council,http://opendatacommunities.org/id/metropolitan-district-council/leeds,18/08/2016,Citizens & Communities,New Wortley Community Association,16/10/2015,2015160757,2000,0,Neighbourhood Grant,Supplies & Services
Leeds City Council,http://opendatacommunities.org/id/metropolitan-district-council/leeds,18/08/2016,Citizens & Communities,New Wortley Community Association,11/12/2015,2015160758,715.95,0,Neighbourhood Grant,Supplies & Services
Leeds City Council,http://opendatacommunities.org/id/metropolitan-district-council/leeds,18/08/2016,Citizens & Communities,New Wortley Community Association,28/10/2015,2015160759,2500,0,Neighbourhood Grant,Supplies & Services
Leeds City Council,http://opendatacommunities.org/id/metropolitan-district-council/leeds,18/08/2016,Citizens & Communities,New Wortley Community Association,23/03/2016,2015160760,2500,0,Neighbourhood Grant,Supplies & Services
Leeds City Council,http://opendatacommunities.org/id/metropolitan-district-council/leeds,18/08/2016,Citizens & Communities,New Wortley Community Association,21/08/2015,2015160761,2500,0,Neighbourhood Grant,Supplies & Services
Leeds City Council,http://opendatacommunities.org/id/metropolitan-district-council/leeds,18/08/2016,Citizens & Communities,New Wortley Community Association,02/07/2015,2015160762,4000,0,Neighbourhood Grant,Supplies & Services
Leeds City Council,http://opendatacommunities.org/id/metropolitan-district-council/leeds,18/08/2016,Citizens & Communities,New Testament Church Of God,09/03/2016,2015160763,2000,0,Neighbourhood Grant,Supplies & Services
Leeds City Council,http://opendatacommunities.org/id/metropolitan-district-council/leeds,18/08/2016,Citizens & Communities,New Chapeltown Development Trust,03/03/2016,2015160764,500,0,Neighbourhood Grant,Supplies & Services
Leeds City Council,http://opendatacommunities.org/id/metropolitan-district-council/leeds,18/08/2016,Citizens & Communities,Neighbourhood Elders Team,07/01/2016,2015160765,176.75,0,Neighbourhood Grant,Supplies & Services
Leeds City Council,http://opendatacommunities.org/id/metropolitan-district-council/leeds,18/08/2016,Citizens & Communities,Neighbourhood Elders Team,10/12/2015,2015160766,5000,0,Neighbourhood Grant,Supplies & Services
Leeds City Council,http://opendatacommunities.org/id/metropolitan-district-council/leeds,18/08/2016,Citizens & Communities,Neighbourhood Elders Team,11/11/2015,2015160767,1000,0,Neighbourhood Grant,Supplies & Services
Leeds City Council,http://opendatacommunities.org/id/metropolitan-district-council/leeds,18/08/2016,Citizens & Communities,Neighbourhood Elders Team,29/10/2015,2015160768,5000,0,Neighbourhood Grant,Supplies & Services
Leeds City Council,http://opendatacommunities.org/id/metropolitan-district-council/leeds,18/08/2016,Citizens & Communities,Morley Town Centre Management Board,03/02/2016,2015160769,8296,0,Neighbourhood Grant,Supplies & Services
Leeds City Council,http://opendatacommunities.org/id/metropolitan-district-council/leeds,18/08/2016,Citizens & Communities,Morley Literature Festival,26/06/2015,2015160770,10000,0,Neighbourhood Grant,Supplies & Services
Leeds City Council,http://opendatacommunities.org/id/metropolitan-district-council/leeds,18/08/2016,Citizens & Communities,Morley Exotic Animal Rescue,30/09/2015,2015160771,300,0,Neighbourhood Grant,Supplies & Services
Leeds City Council,http://opendatacommunities.org/id/metropolitan-district-council/leeds,18/08/2016,Citizens & Communities,Morley Elderly Action,12/11/2015,2015160772,8250,0,Neighbourhood Grant,Supplies & Services
Leeds City Council,http://opendatacommunities.org/id/metropolitan-district-council/leeds,18/08/2016,Citizens & Communities,Morley Elderly Action,10/03/2016,2015160773,8250,0,Neighbourhood Grant,Supplies & Services
Leeds City Council,http://opendatacommunities.org/id/metropolitan-district-council/leeds,18/08/2016,Citizens & Communities,Morley Elderly Action,10/12/2015,2015160774,654.57,0,Neighbourhood Grant,Supplies & Services
Leeds City Council,http://opendatacommunities.org/id/metropolitan-district-council/leeds,18/08/2016,Citizens & Communities,Morley Elderly Action,28/05/2015,2015160775,8250,0,Neighbourhood Grant,Supplies & Services
Leeds City Council,http://opendatacommunities.org/id/metropolitan-district-council/leeds,18/08/2016,Citizens & Communities,Morley Elderly Action,26/08/2015,2015160776,8250,0,Neighbourhood Grant,Supplies & Services
Leeds City Council,http://opendatacommunities.org/id/metropolitan-district-council/leeds,18/08/2016,Citizens & Communities,Morley Community Church,02/10/2015,2015160777,1350,0,Neighbourhood Grant,Supplies & Services
Leeds City Council,http://opendatacommunities.org/id/metropolitan-district-council/leeds,18/08/2016,Citizens & Communities,Moortown Social Club Over 60s Section,26/02/2016,2015160778,600,0,Neighbourhood Grant,Supplies & Services
Leeds City Council,http://opendatacommunities.org/id/metropolitan-district-council/leeds,18/08/2016,Citizens & Communities,Moortown Social Club Over 60s Section,08/12/2015,2015160779,200,0,Neighbourhood Grant,Supplies & Services
Leeds City Council,http://opendatacommunities.org/id/metropolitan-district-council/leeds,18/08/2016,Citizens & Communities,Moortown Social Club Over 60s Section,08/12/2015,2015160780,340,0,Neighbourhood Grant,Supplies & Services
Leeds City Council,http://opendatacommunities.org/id/metropolitan-district-council/leeds,18/08/2016,Citizens & Communities,Moor Allerton Elderly Care,23/10/2015,2015160781,3400,0,Neighbourhood Grant,Supplies & Services
Leeds City Council,http://opendatacommunities.org/id/metropolitan-district-council/leeds,18/08/2016,Citizens & Communities,Moor Allerton Elderly Care,18/02/2016,2015160782,2750,0,Neighbourhood Grant,Supplies & Services
Leeds City Council,http://opendatacommunities.org/id/metropolitan-district-council/leeds,18/08/2016,Citizens & Communities,Moor Allerton Elderly Care,18/02/2016,2015160783,650,0,Neighbourhood Grant,Supplies & Services
Leeds City Council,http://opendatacommunities.org/id/metropolitan-district-council/leeds,18/08/2016,Citizens & Communities,Moor Allerton Elderly Care,28/08/2015,2015160784,2750,0,Neighbourhood Grant,Supplies & Services
Leeds City Council,http://opendatacommunities.org/id/metropolitan-district-council/leeds,18/08/2016,Citizens & Communities,Middleton Park Equestrian Centre,24/07/2015,2015160785,900,0,Neighbourhood Grant,Supplies & Services
Leeds City Council,http://opendatacommunities.org/id/metropolitan-district-council/leeds,18/08/2016,Citizens & Communities,Micklefield Regeneration Partnership,09/06/2015,2015160786,2850,0,Neighbourhood Grant,Supplies & Services
Leeds City Council,http://opendatacommunities.org/id/metropolitan-district-council/leeds,18/08/2016,Citizens & Communities,Meanwood Valley Urban Farm Ltd,18/01/2016,2015160787,3000,0,Neighbourhood Grant,Supplies & Services
Leeds City Council,http://opendatacommunities.org/id/metropolitan-district-council/leeds,18/08/2016,Citizens & Communities,Meanwood Junior Playscheme,22/01/2016,2015160788,398,0,Neighbourhood Grant,Supplies & Services
Leeds City Council,http://opendatacommunities.org/id/metropolitan-district-council/leeds,18/08/2016,Citizens & Communities,Meanwood Junior Playscheme,22/04/2015,2015160789,166,0,Neighbourhood Grant,Supplies & Services
Leeds City Council,http://opendatacommunities.org/id/metropolitan-district-council/leeds,18/08/2016,Citizens & Communities,Meanwood Junior Playscheme,21/08/2015,2015160790,710,0,Neighbourhood Grant,Supplies & Services
Leeds City Council,http://opendatacommunities.org/id/metropolitan-district-council/leeds,18/08/2016,Citizens & Communities,Meanwood Community Centre No 2 Account,05/11/2015,2015160791,885.75,0,Neighbourhood Grant,Supplies & Services
Leeds City Council,http://opendatacommunities.org/id/metropolitan-district-council/leeds,18/08/2016,Citizens & Communities,Making Space,04/06/2015,2015160792,7000,0,Neighbourhood Grant,Supplies & Services
Leeds City Council,http://opendatacommunities.org/id/metropolitan-district-council/leeds,18/08/2016,Citizens & Communities,Adel & Ireland Wood Community,01/09/2015,2015160793,1500,0,Neighbourhood Grant,Supplies & Services
Leeds City Council,http://opendatacommunities.org/id/metropolitan-district-council/leeds,18/08/2016,Citizens & Communities,Ls14 Trust,05/11/2015,2015160794,100,0,Neighbourhood Grant,Supplies & Services
Leeds City Council,http://opendatacommunities.org/id/metropolitan-district-council/leeds,18/08/2016,Citizens & Communities,Ls14 Trust,05/11/2015,2015160795,290,0,Neighbourhood Grant,Supplies & Services
Leeds City Council,http://opendatacommunities.org/id/metropolitan-district-council/leeds,18/08/2016,Citizens & Communities,Ls14 Trust,21/03/2016,2015160796,3961.4,0,Neighbourhood Grant,Supplies & Services
Leeds City Council,http://opendatacommunities.org/id/metropolitan-district-council/leeds,18/08/2016,Citizens & Communities,Ls14 Trust,24/03/2016,2015160797,7083,0,Neighbourhood Grant,Supplies & Services
Leeds City Council,http://opendatacommunities.org/id/metropolitan-district-council/leeds,18/08/2016,Citizens & Communities,Ls14 Trust,25/08/2015,2015160798,681.6,0,Neighbourhood Grant,Supplies & Services
Leeds City Council,http://opendatacommunities.org/id/metropolitan-district-council/leeds,18/08/2016,Citizens & Communities,Love Pudsey,18/03/2016,2015160799,4268,0,Neighbourhood Grant,Supplies & Services
Leeds City Council,http://opendatacommunities.org/id/metropolitan-district-council/leeds,18/08/2016,Citizens & Communities,Lifeforce Productions,05/11/2015,2015160800,1872.9,0,Neighbourhood Grant,Supplies & Services
Leeds City Council,http://opendatacommunities.org/id/metropolitan-district-council/leeds,18/08/2016,Citizens & Communities,Lifeforce Productions,05/11/2015,2015160801,1810,0,Neighbourhood Grant,Supplies & Services
Leeds City Council,http://opendatacommunities.org/id/metropolitan-district-council/leeds,18/08/2016,Citizens & Communities,Lifeforce Productions,29/03/2016,2015160802,1560,0,Neighbourhood Grant,Supplies & Services
Leeds City Council,http://opendatacommunities.org/id/metropolitan-district-council/leeds,18/08/2016,Citizens & Communities,Lifeforce Productions,11/03/2016,2015160803,120,0,Neighbourhood Grant,Supplies & Services
Leeds City Council,http://opendatacommunities.org/id/metropolitan-district-council/leeds,18/08/2016,Citizens & Communities,Lifeforce Productions,15/01/2016,2015160804,1250,0,Neighbourhood Grant,Supplies & Services
Leeds City Council,http://opendatacommunities.org/id/metropolitan-district-council/leeds,18/08/2016,Citizens & Communities,Lifeforce Productions,14/08/2015,2015160805,2500,0,Neighbourhood Grant,Supplies & Services
Leeds City Council,http://opendatacommunities.org/id/metropolitan-district-council/leeds,18/08/2016,Citizens & Communities,Leeds University Union,18/03/2016,2015160806,3881.22,0,Neighbourhood Grant,Supplies & Services
Leeds City Council,http://opendatacommunities.org/id/metropolitan-district-council/leeds,18/08/2016,Citizens & Communities,Leeds Rugby Foundation,30/03/2016,2015160807,3500,0,Neighbourhood Grant,Supplies & Services
Leeds City Council,http://opendatacommunities.org/id/metropolitan-district-council/leeds,18/08/2016,Citizens & Communities,Leeds Refugee Forum,25/06/2015,2015160808,700,0,Neighbourhood Grant,Supplies & Services
Leeds City Council,http://opendatacommunities.org/id/metropolitan-district-council/leeds,18/08/2016,Citizens & Communities,Leeds Play Network,04/12/2015,2015160809,2430,0,Neighbourhood Grant,Supplies & Services
Leeds City Council,http://opendatacommunities.org/id/metropolitan-district-council/leeds,18/08/2016,Citizens & Communities,Leeds Play Network,04/12/2015,2015160810,5040,0,Neighbourhood Grant,Supplies & Services
Leeds City Council,http://opendatacommunities.org/id/metropolitan-district-council/leeds,18/08/2016,Citizens & Communities,Leeds Play Network,19/05/2015,2015160811,2234.8,0,Neighbourhood Grant,Supplies & Services
Leeds City Council,http://opendatacommunities.org/id/metropolitan-district-council/leeds,18/08/2016,Citizens & Communities,Leeds Judean Club For Boys And Girls T/A,25/02/2016,2015160812,2350,0,Neighbourhood Grant,Supplies & Services
Leeds City Council,http://opendatacommunities.org/id/metropolitan-district-council/leeds,18/08/2016,Citizens & Communities,Leeds Judean Club For Boys And Girls T/A,03/07/2015,2015160813,1450,0,Neighbourhood Grant,Supplies & Services
Leeds City Council,http://opendatacommunities.org/id/metropolitan-district-council/leeds,18/08/2016,Citizens & Communities,Leeds Judean Club For Boys And Girls T/A,28/08/2015,2015160814,2245.99,0,Neighbourhood Grant,Supplies & Services
Leeds City Council,http://opendatacommunities.org/id/metropolitan-district-council/leeds,18/08/2016,Citizens & Communities,Leeds Jewish Ex-Serviceman & Womens Association,15/01/2016,2015160815,125,0,Neighbourhood Grant,Supplies & Services
Leeds City Council,http://opendatacommunities.org/id/metropolitan-district-council/leeds,18/08/2016,Citizens & Communities,Leeds Housing Concern,03/03/2016,2015160816,82.84,0,Neighbourhood Grant,Supplies & Services
Leeds City Council,http://opendatacommunities.org/id/metropolitan-district-council/leeds,18/08/2016,Citizens & Communities,Leeds Hockey Club,01/03/2016,2015160817,1013,0,Neighbourhood Grant,Supplies & Services
Leeds City Council,http://opendatacommunities.org/id/metropolitan-district-council/leeds,18/08/2016,Citizens & Communities,Leeds Hockey Club,22/05/2015,2015160818,591,0,Neighbourhood Grant,Supplies & Services
Leeds City Council,http://opendatacommunities.org/id/metropolitan-district-council/leeds,18/08/2016,Citizens & Communities,Leeds Foodbank,30/07/2015,2015160819,1000,0,Neighbourhood Grant,Supplies & Services
Leeds City Council,http://opendatacommunities.org/id/metropolitan-district-council/leeds,18/08/2016,Citizens & Communities,Leeds Bmx Club,29/05/2015,2015160820,1489.2,0,Neighbourhood Grant,Supplies & Services
Leeds City Council,http://opendatacommunities.org/id/metropolitan-district-council/leeds,18/08/2016,Citizens & Communities,Leeds Beckett University Students Union,24/03/2016,2015160821,2115.68,0,Neighbourhood Grant,Supplies & Services
Leeds City Council,http://opendatacommunities.org/id/metropolitan-district-council/leeds,18/08/2016,Citizens & Communities,Leeds Beckett University Students Union,10/12/2015,2015160822,2859.14,0,Neighbourhood Grant,Supplies & Services
Leeds City Council,http://opendatacommunities.org/id/metropolitan-district-council/leeds,18/08/2016,Citizens & Communities,Leeds Baton Rouge Majorettes,29/10/2015,2015160823,250,0,Neighbourhood Grant,Supplies & Services
Leeds City Council,http://opendatacommunities.org/id/metropolitan-district-council/leeds,18/08/2016,Citizens & Communities,Leeds Baton Rouge Majorettes,25/06/2015,2015160824,250,0,Neighbourhood Grant,Supplies & Services
Leeds City Council,http://opendatacommunities.org/id/metropolitan-district-council/leeds,18/08/2016,Citizens & Communities,Kirkstall Festival,13/08/2015,2015160825,5000,0,Neighbourhood Grant,Supplies & Services
Leeds City Council,http://opendatacommunities.org/id/metropolitan-district-council/leeds,18/08/2016,Citizens & Communities,Kirkstall Educational Cricket Club,19/02/2016,2015160826,650,0,Neighbourhood Grant,Supplies & Services
Leeds City Council,http://opendatacommunities.org/id/metropolitan-district-council/leeds,18/08/2016,Citizens & Communities,Kirkstall Educational Cricket Club,19/02/2016,2015160827,150,0,Neighbourhood Grant,Supplies & Services
Leeds City Council,http://opendatacommunities.org/id/metropolitan-district-council/leeds,18/08/2016,Citizens & Communities,Kirkstall Educational Cricket Club,27/10/2015,2015160828,200,0,Neighbourhood Grant,Supplies & Services
Leeds City Council,http://opendatacommunities.org/id/metropolitan-district-council/leeds,18/08/2016,Citizens & Communities,Irish Arts Foundation,02/03/2016,2015160829,1500,0,Neighbourhood Grant,Supplies & Services
Leeds City Council,http://opendatacommunities.org/id/metropolitan-district-council/leeds,18/08/2016,Citizens & Communities,Irish Arts Foundation,01/05/2015,2015160830,1276.38,0,Neighbourhood Grant,Supplies & Services
Leeds City Council,http://opendatacommunities.org/id/metropolitan-district-council/leeds,18/08/2016,Citizens & Communities,Hyde Park Unity Day,27/07/2015,2015160831,5000,0,Neighbourhood Grant,Supplies & Services
Leeds City Council,http://opendatacommunities.org/id/metropolitan-district-council/leeds,18/08/2016,Citizens & Communities,Hyde Park And Woodhouse Fc,25/02/2016,2015160832,800,0,Neighbourhood Grant,Supplies & Services
Leeds City Council,http://opendatacommunities.org/id/metropolitan-district-council/leeds,18/08/2016,Citizens & Communities,Hunslet Methodist Church,02/06/2015,2015160833,2562,0,Neighbourhood Grant,Supplies & Services
Leeds City Council,http://opendatacommunities.org/id/metropolitan-district-council/leeds,18/08/2016,Citizens & Communities,Hunslet Club,02/03/2016,2015160834,8696.35,0,Neighbourhood Grant,Supplies & Services
Leeds City Council,http://opendatacommunities.org/id/metropolitan-district-council/leeds,18/08/2016,Citizens & Communities,Hunslet Club,01/12/2015,2015160835,6597.25,0,Neighbourhood Grant,Supplies & Services
Leeds City Council,http://opendatacommunities.org/id/metropolitan-district-council/leeds,18/08/2016,Citizens & Communities,Hunslet Club,29/05/2015,2015160836,6597,0,Neighbourhood Grant,Supplies & Services
Leeds City Council,http://opendatacommunities.org/id/metropolitan-district-council/leeds,18/08/2016,Citizens & Communities,Hunslet Club,31/07/2015,2015160837,6597.25,0,Neighbourhood Grant,Supplies & Services
Leeds City Council,http://opendatacommunities.org/id/metropolitan-district-council/leeds,18/08/2016,Citizens & Communities,Horsforth Hall Park Cricket Club,14/05/2015,2015160838,5004.48,0,Neighbourhood Grant,Supplies & Services
Leeds City Council,http://opendatacommunities.org/id/metropolitan-district-council/leeds,18/08/2016,Citizens & Communities,Hops,24/07/2015,2015160839,5000,0,Neighbourhood Grant,Supplies & Services
Leeds City Council,http://opendatacommunities.org/id/metropolitan-district-council/leeds,18/08/2016,Citizens & Communities,Hope,31/03/2016,2015160840,780,0,Neighbourhood Grant,Supplies & Services
Leeds City Council,http://opendatacommunities.org/id/metropolitan-district-council/leeds,18/08/2016,Citizens & Communities,Hope,24/03/2016,2015160841,150,0,Neighbourhood Grant,Supplies & Services
Leeds City Council,http://opendatacommunities.org/id/metropolitan-district-council/leeds,18/08/2016,Citizens & Communities,Holbeck In Bloom,18/11/2015,2015160842,3000,0,Neighbourhood Grant,Supplies & Services
Leeds City Council,http://opendatacommunities.org/id/metropolitan-district-council/leeds,18/08/2016,Citizens & Communities,Holbeck Gala,11/09/2015,2015160843,3500,0,Neighbourhood Grant,Supplies & Services
Leeds City Council,http://opendatacommunities.org/id/metropolitan-district-council/leeds,18/08/2016,Citizens & Communities,Health For All (Leeds) Ltd,30/10/2015,2015160844,1118.94,0,Neighbourhood Grant,Supplies & Services
Leeds City Council,http://opendatacommunities.org/id/metropolitan-district-council/leeds,18/08/2016,Citizens & Communities,Health For All (Leeds) Ltd,30/10/2015,2015160845,1696.21,0,Neighbourhood Grant,Supplies & Services
Leeds City Council,http://opendatacommunities.org/id/metropolitan-district-council/leeds,18/08/2016,Citizens & Communities,Health For All (Leeds) Ltd,20/11/2015,2015160846,314.35,0,Neighbourhood Grant,Supplies & Services
Leeds City Council,http://opendatacommunities.org/id/metropolitan-district-council/leeds,18/08/2016,Citizens & Communities,Health For All (Leeds) Ltd,20/11/2015,2015160847,471.52,0,Neighbourhood Grant,Supplies & Services
Leeds City Council,http://opendatacommunities.org/id/metropolitan-district-council/leeds,18/08/2016,Citizens & Communities,Health For All (Leeds) Ltd,27/11/2015,2015160848,1020,0,Neighbourhood Grant,Supplies & Services
Leeds City Council,http://opendatacommunities.org/id/metropolitan-district-council/leeds,18/08/2016,Citizens & Communities,Health For All (Leeds) Ltd,11/11/2015,2015160849,1118.66,0,Neighbourhood Grant,Supplies & Services
Leeds City Council,http://opendatacommunities.org/id/metropolitan-district-council/leeds,18/08/2016,Citizens & Communities,Health For All (Leeds) Ltd,09/11/2015,2015160850,1686.69,0,Neighbourhood Grant,Supplies & Services
Leeds City Council,http://opendatacommunities.org/id/metropolitan-district-council/leeds,18/08/2016,Citizens & Communities,Health For All (Leeds) Ltd,28/05/2015,2015160851,1117.34,0,Neighbourhood Grant,Supplies & Services
Leeds City Council,http://opendatacommunities.org/id/metropolitan-district-council/leeds,18/08/2016,Citizens & Communities,Health For All (Leeds) Ltd,28/05/2015,2015160852,2793.36,0,Neighbourhood Grant,Supplies & Services
Leeds City Council,http://opendatacommunities.org/id/metropolitan-district-council/leeds,18/08/2016,Citizens & Communities,Health For All (Leeds) Ltd,28/05/2015,2015160853,1676.02,0,Neighbourhood Grant,Supplies & Services
Leeds City Council,http://opendatacommunities.org/id/metropolitan-district-council/leeds,18/08/2016,Citizens & Communities,Health For All (Leeds) Ltd,30/06/2015,2015160854,1190.92,0,Neighbourhood Grant,Supplies & Services
Leeds City Council,http://opendatacommunities.org/id/metropolitan-district-council/leeds,18/08/2016,Citizens & Communities,Health For All (Leeds) Ltd,23/07/2015,2015160855,2793.36,0,Neighbourhood Grant,Supplies & Services
Leeds City Council,http://opendatacommunities.org/id/metropolitan-district-council/leeds,18/08/2016,Citizens & Communities,Health For All (Leeds) Ltd,25/06/2015,2015160856,1800.74,0,Neighbourhood Grant,Supplies & Services
Leeds City Council,http://opendatacommunities.org/id/metropolitan-district-council/leeds,18/08/2016,Citizens & Communities,Health For All (Leeds) Ltd,07/08/2015,2015160857,1796.91,0,Neighbourhood Grant,Supplies & Services
Leeds City Council,http://opendatacommunities.org/id/metropolitan-district-council/leeds,18/08/2016,Citizens & Communities,Health For All (Leeds) Ltd,06/08/2015,2015160858,1196.22,0,Neighbourhood Grant,Supplies & Services
Leeds City Council,http://opendatacommunities.org/id/metropolitan-district-council/leeds,18/08/2016,Citizens & Communities,Health For All (Leeds) Ltd,06/08/2015,2015160859,2793.36,0,Neighbourhood Grant,Supplies & Services
Leeds City Council,http://opendatacommunities.org/id/metropolitan-district-council/leeds,18/08/2016,Citizens & Communities,Health For All (Leeds) Ltd,02/09/2015,2015160860,1117.34,0,Neighbourhood Grant,Supplies & Services
Leeds City Council,http://opendatacommunities.org/id/metropolitan-district-council/leeds,18/08/2016,Citizens & Communities,Health For All (Leeds) Ltd,02/09/2015,2015160861,2958.34,0,Neighbourhood Grant,Supplies & Services
Leeds City Council,http://opendatacommunities.org/id/metropolitan-district-council/leeds,18/08/2016,Citizens & Communities,Health For All (Leeds) Ltd,02/09/2015,2015160862,1676.01,0,Neighbourhood Grant,Supplies & Services
Leeds City Council,http://opendatacommunities.org/id/metropolitan-district-council/leeds,18/08/2016,Citizens & Communities,Heads Together Productions Ltd,07/01/2016,2015160863,1315,0,Neighbourhood Grant,Supplies & Services
Leeds City Council,http://opendatacommunities.org/id/metropolitan-district-council/leeds,18/08/2016,Citizens & Communities,Heads Together Productions Ltd,09/09/2015,2015160864,1215,0,Neighbourhood Grant,Supplies & Services
Leeds City Council,http://opendatacommunities.org/id/metropolitan-district-council/leeds,18/08/2016,Citizens & Communities,Headingley Neighbourhood Forum,04/03/2016,2015160865,295.5,0,Neighbourhood Grant,Supplies & Services
Leeds City Council,http://opendatacommunities.org/id/metropolitan-district-council/leeds,18/08/2016,Citizens & Communities,Headingley Neighbourhood Forum,05/10/2015,2015160866,704.5,0,Neighbourhood Grant,Supplies & Services
Leeds City Council,http://opendatacommunities.org/id/metropolitan-district-council/leeds,18/08/2016,Citizens & Communities,Headingley Litfest,24/06/2015,2015160867,200,0,Neighbourhood Grant,Supplies & Services
Leeds City Council,http://opendatacommunities.org/id/metropolitan-district-council/leeds,18/08/2016,Citizens & Communities,Headingley Litfest,24/06/2015,2015160868,700,0,Neighbourhood Grant,Supplies & Services
Leeds City Council,http://opendatacommunities.org/id/metropolitan-district-council/leeds,18/08/2016,Citizens & Communities,Headingley Enterprise And Arts Centre,07/08/2015,2015160869,1000,0,Neighbourhood Grant,Supplies & Services
Leeds City Council,http://opendatacommunities.org/id/metropolitan-district-council/leeds,18/08/2016,Citizens & Communities,Headingley Development Trust Ltd,22/09/2015,2015160870,704.5,0,Neighbourhood Grant,Supplies & Services
Leeds City Council,http://opendatacommunities.org/id/metropolitan-district-council/leeds,18/08/2016,Citizens & Communities,Hawksworth Older People Support,27/11/2015,2015160871,60,0,Neighbourhood Grant,Supplies & Services
Leeds City Council,http://opendatacommunities.org/id/metropolitan-district-council/leeds,18/08/2016,Citizens & Communities,Harehills Cic,05/10/2015,2015160872,108.33,0,Neighbourhood Grant,Supplies & Services
Leeds City Council,http://opendatacommunities.org/id/metropolitan-district-council/leeds,18/08/2016,Citizens & Communities,Hamara Healthy Living Centre,18/11/2015,2015160873,3920,0,Neighbourhood Grant,Supplies & Services
Leeds City Council,http://opendatacommunities.org/id/metropolitan-district-council/leeds,18/08/2016,Citizens & Communities,Hamara Healthy Living Centre,04/11/2015,2015160874,1140,0,Neighbourhood Grant,Supplies & Services
Leeds City Council,http://opendatacommunities.org/id/metropolitan-district-council/leeds,18/08/2016,Citizens & Communities,Groundwork Leeds,29/02/2016,2015160875,5000,0,Neighbourhood Grant,Supplies & Services
Leeds City Council,http://opendatacommunities.org/id/metropolitan-district-council/leeds,18/08/2016,Citizens & Communities,Gotts Park Golf Club Community Interest,20/07/2015,2015160876,5000,0,Neighbourhood Grant,Supplies & Services
Leeds City Council,http://opendatacommunities.org/id/metropolitan-district-council/leeds,18/08/2016,Citizens & Communities,Getaway Girls,07/01/2016,2015160877,1978,0,Neighbourhood Grant,Supplies & Services
Leeds City Council,http://opendatacommunities.org/id/metropolitan-district-council/leeds,18/08/2016,Citizens & Communities,Friends Of Post Hill,07/05/2015,2015160878,975,0,Neighbourhood Grant,Supplies & Services
Leeds City Council,http://opendatacommunities.org/id/metropolitan-district-council/leeds,18/08/2016,Citizens & Communities,Friends Of Parkinson Park,10/07/2015,2015160879,4000,0,Neighbourhood Grant,Supplies & Services
Leeds City Council,http://opendatacommunities.org/id/metropolitan-district-council/leeds,18/08/2016,Citizens & Communities,Friends Of Middleton Park,13/11/2015,2015160880,2650,0,Neighbourhood Grant,Supplies & Services
Leeds City Council,http://opendatacommunities.org/id/metropolitan-district-council/leeds,18/08/2016,Citizens & Communities,Feel Good Factor,06/11/2015,2015160881,342,0,Neighbourhood Grant,Supplies & Services
Leeds City Council,http://opendatacommunities.org/id/metropolitan-district-council/leeds,18/08/2016,Citizens & Communities,Feel Good Factor,04/09/2015,2015160882,200,0,Neighbourhood Grant,Supplies & Services
Leeds City Council,http://opendatacommunities.org/id/metropolitan-district-council/leeds,18/08/2016,Citizens & Communities,Feel Good Factor,05/06/2015,2015160883,2871,0,Neighbourhood Grant,Supplies & Services
Leeds City Council,http://opendatacommunities.org/id/metropolitan-district-council/leeds,18/08/2016,Citizens & Communities,Farsley Community Initiative,21/05/2015,2015160884,2500,0,Neighbourhood Grant,Supplies & Services
Leeds City Council,http://opendatacommunities.org/id/metropolitan-district-council/leeds,18/08/2016,Citizens & Communities,Fairfield Community Centre Partnership,08/03/2016,2015160885,1250,0,Neighbourhood Grant,Supplies & Services
Leeds City Council,http://opendatacommunities.org/id/metropolitan-district-council/leeds,18/08/2016,Citizens & Communities,Fairfield Community Centre Partnership,15/01/2016,2015160886,1250,0,Neighbourhood Grant,Supplies & Services
Leeds City Council,http://opendatacommunities.org/id/metropolitan-district-council/leeds,18/08/2016,Citizens & Communities,Fairfield Community Centre Partnership,09/11/2015,2015160887,1250,0,Neighbourhood Grant,Supplies & Services
Leeds City Council,http://opendatacommunities.org/id/metropolitan-district-council/leeds,18/08/2016,Citizens & Communities,Fairfield Community Centre Partnership,06/10/2015,2015160888,1250,0,Neighbourhood Grant,Supplies & Services
Leeds City Council,http://opendatacommunities.org/id/metropolitan-district-council/leeds,18/08/2016,Citizens & Communities,Ebor Gardens Advice Centre,13/11/2015,2015160889,2662.5,0,Neighbourhood Grant,Supplies & Services
Leeds City Council,http://opendatacommunities.org/id/metropolitan-district-council/leeds,18/08/2016,Citizens & Communities,Ebor Gardens Advice Centre,09/03/2016,2015160890,2662.5,0,Neighbourhood Grant,Supplies & Services
Leeds City Council,http://opendatacommunities.org/id/metropolitan-district-council/leeds,18/08/2016,Citizens & Communities,Ebor Gardens Advice Centre,18/03/2016,2015160891,1565,0,Neighbourhood Grant,Supplies & Services
Leeds City Council,http://opendatacommunities.org/id/metropolitan-district-council/leeds,18/08/2016,Citizens & Communities,Ebor Gardens Advice Centre,05/11/2015,2015160892,1065,0,Neighbourhood Grant,Supplies & Services
Leeds City Council,http://opendatacommunities.org/id/metropolitan-district-council/leeds,18/08/2016,Citizens & Communities,Ebor Gardens Advice Centre,04/09/2015,2015160893,1200,0,Neighbourhood Grant,Supplies & Services
Leeds City Council,http://opendatacommunities.org/id/metropolitan-district-council/leeds,18/08/2016,Citizens & Communities,Ebor Gardens Advice Centre,16/07/2015,2015160894,2662.5,0,Neighbourhood Grant,Supplies & Services
Leeds City Council,http://opendatacommunities.org/id/metropolitan-district-council/leeds,18/08/2016,Citizens & Communities,East Street Arts,18/03/2016,2015160895,500,0,Neighbourhood Grant,Supplies & Services
Leeds City Council,http://opendatacommunities.org/id/metropolitan-district-council/leeds,18/08/2016,Citizens & Communities,East Street Arts,03/12/2015,2015160896,500,0,Neighbourhood Grant,Supplies & Services
Leeds City Council,http://opendatacommunities.org/id/metropolitan-district-council/leeds,18/08/2016,Citizens & Communities,Drighlington Community Charitable In Org,13/08/2015,2015160897,1100,0,Neighbourhood Grant,Supplies & Services
Leeds City Council,http://opendatacommunities.org/id/metropolitan-district-council/leeds,18/08/2016,Citizens & Communities,Deen Enterprises Community Forum,15/01/2016,2015160898,2509.64,0,Neighbourhood Grant,Supplies & Services
Leeds City Council,http://opendatacommunities.org/id/metropolitan-district-council/leeds,18/08/2016,Citizens & Communities,Dazl,13/07/2015,2015160899,2100,0,Neighbourhood Grant,Supplies & Services
Leeds City Council,http://opendatacommunities.org/id/metropolitan-district-council/leeds,18/08/2016,Citizens & Communities,Crossgates And District Good Neighbours,24/12/2015,2015160900,38,0,Neighbourhood Grant,Supplies & Services
Leeds City Council,http://opendatacommunities.org/id/metropolitan-district-council/leeds,18/08/2016,Citizens & Communities,Crossgates And District Good Neighbours,24/12/2015,2015160901,602.71,0,Neighbourhood Grant,Supplies & Services
Leeds City Council,http://opendatacommunities.org/id/metropolitan-district-council/leeds,18/08/2016,Citizens & Communities,Cross Flatts Park Bowling Club,19/02/2016,2015160902,2000,0,Neighbourhood Grant,Supplies & Services
Leeds City Council,http://opendatacommunities.org/id/metropolitan-district-council/leeds,18/08/2016,Citizens & Communities,Community Unity,05/11/2015,2015160903,900,0,Neighbourhood Grant,Supplies & Services
Leeds City Council,http://opendatacommunities.org/id/metropolitan-district-council/leeds,18/08/2016,Citizens & Communities,Community Unity,05/11/2015,2015160904,1250,0,Neighbourhood Grant,Supplies & Services
Leeds City Council,http://opendatacommunities.org/id/metropolitan-district-council/leeds,18/08/2016,Citizens & Communities,Community Unity,08/01/2016,2015160905,1178.94,0,Neighbourhood Grant,Supplies & Services
Leeds City Council,http://opendatacommunities.org/id/metropolitan-district-council/leeds,18/08/2016,Citizens & Communities,Community Unity,30/07/2015,2015160906,1000,0,Neighbourhood Grant,Supplies & Services
Leeds City Council,http://opendatacommunities.org/id/metropolitan-district-council/leeds,18/08/2016,Citizens & Communities,Community Unity,28/08/2015,2015160907,1500,0,Neighbourhood Grant,Supplies & Services
Leeds City Council,http://opendatacommunities.org/id/metropolitan-district-council/leeds,18/08/2016,Citizens & Communities,Community Black Achievers,26/01/2016,2015160908,850,0,Neighbourhood Grant,Supplies & Services
Leeds City Council,http://opendatacommunities.org/id/metropolitan-district-council/leeds,18/08/2016,Citizens & Communities,Collingham & Linton Squash Club,26/02/2016,2015160909,485,0,Neighbourhood Grant,Supplies & Services
Leeds City Council,http://opendatacommunities.org/id/metropolitan-district-council/leeds,18/08/2016,Citizens & Communities,Collingham And Linton Cricket Club,30/10/2015,2015160910,1638.3,0,Neighbourhood Grant,Supplies & Services
Leeds City Council,http://opendatacommunities.org/id/metropolitan-district-council/leeds,18/08/2016,Citizens & Communities,Collingham And Linton Cricket Club,29/10/2015,2015160911,2000,0,Neighbourhood Grant,Supplies & Services
Leeds City Council,http://opendatacommunities.org/id/metropolitan-district-council/leeds,18/08/2016,Citizens & Communities,Collingham And Linton Cricket Club,13/08/2015,2015160912,790,0,Neighbourhood Grant,Supplies & Services
Leeds City Council,http://opendatacommunities.org/id/metropolitan-district-council/leeds,18/08/2016,Citizens & Communities,Collingham And Linton Cricket Club,19/08/2015,2015160913,1625,0,Neighbourhood Grant,Supplies & Services
Leeds City Council,http://opendatacommunities.org/id/metropolitan-district-council/leeds,18/08/2016,Citizens & Communities,Collingham And Linton Cricket Club,02/06/2015,2015160914,1223.25,0,Neighbourhood Grant,Supplies & Services
Leeds City Council,http://opendatacommunities.org/id/metropolitan-district-council/leeds,18/08/2016,Citizens & Communities,Collingham And Linton Cricket Club,02/06/2015,2015160915,1223.25,0,Neighbourhood Grant,Supplies & Services
Leeds City Council,http://opendatacommunities.org/id/metropolitan-district-council/leeds,18/08/2016,Citizens & Communities,Christ Church Armley Community Projects,26/02/2016,2015160916,1668.57,0,Neighbourhood Grant,Supplies & Services
Leeds City Council,http://opendatacommunities.org/id/metropolitan-district-council/leeds,18/08/2016,Citizens & Communities,Chapeltown Community Cmc Play Scheme,10/06/2015,2015160917,194,0,Neighbourhood Grant,Supplies & Services
Leeds City Council,http://opendatacommunities.org/id/metropolitan-district-council/leeds,18/08/2016,Citizens & Communities,Cfydc (Chance),05/02/2016,2015160918,5600,0,Neighbourhood Grant,Supplies & Services
Leeds City Council,http://opendatacommunities.org/id/metropolitan-district-council/leeds,18/08/2016,Citizens & Communities,Cfydc (Chance),08/01/2016,2015160919,2099.74,0,Neighbourhood Grant,Supplies & Services
Leeds City Council,http://opendatacommunities.org/id/metropolitan-district-council/leeds,18/08/2016,Citizens & Communities,Catch Community Action To Change,05/11/2015,2015160920,7000,0,Neighbourhood Grant,Supplies & Services
Leeds City Council,http://opendatacommunities.org/id/metropolitan-district-council/leeds,18/08/2016,Citizens & Communities,Catch Community Action To Change,25/02/2016,2015160921,750,0,Neighbourhood Grant,Supplies & Services
Leeds City Council,http://opendatacommunities.org/id/metropolitan-district-council/leeds,18/08/2016,Citizens & Communities,Catch,30/09/2015,2015160922,3000,0,Neighbourhood Grant,Supplies & Services
Leeds City Council,http://opendatacommunities.org/id/metropolitan-district-council/leeds,18/08/2016,Citizens & Communities,Catch,08/05/2015,2015160923,3954.25,0,Neighbourhood Grant,Supplies & Services
Leeds City Council,http://opendatacommunities.org/id/metropolitan-district-council/leeds,18/08/2016,Citizens & Communities,Caring Together In Woodhouse And Little London,17/02/2016,2015160924,1722.22,0,Neighbourhood Grant,Supplies & Services
Leeds City Council,http://opendatacommunities.org/id/metropolitan-district-council/leeds,18/08/2016,Citizens & Communities,Caring Together In Woodhouse And Little London,13/11/2015,2015160925,1782.73,0,Neighbourhood Grant,Supplies & Services
